{"text_format":"1","workbook":"xlsx","n_sheets":5,"sheets":["Mes","Dependencia","Iniciativa","PLAN DE ACCIÓN INSTITUCIONAL","Hito"],"not_rendered":{"charts":0,"images":0,"macros":0,"external_links":2,"defined_names":4,"comments":3,"pivot_tables":0},"unopened":[],"bounds":{"document_bytes":16777216,"sheet_cells":100000,"rows_first":2000,"rows_last":500,"rows_between":2000,"halvings":0,"cell_chars":16384,"cell_head_chars":4096},"cells_cut":0,"cells_raw":0,"read":"whole","date_system":"1900"}

{"sheet":"Mes","index":0,"n_rows":13,"n_cols":2,"rows_kept":13,"cut":false,"hidden":true,"merged":[]}
["Cod M","Mes "]
[1,"Enero"]
[2,"Febrero"]
[3,"Marzo"]
[4,"Abril"]
[5,"Mayo"]
[6,"Junio"]
[7,"Julio"]
[8,"Agosto"]
[9,"Septiembre"]
[10,"Octubre"]
[11,"Noviembre"]
[12,"Diciembre"]

{"sheet":"Dependencia","index":1,"n_rows":104,"n_cols":3,"rows_kept":104,"cut":false,"hidden":true,"merged":[]}
["Cod M","COD","DEPENDENCIA"]
[1,5,"SUBDIRECCIÓN DE ASUNTOS LEGALES - (SAL)"]
[1,6,"SUBDIRECCIÓN ADMINISTRATIVA Y FINANCIERA (SAF)"]
[1,7,"SUBDIRECCIÓN DE RECOLECCIÓN BARRIDO Y LIMPIEZA (SRBL)"]
[1,8,"SUBDIRECCIÓN DE DISPOSICIÓN FINAL - (SDF)"]
[1,10,"SUBDIRECCIÓN DE SERVICIOS FUNERARIOS Y ALUMBRADO PÚBLICO (SSFAP)"]
[2,1,"OFICINA ASESORA DE PLANEACIÓN - (OAP)"]
[2,2,"OFICNA DE CONTROL INETRNO - (OCI)"]
[2,3,"OFICINA ASESORA DE TECNOLOGIAS DE LA INFORMACIÓN - (TIC)"]
[2,4,"SUBDIRECCIÓN DE ASUNTOS LEGALES - (SAL)"]
[2,5,"SUBDIRECCIÓN ADMINISTRATIVA Y FINANCIERA (SAF)"]
[2,6,"SUBDIRECCIÓN DE RECOLECCIÓN BARRIDO Y LIMPIEZA (SRBL)"]
[2,7,"SUBDIRECCIÓN DE DISPOSICIÓN FINAL - (SDF)"]
[2,8,"SUBDIRECCIÓN DE APROVECHAMIENTO (SAP)"]
[2,9,"SUBDIRECCIÓN DE SERVICIOS FUNERARIOS Y ALUMBRADO PÚBLICO (SSFAP)"]
[3,1,"OFICINA ASESORA DE PLANEACIÓN - (OAP)"]
[3,3,"OFICINA ASESORA DE TECNOLOGIAS DE LA INFORMACIÓN - (TIC)"]
[3,4,"OFICINA ASESORA DE COMUNICAIONES - (OAC)"]
[3,5,"SUBDIRECCIÓN DE ASUNTOS LEGALES - (SAL)"]
[3,6,"SUBDIRECCIÓN ADMINISTRATIVA Y FINANCIERA (SAF)"]
[3,7,"SUBDIRECCIÓN DE RECOLECCIÓN BARRIDO Y LIMPIEZA (SRBL)"]
[3,8,"SUBDIRECCIÓN DE DISPOSICIÓN FINAL - (SDF)"]
[3,9,"SUBDIRECCIÓN DE APROVECHAMIENTO (SAP)"]
[3,10,"SUBDIRECCIÓN DE SERVICIOS FUNERARIOS Y ALUMBRADO PÚBLICO (SSFAP)"]
[4,1,"OFICINA ASESORA DE PLANEACIÓN - (OAP)"]
[4,2,"OFICNA DE CONTROL INETRNO - (OCI)"]
[4,3,"OFICINA ASESORA DE TECNOLOGIAS DE LA INFORMACIÓN - (TIC)"]
[4,5,"SUBDIRECCIÓN DE ASUNTOS LEGALES - (SAL)"]
[4,6,"SUBDIRECCIÓN ADMINISTRATIVA Y FINANCIERA (SAF)"]
[4,7,"SUBDIRECCIÓN DE RECOLECCIÓN BARRIDO Y LIMPIEZA (SRBL)"]
[4,8,"SUBDIRECCIÓN DE DISPOSICIÓN FINAL - (SDF)"]
[4,9,"SUBDIRECCIÓN DE APROVECHAMIENTO (SAP)"]
[4,10,"SUBDIRECCIÓN DE SERVICIOS FUNERARIOS Y ALUMBRADO PÚBLICO (SSFAP)"]
[5,1,"OFICINA ASESORA DE PLANEACIÓN - (OAP)"]
[5,3,"OFICINA ASESORA DE TECNOLOGIAS DE LA INFORMACIÓN - (TIC)"]
[5,5,"SUBDIRECCIÓN DE ASUNTOS LEGALES - (SAL)"]
[5,6,"SUBDIRECCIÓN ADMINISTRATIVA Y FINANCIERA (SAF)"]
[5,7,"SUBDIRECCIÓN DE RECOLECCIÓN BARRIDO Y LIMPIEZA (SRBL)"]
[5,8,"SUBDIRECCIÓN DE DISPOSICIÓN FINAL - (SDF)"]
[5,9,"SUBDIRECCIÓN DE APROVECHAMIENTO (SAP)"]
[5,10,"SUBDIRECCIÓN DE SERVICIOS FUNERARIOS Y ALUMBRADO PÚBLICO (SSFAP)"]
[6,1,"OFICINA ASESORA DE PLANEACIÓN - (OAP)"]
[6,2,"OFICNA DE CONTROL INETRNO - (OCI)"]
[6,3,"OFICINA ASESORA DE TECNOLOGIAS DE LA INFORMACIÓN - (TIC)"]
[6,4,"OFICINA ASESORA DE COMUNICAIONES - (OAC)"]
[6,5,"SUBDIRECCIÓN DE ASUNTOS LEGALES - (SAL)"]
[6,6,"SUBDIRECCIÓN ADMINISTRATIVA Y FINANCIERA (SAF)"]
[6,7,"SUBDIRECCIÓN DE RECOLECCIÓN BARRIDO Y LIMPIEZA (SRBL)"]
[6,8,"SUBDIRECCIÓN DE DISPOSICIÓN FINAL - (SDF)"]
[6,9,"SUBDIRECCIÓN DE APROVECHAMIENTO (SAP)"]
[6,10,"SUBDIRECCIÓN DE SERVICIOS FUNERARIOS Y ALUMBRADO PÚBLICO (SSFAP)"]
[7,1,"OFICINA ASESORA DE PLANEACIÓN - (OAP)"]
[7,3,"OFICINA ASESORA DE TECNOLOGIAS DE LA INFORMACIÓN - (TIC)"]
[7,5,"SUBDIRECCIÓN DE ASUNTOS LEGALES - (SAL)"]
[7,6,"SUBDIRECCIÓN ADMINISTRATIVA Y FINANCIERA (SAF)"]
[7,7,"SUBDIRECCIÓN DE RECOLECCIÓN BARRIDO Y LIMPIEZA (SRBL)"]
[7,8,"SUBDIRECCIÓN DE DISPOSICIÓN FINAL - (SDF)"]
[7,9,"SUBDIRECCIÓN DE APROVECHAMIENTO (SAP)"]
[7,10,"SUBDIRECCIÓN DE SERVICIOS FUNERARIOS Y ALUMBRADO PÚBLICO (SSFAP)"]
[8,1,"OFICINA ASESORA DE PLANEACIÓN - (OAP)"]
[8,2,"OFICNA DE CONTROL INETRNO - (OCI)"]
[8,3,"OFICINA ASESORA DE TECNOLOGIAS DE LA INFORMACIÓN - (TIC)"]
[8,5,"SUBDIRECCIÓN DE ASUNTOS LEGALES - (SAL)"]
[8,6,"SUBDIRECCIÓN ADMINISTRATIVA Y FINANCIERA (SAF)"]
[8,7,"SUBDIRECCIÓN DE RECOLECCIÓN BARRIDO Y LIMPIEZA (SRBL)"]
[8,8,"SUBDIRECCIÓN DE DISPOSICIÓN FINAL - (SDF)"]
[8,9,"SUBDIRECCIÓN DE APROVECHAMIENTO (SAP)"]
[8,10,"SUBDIRECCIÓN DE SERVICIOS FUNERARIOS Y ALUMBRADO PÚBLICO (SSFAP)"]
[9,1,"OFICINA ASESORA DE PLANEACIÓN - (OAP)"]
[9,3,"OFICINA ASESORA DE TECNOLOGIAS DE LA INFORMACIÓN - (TIC)"]
[9,4,"OFICINA ASESORA DE COMUNICAIONES - (OAC)"]
[9,5,"SUBDIRECCIÓN DE ASUNTOS LEGALES - (SAL)"]
[9,6,"SUBDIRECCIÓN ADMINISTRATIVA Y FINANCIERA (SAF)"]
[9,7,"SUBDIRECCIÓN DE RECOLECCIÓN BARRIDO Y LIMPIEZA (SRBL)"]
[9,8,"SUBDIRECCIÓN DE DISPOSICIÓN FINAL - (SDF)"]
[9,9,"SUBDIRECCIÓN DE APROVECHAMIENTO (SAP)"]
[9,10,"SUBDIRECCIÓN DE SERVICIOS FUNERARIOS Y ALUMBRADO PÚBLICO (SSFAP)"]
[10,1,"OFICINA ASESORA DE PLANEACIÓN - (OAP)"]
[10,2,"OFICNA DE CONTROL INETRNO - (OCI)"]
[10,3,"OFICINA ASESORA DE TECNOLOGIAS DE LA INFORMACIÓN - (TIC)"]
[10,5,"SUBDIRECCIÓN DE ASUNTOS LEGALES - (SAL)"]
[10,6,"SUBDIRECCIÓN ADMINISTRATIVA Y FINANCIERA (SAF)"]
[10,7,"SUBDIRECCIÓN DE RECOLECCIÓN BARRIDO Y LIMPIEZA (SRBL)"]
[10,8,"SUBDIRECCIÓN DE DISPOSICIÓN FINAL - (SDF)"]
[10,9,"SUBDIRECCIÓN DE APROVECHAMIENTO (SAP)"]
[10,10,"SUBDIRECCIÓN DE SERVICIOS FUNERARIOS Y ALUMBRADO PÚBLICO (SSFAP)"]
[11,1,"OFICINA ASESORA DE PLANEACIÓN - (OAP)"]
[11,3,"OFICINA ASESORA DE TECNOLOGIAS DE LA INFORMACIÓN - (TIC)"]
[11,5,"SUBDIRECCIÓN DE ASUNTOS LEGALES - (SAL)"]
[11,6,"SUBDIRECCIÓN ADMINISTRATIVA Y FINANCIERA (SAF)"]
[11,7,"SUBDIRECCIÓN DE RECOLECCIÓN BARRIDO Y LIMPIEZA (SRBL)"]
[11,8,"SUBDIRECCIÓN DE DISPOSICIÓN FINAL - (SDF)"]
[11,9,"SUBDIRECCIÓN DE APROVECHAMIENTO (SAP)"]
[11,10,"SUBDIRECCIÓN DE SERVICIOS FUNERARIOS Y ALUMBRADO PÚBLICO (SSFAP)"]
[12,1,"OFICINA ASESORA DE PLANEACIÓN - (OAP)"]
[12,2,"OFICNA DE CONTROL INETRNO - (OCI)"]
[12,3,"OFICINA ASESORA DE TECNOLOGIAS DE LA INFORMACIÓN - (TIC)"]
[12,4,"OFICINA ASESORA DE COMUNICAIONES - (OAC)"]
[12,5,"SUBDIRECCIÓN DE ASUNTOS LEGALES - (SAL)"]
[12,6,"SUBDIRECCIÓN ADMINISTRATIVA Y FINANCIERA (SAF)"]
[12,7,"SUBDIRECCIÓN DE RECOLECCIÓN BARRIDO Y LIMPIEZA (SRBL)"]
[12,8,"SUBDIRECCIÓN DE DISPOSICIÓN FINAL - (SDF)"]
[12,9,"SUBDIRECCIÓN DE APROVECHAMIENTO (SAP)"]
[12,10,"SUBDIRECCIÓN DE SERVICIOS FUNERARIOS Y ALUMBRADO PÚBLICO (SSFAP)"]

{"sheet":"Iniciativa","index":2,"n_rows":211,"n_cols":4,"rows_kept":211,"cut":false,"hidden":true,"merged":[]}
["Cod M","COD D","COD I","Iniciativa"]
[1,1,1,"Asegurar en lo jurídico el fortalecimiento del modelo de transformación organizacional"]
[1,2,1,"Fortalecer el Sistema Integrado de Gestión Financiera    SI-CAPITAL."]
[1,3,1,"Garantizar una adecuada prestación del servicio de aseo"]
[1,4,1,"Fortalecer la gestión de la operación del Relleno Sanitario Doña Juana (RSDJ)"]
[1,4,2,"Fortalecer la Gestión  Social para  la zona de influencia del Relleno Sanitario Doña Juana.\""]
[1,5,1,"Modernizar y Actualizar las luminarias en Parques y Vías"]
[1,5,2,"Fortalecer la prestación del Servicio de Alumbrado Publico en el Distrito Capital"]
[1,5,3,"Garantizar que la prestación de los  servicios funerarios "]
[1,5,4,"Revitalizar los Cementerios de propiedad del Distrito Capital"]
[1,5,5,"Consolidar la prestación de los Servicios Funerarios Integrales en los cementerios del distrito"]
[1,5,6,"'Otorgar subsidios funerarios  a población en estado de vulnerabilidad "]
[2,1,1,"Fortalecer los estándares de transparencia y de acceso a la información pública"]
[2,1,2,"Fortalecer el Modelo de Transformación Organizacional articulado con el Modelo Integrado de Planeación y Gestión (MIPG)"]
[2,2,1,"Soporte estratégico para la toma de decisiones, agregando valor al desempeño institucional "]
[2,2,2,"Asesoría y formulación de recomendaciones con alcance preventivo y  de fomento a la cultura del control"]
[2,3,1,"Fortalecer la gestión de las plataformas tecnológicas de la entidad (hardware y software)"]
[2,3,2,"Implementar los lineamientos que fortalezcan la política de Gobierno Digital en la entidad"]
[2,4,1,"Asegurar en lo jurídico el fortalecimiento del modelo de transformación organizacional"]
[2,5,1,"Fortalecer el Sistema Integrado de Gestión Financiera    SI-CAPITAL."]
[2,6,1,"Garantizar una adecuada prestación del servicio de aseo"]
[2,7,1,"Fortalecer la gestión de la operación del Relleno Sanitario Doña Juana (RSDJ)"]
[2,7,2,"Fortalecer la Gestión  Social para  la zona de influencia del Relleno Sanitario Doña Juana.\""]
[2,8,1,"Promover y fortalecer el esquema de aprovechamiento en el servicio de aseo"]
[2,8,2,"Dignificar la labor de la población recicladora de oficio"]
[2,9,1,"Modernizar y Actualizar las luminarias en Parques y Vías"]
[2,9,2,"Fortalecer la prestación del Servicio de Alumbrado Publico en el Distrito Capital"]
[2,9,3,"Garantizar que la prestación de los  servicios funerarios "]
[2,9,4,"Revitalizar los Cementerios de propiedad del Distrito Capital"]
[2,9,5,"'Consolidar la prestación de los Servicios Funerarios Integrales en los cementerios del distrito"]
[2,9,6,"'Otorgar subsidios funerarios  a población en estado de vulnerabilidad "]
[3,1,1,"Fortalecer los estándares de transparencia y de acceso a la información pública"]
[3,1,2,"Fortalecer el Modelo de Transformación Organizacional articulado con el Modelo Integrado de Planeación y Gestión (MIPG)"]
[3,2,1,"Fortalecer la gestión de las plataformas tecnológicas de la entidad (hardware y software)"]
[3,2,2,"Implementar los lineamientos que fortalezcan la política de Gobierno Digital en la entidad"]
[3,3,1,"Mantener el reconocimiento institucional"]
[3,4,1,"Asegurar en lo jurídico el fortalecimiento del modelo de transformación organizacional"]
[3,5,1,"Foralecer la  Gestión documental integral"]
[3,5,2,"Fortalecer el Sistema Integrado de Gestión Financiera    SI-CAPITAL."]
[3,5,3,"Hacer de la UAESP un referente en el Distrito, por su ambiente laboral"]
[3,6,1,"Establecer altos estándares de limpieza integral en el Distrito Capital"]
[3,6,2,"Garantizar una adecuada prestación del servicio de aseo"]
[3,7,1,"Fortalecer la gestión de la operación del Relleno Sanitario Doña Juana (RSDJ)"]
[3,7,2,"Fortalecer la Gestión  Social para  la zona de influencia del Relleno Sanitario Doña Juana.\""]
[3,8,1,"Promover y fortalecer el esquema de aprovechamiento en el servicio de aseo "]
[3,8,2,"Dignificar la labor de la población recicladora de oficio"]
[3,8,3,"Promover el fortalecimiento empresarial para las organizaciones de recicladores."]
[3,9,1,"Modernizar y Actualizar las luminarias en Parques y Vías"]
[3,9,2,"Fortalecer la prestación del Servicio de Alumbrado Publico en el Distrito Capital"]
[3,9,3,"Garantizar que la prestación de los  servicios funerarios \n"]
[3,9,4,"Revitalizar los Cementerios de propiedad del Distrito Capital"]
[3,9,5,"Consolidar la prestación de los Servicios Funerarios Integrales en los cementerios del distrito"]
[3,9,6,"Otorgar subsidios funerarios  a población en estado de vulnerabilidad "]
[4,1,1,"Fortalecer los estándares de transparencia y de acceso a la información pública"]
[4,1,2,"Fortalecer el Modelo de Transformación Organizacional articulado con el Modelo Integrado de Planeación y Gestión (MIPG)"]
[4,2,1,"Soporte estratégico para la toma de decisiones, agregando valor al desempeño institucional "]
[4,2,2,"Asesoría y formulación de recomendaciones con alcance preventivo y  de fomento a la cultura del control"]
[4,3,1,"Fortalecer la gestión de las plataformas tecnológicas de la entidad (hardware y software)"]
[4,3,2,"Implementar los lineamientos que fortalezcan la política de Gobierno Digital en la entidad"]
[4,4,1,"Asegurar en lo jurídico el fortalecimiento del modelo de transformación organizacional"]
[4,5,1,"Foralecer la  Gestión documental integral"]
[4,5,2,"Fortalecer la Gestión de atención al ciudadano"]
[4,5,3,"Fortalecer el Sistema Integrado de Gestión Financiera    SI-CAPITAL."]
[4,6,1,"Garantizar una adecuada prestación del servicio de aseo"]
[4,7,1,"Fortalecer la gestión de la operación del Relleno Sanitario Doña Juana (RSDJ)"]
[4,7,2,"Fortalecer la Gestión  Social para  la zona de influencia del Relleno Sanitario Doña Juana.\""]
[4,8,1,"Promover y fortalecer el esquema de aprovechamiento en el servicio de aseo "]
[4,8,2,"Dignificar la labor de la población recicladora de oficio"]
[4,9,1,"Modernizar y Actualizar las luminarias en Parques y Vías"]
[4,9,2,"Fortalecer la prestación del Servicio de Alumbrado Publico en el Distrito Capital"]
[4,9,3,"Garantizar que la prestación de los  servicios funerarios \n"]
[4,9,4,"Revitalizar los Cementerios de propiedad del Distrito Capital"]
[4,9,5,"Consolidar la prestación de los Servicios Funerarios Integrales en los cementerios del distrito"]
[4,9,6,"Otorgar subsidios funerarios  a población en estado de vulnerabilidad "]
[5,1,1,"Fortalecer el Modelo de Transformación Organizacional articulado con el Modelo Integrado de Planeación y Gestión (MIPG)"]
[5,2,1,"Fortalecer la gestión de las plataformas tecnológicas de la entidad (hardware y software)"]
[5,2,2,"Implementar los lineamientos que fortalezcan la política de Gobierno Digital en la entidad"]
[5,3,1,"Asegurar en lo jurídico el fortalecimiento del modelo de transformación organizacional"]
[5,4,1,"Foralecer la  Gestión documental integral"]
[5,4,2,"Fortalecer el Sistema Integrado de Gestión Financiera    SI-CAPITAL."]
[5,5,1,"Garantizar una adecuada prestación del servicio de aseo"]
[5,6,1,"Fortalecer la gestión de la operación del Relleno Sanitario Doña Juana (RSDJ)"]
[5,6,2,"Fortalecer la Gestión  Social para  la zona de influencia del Relleno Sanitario Doña Juana.\""]
[5,7,1,"Promover y fortalecer el esquema de aprovechamiento en el servicio de aseo "]
[5,8,1,"Modernizar y Actualizar las luminarias en Parques y Vías"]
[5,8,2,"Fortalecer la prestación del Servicio de Alumbrado Publico en el Distrito Capital"]
[5,8,3,"Garantizar que la prestación de los  servicios funerarios \n"]
[5,8,4,"Revitalizar los Cementerios de propiedad del Distrito Capital"]
[5,8,5,"Consolidar la prestación de los Servicios Funerarios Integrales en los cementerios del distrito"]
[5,8,6,"Otorgar subsidios funerarios  a población en estado de vulnerabilidad "]
[6,1,1,"Fortalecer los estándares de transparencia y de acceso a la información pública"]
[6,1,2,"Fortalecer el Modelo de Transformación Organizacional articulado con el Modelo Integrado de Planeación y Gestión (MIPG)"]
[6,2,1,"Soporte estratégico para la toma de decisiones, agregando valor al desempeño institucional "]
[6,2,2,"Asesoría y formulación de recomendaciones con alcance preventivo y  de fomento a la cultura del control"]
[6,3,1,"Fortalecer la gestión de las plataformas tecnológicas de la entidad (hardware y software)"]
[6,3,2,"Implementar los lineamientos que fortalezcan la política de Gobierno Digital en la entidad"]
[6,4,1,"Mantener el reconocimiento institucional"]
[6,5,1,"Asegurar en lo jurídico el fortalecimiento del modelo de transformación organizacional"]
[6,6,1,"Foralecer la  Gestión documental integral"]
[6,6,2,"Fortalecer el Sistema Integrado de Gestión Financiera    SI-CAPITAL."]
[6,6,3,"Hacer de la UAESP un referente en el Distrito, por su ambiente laboral"]
[6,6,4,"Coordinar acciones que promuevan la austeridad en el gasto"]
[6,7,1,"Establecer altos estándares de limpieza integral en el Distrito Capital"]
[6,7,2,"Garantizar una adecuada prestación del servicio de aseo"]
[6,7,3,"Garantizar el cumplimiento de las Instancias de Coordinación enfocadas en el desarrollo del Decreto Distrital 190 de 2006 (PMIRS) y sus modificaciones "]
[6,8,1,"Fortalecer la gestión de la operación del Relleno Sanitario Doña Juana (RSDJ)"]
[6,8,2,"Fortalecer la Gestión  Social para  la zona de influencia del Relleno Sanitario Doña Juana.\""]
[6,9,1,"Mejorar y fortalecer la capacidad operativa para el aprovechamiento"]
[6,9,2,"Promover y fortalecer el esquema de aprovechamiento en el servicio de aseo "]
[6,9,3,"Dignificar la labor de la población recicladora de oficio"]
[6,9,4,"Promover el fortalecimiento empresarial para las organizaciones de recicladores."]
[6,10,1,"Revitalizar los Cementerios de propiedad del Distrito Capital"]
[6,10,2,"Otorgar subsidios funerarios  a población en estado de vulnerabilidad "]
[7,1,1,"Fortalecer los estándares de transparencia y de acceso a la información pública"]
[7,1,2,"Fortalecer el Modelo de Transformación Organizacional articulado con el Modelo Integrado de Planeación y Gestión (MIPG)"]
[7,2,1,"Fortalecer la gestión de las plataformas tecnológicas de la entidad (hardware y software)"]
[7,3,1,"Asegurar en lo jurídico el fortalecimiento del modelo de transformación organizacional"]
[7,4,1,"Foralecer la  Gestión documental integral"]
[7,4,2,"Fortalecer la Gestión de atención al ciudadano"]
[7,4,3,"Fortalecer el Sistema Integrado de Gestión Financiera    SI-CAPITAL."]
[7,4,4,"Fortalecer la Infraestructura de todas las sedes que estén a cargo de la entidad en el marco de los requisitos legales."]
[7,5,1,"Garantizar una adecuada prestación del servicio de aseo"]
[7,6,1,"Fortalecer la gestión de la operación del Relleno Sanitario Doña Juana (RSDJ)"]
[7,6,2,"Fortalecer la Gestión  Social para  la zona de influencia del Relleno Sanitario Doña Juana.\""]
[7,6,1,"Promover y fortalecer el esquema de aprovechamiento en el servicio de aseo "]
[7,7,1,"Revitalizar los Cementerios de propiedad del Distrito Capital"]
[7,7,1,"Otorgar subsidios funerarios  a población en estado de vulnerabilidad "]
[8,1,1,"Fortalecer los estándares de transparencia y de acceso a la información pública"]
[8,1,2,"Fortalecer el Modelo de Transformación Organizacional articulado con el Modelo Integrado de Planeación y Gestión (MIPG)"]
[8,2,1,"Soporte estratégico para la toma de decisiones, agregando valor al desempeño institucional "]
[8,2,2,"Asesoría y formulación de recomendaciones con alcance preventivo y  de fomento a la cultura del control"]
[8,3,1,"Fortalecer la gestión de las plataformas tecnológicas de la entidad (hardware y software)"]
[8,3,2,"Implementar los lineamientos que fortalezcan la política de Gobierno Digital en la entidad"]
[8,4,1,"Asegurar en lo jurídico el fortalecimiento del modelo de transformación organizacional"]
[8,5,1,"Foralecer la  Gestión documental integral"]
[8,5,2,"Fortalecer el Sistema Integrado de Gestión Financiera    SI-CAPITAL."]
[8,6,1,"Garantizar una adecuada prestación del servicio de aseo"]
[8,7,1,"Fortalecer la gestión de la operación del Relleno Sanitario Doña Juana (RSDJ)"]
[8,7,2,"Fortalecer la Gestión  Social para  la zona de influencia del Relleno Sanitario Doña Juana.\""]
[8,8,1,"Promover y fortalecer el esquema de aprovechamiento en el servicio de aseo "]
[8,8,2,"Dignificar la labor de la población recicladora de oficio"]
[8,9,1,"Revitalizar los Cementerios de propiedad del Distrito Capital"]
[8,9,2,"Otorgar subsidios funerarios  a población en estado de vulnerabilidad "]
[9,1,1,"Fortalecer los estándares de transparencia y de acceso a la información pública"]
[9,1,2,"Fortalecer el Modelo de Transformación Organizacional articulado con el Modelo Integrado de Planeación y Gestión (MIPG)"]
[9,2,1,"Fortalecer la gestión de las plataformas tecnológicas de la entidad (hardware y software)"]
[9,2,2,"Implementar los lineamientos que fortalezcan la política de Gobierno Digital en la entidad"]
[9,3,1,"Mantener el reconocimiento institucional"]
[9,4,1,"Asegurar en lo jurídico el fortalecimiento del modelo de transformación organizacional"]
[9,5,1,"Foralecer la  Gestión documental integral"]
[9,5,2,"Fortalecer el Sistema Integrado de Gestión Financiera    SI-CAPITAL."]
[9,5,3,"Hacer de la UAESP un referente en el Distrito, por su ambiente laboral"]
[9,6,1,"Establecer altos estándares de limpieza integral en el Distrito Capital"]
[9,6,2,"Garantizar una adecuada prestación del servicio de aseo"]
[9,6,3,"Garantizar el cumplimiento de las Instancias de Coordinación enfocadas en el desarrollo del Decreto Distrital 190 de 2006 (PMIRS) y sus modificaciones "]
[9,7,1,"Fortalecer la gestión de la operación del Relleno Sanitario Doña Juana (RSDJ)"]
[9,7,2,"Fortalecer la Gestión  Social para  la zona de influencia del Relleno Sanitario Doña Juana.\""]
[9,8,1,"Promover y fortalecer el esquema de aprovechamiento en el servicio de aseo "]
[9,8,2,"Dignificar la labor de la población recicladora de oficio"]
[9,9,1,"Promover el fortalecimiento empresarial para las organizaciones de recicladores."]
[9,9,2,"Revitalizar los Cementerios de propiedad del Distrito Capital"]
[9,9,3,"Otorgar subsidios funerarios  a población en estado de vulnerabilidad "]
[10,1,1,"Fortalecer los estándares de transparencia y de acceso a la información pública"]
[10,1,2,"Fortalecer el Modelo de Transformación Organizacional articulado con el Modelo Integrado de Planeación y Gestión (MIPG)"]
[10,2,1,"Soporte estratégico para la toma de decisiones, agregando valor al desempeño institucional "]
[10,2,2,"Asesoría y formulación de recomendaciones con alcance preventivo y  de fomento a la cultura del control"]
[10,3,1,"Fortalecer la gestión de las plataformas tecnológicas de la entidad (hardware y software)"]
[10,3,2,"Implementar los lineamientos que fortalezcan la política de Gobierno Digital en la entidad"]
[10,4,1,"Asegurar en lo jurídico el fortalecimiento del modelo de transformación organizacional"]
[10,5,1,"Foralecer la  Gestión documental integral"]
[10,5,2,"Fortalecer el Sistema Integrado de Gestión Financiera    SI-CAPITAL."]
[10,6,1,"Garantizar una adecuada prestación del servicio de aseo"]
[10,7,1,"Fortalecer la gestión de la operación del Relleno Sanitario Doña Juana (RSDJ)"]
[10,7,2,"Fortalecer la Gestión  Social para  la zona de influencia del Relleno Sanitario Doña Juana.\""]
[10,8,1,"Promover y fortalecer el esquema de aprovechamiento en el servicio de aseo "]
[10,8,2,"Dignificar la labor de la población recicladora de oficio"]
[10,9,1,"Revitalizar los Cementerios de propiedad del Distrito Capital"]
[10,9,2,"Otorgar subsidios funerarios  a población en estado de vulnerabilidad "]
[11,1,1,"Fortalecer el Modelo de Transformación Organizacional articulado con el Modelo Integrado de Planeación y Gestión (MIPG)"]
[11,2,1,"Fortalecer la gestión de las plataformas tecnológicas de la entidad (hardware y software)"]
[11,2,2,"Implementar los lineamientos que fortalezcan la política de Gobierno Digital en la entidad"]
[11,3,1,"Asegurar en lo jurídico el fortalecimiento del modelo de transformación organizacional"]
[11,4,1,"Foralecer la  Gestión documental integral"]
[11,4,2,"Fortalecer el Sistema Integrado de Gestión Financiera    SI-CAPITAL."]
[11,5,1,"Garantizar una adecuada prestación del servicio de aseo"]
[11,6,1,"Fortalecer la gestión de la operación del Relleno Sanitario Doña Juana (RSDJ)"]
[11,6,2,"Fortalecer la Gestión  Social para  la zona de influencia del Relleno Sanitario Doña Juana.\""]
[11,7,1,"Promover y fortalecer el esquema de aprovechamiento en el servicio de aseo "]
[11,8,1,"Revitalizar los Cementerios de propiedad del Distrito Capital"]
[11,8,2,"Otorgar subsidios funerarios  a población en estado de vulnerabilidad "]
[12,1,1,"Fortalecer los estándares de transparencia y de acceso a la información pública"]
[12,1,2,"Fortalecer el Modelo de Transformación Organizacional articulado con el Modelo Integrado de Planeación y Gestión (MIPG)"]
[12,2,1,"Soporte estratégico para la toma de decisiones, agregando valor al desempeño institucional "]
[12,2,2,"Asesoría y formulación de recomendaciones con alcance preventivo y  de fomento a la cultura del control"]
[12,3,1,"Fortalecer la gestión de las plataformas tecnológicas de la entidad (hardware y software)"]
[12,3,2,"Implementar los lineamientos que fortalezcan la política de Gobierno Digital en la entidad"]
[12,4,1,"Mantener el reconocimiento institucional"]
[12,5,1,"Asegurar en lo jurídico el fortalecimiento del modelo de transformación organizacional"]
[12,6,1,"Foralecer la  Gestión documental integral"]
[12,6,2,"Fortalecer la Gestión de atención al ciudadano"]
[12,6,3,"Fortalecer el Sistema Integrado de Gestión Financiera    SI-CAPITAL."]
[12,6,4,"Hacer de la UAESP un referente en el Distrito, por su ambiente laboral"]
[12,6,5,"Fortalecer la Infraestructura de todas las sedes que estén a cargo de la entidad en el marco de los requisitos legales."]
[12,6,6,"Coordinar acciones que promuevan la austeridad en el gasto"]
[12,7,1,"Establecer altos estándares de limpieza integral en el Distrito Capital"]
[12,7,2,"Garantizar una adecuada prestación del servicio de aseo"]
[12,8,1,"Fortalecer la gestión de la operación del Relleno Sanitario Doña Juana (RSDJ)"]
[12,8,2,"Fortalecer la Gestión  Social para  la zona de influencia del Relleno Sanitario Doña Juana.\""]
[12,9,1,"Dignificar la labor de la población recicladora de oficio"]
[12,9,2,"Promover el fortalecimiento empresarial para las organizaciones de recicladores."]
[12,10,1,"Otorgar subsidios funerarios  a población en estado de vulnerabilidad "]

{"sheet":"PLAN DE ACCIÓN INSTITUCIONAL","index":3,"n_rows":77,"n_cols":56,"rows_kept":77,"cut":false,"hidden":false,"merged":[[67,1,68,1],[34,4,35,4],[9,9,10,9],[9,4,10,4],[9,3,10,3],[21,4,25,4],[12,4,15,4],[16,4,20,4],[39,2,40,2],[39,3,40,3],[30,2,33,2],[28,4,29,4],[28,2,29,2],[28,3,29,3],[59,2,61,2],[59,3,61,3],[0,1,0,55],[1,1,1,54],[2,1,2,55],[3,1,3,9],[3,10,3,13],[3,14,3,16],[3,23,3,25],[3,26,3,28],[3,29,3,31],[3,32,3,34],[3,35,3,37],[3,44,3,46],[3,53,4,53],[3,54,4,54],[3,38,3,39],[71,4,72,4],[73,2,74,2],[73,3,74,3],[5,2,8,2],[9,2,11,2],[34,3,35,3],[55,4,56,4],[52,2,54,2],[52,3,54,3],[52,4,54,4],[41,2,45,2],[41,3,44,3],[67,2,68,2],[67,3,68,3],[75,2,76,2],[75,3,76,3],[12,3,15,3],[16,3,20,3],[49,2,50,2],[55,2,56,2],[55,3,56,3],[12,2,15,2],[16,2,20,2],[21,2,26,2],[21,3,25,3],[34,2,37,2],[69,2,72,2],[64,2,66,2],[64,3,66,3],[71,3,72,3]]}
[null,"UNIDAD ADMINISTRATIVA ESPECIAL DE SERVICIOS PÚBLICOS- UAESP"]
[null,"PROCESO DE DIRECCIONAMIENTO ESTRATÉGICO"]
[null,"PLAN DE ACCIÓN INSTITUCIONAL VIGENCIA 2019  - Versión 2"]
[null,null,null,null,null,null,null,null,null,null,"PLAN ESTRATÉGICO INSTITUCIONAL",null,null,null,"PLAN DE DESARROLLO",null,null,null,"ENERO",null,null,"FEBRERO",null,"MARZO",null,null,"ABRIL",null,null,"MAYO",null,null,"JUNIO",null,null,"JULIO",null,null,"AGOSTO",null,null,null,"SEPTIEMBRE",null,"OCTUBRE",null,null,null,"NOVIEMBRE",null,null,"DICIEMBRE",null,"ACUMULADO FRENTE AL CUMPLIMIENTO DEL HITO","ACUMULADO FRENTE AL CUMPLIMIENTO DE LA INICIATIVA"]
[null,"Dependencia","Iniciativa (Plan o Proyecto)","Meta","Indicador de la meta","Hitos Claves","% incidencia en la meta","Fecha inicio del hito","Fecha final del hito","Entregable del hito","Proyecto de inversión","Meta proyecto de inversión","Objetivo estratégico","Integración y asociación a los planes de la entidad.","Pilar / Eje","Programa","Meta PDD","Descripción cualitativa del avance  ","% Programado \nrespecto al Hito","%  ejecutado","Descripción cualitativa del avance  ","% Programado \nrespecto al Hito","% \nEjecutado","Descripción cualitativa del avance  ","% Programado \nrespecto al Hito","% \nEjecutado","Descripción cualitativa del avance  ","% Programado \nrespecto al Hito","% \nEjecutado","Descripción cualitativa del avance  ","% Programado \nrespecto al Hito","% \nEjecutado","Descripción cualitativa del avance  ","% Programado \nrespecto al Hito","% \nEjecutado","Descripción cualitativa del avance  ","% Programado \nrespecto al Hito","% \nEjecutado","Descripción cualitativa del avance  ","% Programado \nrespecto al Hito","% \nEjecutado","Descripción cualitativa del avance  ","% Programado \nrespecto al Hito","% \nEjecutado","Descripción cualitativa del avance  ","% Programado \nrespecto al Hito","% \nEjecutado","Descripción cualitativa del avance  ","% Programado \nrespecto al Hito","% \nEjecutado","Descripción cualitativa del avance  ","% Programado \nrespecto al Hito","% \nEjecutado"]
[null,"OFICINA ASESORA DE PLANEACIÓN - (OAP)","Fortalecer los estándares de transparencia y de acceso a la información pública","Mantener y/o disminuir el nivel del riesgo del índice de transparencia a de Bogotá D.C.","Resultado del índice de transparencia","Cumplir con los estándares del índice de transparencia de Bogotá",1,"2020-01-01","2020-12-31","1 Informe semestral de seguimiento al Índice de Transparencia","1042-Fortalecimiento institucional en la gestión pública ","Desarrollar y fortalecer el modelo el transformación organizacional de la entidad.","Fortalecimiento Institucional: Consolidar una entidad moderna y efectiva constituida por un equipo comprometido con el logro de los objetivos institucionales","Plan Anticorrupción y de Atención al Ciudadano","Eje 7 - Gobierno Legítimo, fortalecimiento local y eficiencia","42 - Transparencia, gestión pública y servicio a la ciudadanía.","Gestionar el 100% del plan de adecuación y sostenibilidad SIG-MIPG",{"$f":"IFERROR(VLOOKUP($F6,#REF!,3,0),\"\")","v":""},null,{"$f":"IFERROR(VLOOKUP($F6,#REF!,2,0)/100,\"0\")","v":"0"},{"$f":"IFERROR(VLOOKUP($F6,#REF!,3,0),\"\")","v":""},null,{"$f":"IFERROR(VLOOKUP($F6,#REF!,2,0)/100,\"0\")","v":"0"},{"$f":"IFERROR(VLOOKUP($F6,#REF!,3,0),\"\")","v":""},0.3,{"$f":"IFERROR(VLOOKUP($F6,#REF!,2,0)/100,\"0\")","v":"0"},{"$f":"IFERROR(VLOOKUP($F6,#REF!,3,0),\"\")","v":""},0.14000000000000001,{"$f":"IFERROR(VLOOKUP($F6,#REF!,2,0)/100,\"0\")","v":"0"},{"$f":"IFERROR(VLOOKUP($F6,#REF!,3,0),\"\")","v":""},null,{"$f":"IFERROR(VLOOKUP($F6,#REF!,2,0)/100,\"0\")","v":"0"},{"$f":"IFERROR(VLOOKUP($F6,#REF!,3,0),\"\")","v":""},0.14000000000000001,{"$f":"IFERROR(VLOOKUP($F6,#REF!,2,0)/100,\"0\")","v":"0"},{"$f":"IFERROR(VLOOKUP($F6,#REF!,3,0),\"\")","v":""},null,{"$f":"IFERROR(VLOOKUP($F6,#REF!,2,0)/100,\"0\")","v":"0"},{"$f":"IFERROR(VLOOKUP($F6,#REF!,3,0),\"\")","v":""},0.14000000000000001,{"$f":"IFERROR(VLOOKUP($F6,#REF!,2,0)/100,\"0\")","v":"0"},{"$f":"IFERROR(VLOOKUP($F6,#REF!,3,0),\"\")","v":""},null,{"$f":"IFERROR(VLOOKUP($F6,#REF!,2,0)/100,\"0\")","v":"0"},{"$f":"IFERROR(VLOOKUP($F6,#REF!,3,0),\"\")","v":""},0.14000000000000001,{"$f":"IFERROR(VLOOKUP($F6,#REF!,2,0)/100,\"0\")","v":"0"},{"$f":"IFERROR(VLOOKUP($F6,#REF!,3,0),\"\")","v":""},null,{"$f":"IFERROR(VLOOKUP($F6,#REF!,2,0)/100,\"0\")","v":"0"},{"$f":"IFERROR(VLOOKUP($F6,#REF!,3,0),\"\")","v":""},0.14000000000000001,{"$f":"IFERROR(VLOOKUP($F6,#REF!,2,0)/100,\"0\")","v":"0"},{"$f":"T6+W6+Z6+AC6+AF6+AI6+AL6+AO6+AR6+AU6+AX6+BA6","v":0},{"$f":"((T6+W6+Z6+AC6+AF6+AI6+AL6+AO6+AR6+AU6+AX6+BA6)*G6)","v":0}]
[null,"OFICINA ASESORA DE PLANEACIÓN - (OAP)",null,"Cumplimiento del 100% de la estrategia de rendición de cuentas","Informe de seguimiento de la estrategia de rendición de cuentas publicado ","Formular, implementar y realizar seguimiento a la estrategia de rendición de cuentas",1,"2020-01-01","2020-12-31","Informe de seguimiento a la estrategia de rendición de cuentas de la Unidad","1042-Fortalecimiento institucional en la gestión pública ","Desarrollar y fortalecer el modelo el transformación organizacional de la entidad.","Fortalecimiento Institucional: Consolidar una entidad moderna y efectiva constituida por un equipo comprometido con el logro de los objetivos institucionales","Plan Anticorrupción y de Atención al Ciudadano","Eje 7 - Gobierno Legítimo, fortalecimiento local y eficiencia","42 - Transparencia, gestión pública y servicio a la ciudadanía.","Gestionar el 100% del plan de adecuación y sostenibilidad SIG-MIPG",{"$f":"IFERROR(VLOOKUP($F7,#REF!,3,0),\"\")","v":""},null,{"$f":"IFERROR(VLOOKUP($F7,#REF!,2,0)/100,\"0\")","v":"0"},{"$f":"IFERROR(VLOOKUP($F7,#REF!,3,0),\"\")","v":""},null,{"$f":"IFERROR(VLOOKUP($F7,#REF!,2,0)/100,\"0\")","v":"0"},{"$f":"IFERROR(VLOOKUP($F7,#REF!,3,0),\"\")","v":""},0.25,{"$f":"IFERROR(VLOOKUP($F7,#REF!,2,0)/100,\"0\")","v":"0"},{"$f":"IFERROR(VLOOKUP($F7,#REF!,3,0),\"\")","v":""},null,{"$f":"IFERROR(VLOOKUP($F7,#REF!,2,0)/100,\"0\")","v":"0"},{"$f":"IFERROR(VLOOKUP($F7,#REF!,3,0),\"\")","v":""},null,{"$f":"IFERROR(VLOOKUP($F7,#REF!,2,0)/100,\"0\")","v":"0"},{"$f":"IFERROR(VLOOKUP($F7,#REF!,3,0),\"\")","v":""},0.25,{"$f":"IFERROR(VLOOKUP($F7,#REF!,2,0)/100,\"0\")","v":"0"},{"$f":"IFERROR(VLOOKUP($F7,#REF!,3,0),\"\")","v":""},null,{"$f":"IFERROR(VLOOKUP($F7,#REF!,2,0)/100,\"0\")","v":"0"},{"$f":"IFERROR(VLOOKUP($F7,#REF!,3,0),\"\")","v":""},null,{"$f":"IFERROR(VLOOKUP($F7,#REF!,2,0)/100,\"0\")","v":"0"},{"$f":"IFERROR(VLOOKUP($F7,#REF!,3,0),\"\")","v":""},0.25,{"$f":"IFERROR(VLOOKUP($F7,#REF!,2,0)/100,\"0\")","v":"0"},{"$f":"IFERROR(VLOOKUP($F7,#REF!,3,0),\"\")","v":""},null,{"$f":"IFERROR(VLOOKUP($F7,#REF!,2,0)/100,\"0\")","v":"0"},{"$f":"IFERROR(VLOOKUP($F7,#REF!,3,0),\"\")","v":""},null,{"$f":"IFERROR(VLOOKUP($F7,#REF!,2,0)/100,\"0\")","v":"0"},{"$f":"IFERROR(VLOOKUP($F7,#REF!,3,0),\"\")","v":""},0.25,{"$f":"IFERROR(VLOOKUP($F7,#REF!,2,0)/100,\"0\")","v":"0"},{"$f":"T7+W7+Z7+AC7+AF7+AI7+AL7+AO7+AR7+AU7+AX7+BA7","v":0},{"$f":"((T7+W7+Z7+AC7+AF7+AI7+AL7+AO7+AR7+AU7+AX7+BA7)*G7)","v":0}]
[null,"OFICINA ASESORA DE PLANEACIÓN - (OAP)",null,"Fortalecer la implementación del PAAC","Monitoreos realizados","Formular y monitorear el Plan Anticorrupción y Atención al Ciudadano",1,"2020-01-01","2020-12-31","Evidencias de monitoreo realizado al PAAC","1042-Fortalecimiento institucional en la gestión pública ","Desarrollar y fortalecer el modelo el transformación organizacional de la entidad.","Fortalecimiento Institucional: Consolidar una entidad moderna y efectiva constituida por un equipo comprometido con el logro de los objetivos institucionales","Plan Anticorrupción y de Atención al Ciudadano","Eje 7 - Gobierno Legítimo, fortalecimiento local y eficiencia","42 - Transparencia, gestión pública y servicio a la ciudadanía.","Gestionar el 100% del plan de adecuación y sostenibilidad SIG-MIPG",{"$f":"IFERROR(VLOOKUP($F8,#REF!,3,0),\"\")","v":""},null,{"$f":"IFERROR(VLOOKUP($F8,#REF!,2,0)/100,\"0\")","v":"0"},{"$f":"IFERROR(VLOOKUP($F8,#REF!,3,0),\"\")","v":""},0.3,0,{"$f":"IFERROR(VLOOKUP($F8,#REF!,3,0),\"\")","v":""},null,{"$f":"IFERROR(VLOOKUP($F8,#REF!,2,0)/100,\"0\")","v":"0"},{"$f":"IFERROR(VLOOKUP($F8,#REF!,3,0),\"\")","v":""},0.14000000000000001,{"$f":"IFERROR(VLOOKUP($F8,#REF!,2,0)/100,\"0\")","v":"0"},{"$f":"IFERROR(VLOOKUP($F8,#REF!,3,0),\"\")","v":""},null,{"$f":"IFERROR(VLOOKUP($F8,#REF!,2,0)/100,\"0\")","v":"0"},{"$f":"IFERROR(VLOOKUP($F8,#REF!,3,0),\"\")","v":""},0.14000000000000001,{"$f":"IFERROR(VLOOKUP($F8,#REF!,2,0)/100,\"0\")","v":"0"},{"$f":"IFERROR(VLOOKUP($F8,#REF!,3,0),\"\")","v":""},null,{"$f":"IFERROR(VLOOKUP($F8,#REF!,2,0)/100,\"0\")","v":"0"},{"$f":"IFERROR(VLOOKUP($F8,#REF!,3,0),\"\")","v":""},0.14000000000000001,{"$f":"IFERROR(VLOOKUP($F8,#REF!,2,0)/100,\"0\")","v":"0"},{"$f":"IFERROR(VLOOKUP($F8,#REF!,3,0),\"\")","v":""},null,{"$f":"IFERROR(VLOOKUP($F8,#REF!,2,0)/100,\"0\")","v":"0"},{"$f":"IFERROR(VLOOKUP($F8,#REF!,3,0),\"\")","v":""},0.14000000000000001,{"$f":"IFERROR(VLOOKUP($F8,#REF!,2,0)/100,\"0\")","v":"0"},{"$f":"IFERROR(VLOOKUP($F8,#REF!,3,0),\"\")","v":""},null,{"$f":"IFERROR(VLOOKUP($F8,#REF!,2,0)/100,\"0\")","v":"0"},{"$f":"IFERROR(VLOOKUP($F8,#REF!,3,0),\"\")","v":""},0.14000000000000001,{"$f":"IFERROR(VLOOKUP($F8,#REF!,2,0)/100,\"0\")","v":"0"},0,0]
[null,"OFICINA ASESORA DE PLANEACIÓN - (OAP)",null,"Fortalecer la participación ciudadana de la entidad .","Monitoreos realizados","Formular, implementar y realizar seguimiento al Plan de Acción de Participación Ciudadana.",1,"2020-01-01","2020-12-31","Informe de seguimiento al Plan de Acción de Participación Ciudadana","1042-Fortalecimiento institucional en la gestión pública ","Desarrollar y fortalecer el modelo el transformación organizacional de la entidad.","Fortalecimiento Institucional: Consolidar una entidad moderna y efectiva constituida por un equipo comprometido con el logro de los objetivos institucionales","Plan Anticorrupción y de Atención al Ciudadano","Eje 7 - Gobierno Legítimo, fortalecimiento local y eficiencia","42 - Transparencia, gestión pública y servicio a la ciudadanía.","Gestionar el 100% del plan de adecuación y sostenibilidad SIG-MIPG",{"$f":"IFERROR(VLOOKUP($F9,#REF!,3,0),\"\")","v":""},null,{"$f":"IFERROR(VLOOKUP($F9,#REF!,2,0)/100,\"0\")","v":"0"},{"$f":"IFERROR(VLOOKUP($F9,#REF!,3,0),\"\")","v":""},null,{"$f":"IFERROR(VLOOKUP($F9,#REF!,2,0)/100,\"0\")","v":"0"},{"$f":"IFERROR(VLOOKUP($F9,#REF!,3,0),\"\")","v":""},null,{"$f":"IFERROR(VLOOKUP($F9,#REF!,2,0)/100,\"0\")","v":"0"},{"$f":"IFERROR(VLOOKUP($F9,#REF!,3,0),\"\")","v":""},0.25,{"$f":"IFERROR(VLOOKUP($F9,#REF!,2,0)/100,\"0\")","v":"0"},{"$f":"IFERROR(VLOOKUP($F9,#REF!,3,0),\"\")","v":""},null,{"$f":"IFERROR(VLOOKUP($F9,#REF!,2,0)/100,\"0\")","v":"0"},{"$f":"IFERROR(VLOOKUP($F9,#REF!,3,0),\"\")","v":""},null,{"$f":"IFERROR(VLOOKUP($F9,#REF!,2,0)/100,\"0\")","v":"0"},{"$f":"IFERROR(VLOOKUP($F9,#REF!,3,0),\"\")","v":""},0.25,{"$f":"IFERROR(VLOOKUP($F9,#REF!,2,0)/100,\"0\")","v":"0"},{"$f":"IFERROR(VLOOKUP($F9,#REF!,3,0),\"\")","v":""},null,{"$f":"IFERROR(VLOOKUP($F9,#REF!,2,0)/100,\"0\")","v":"0"},{"$f":"IFERROR(VLOOKUP($F9,#REF!,3,0),\"\")","v":""},null,{"$f":"IFERROR(VLOOKUP($F9,#REF!,2,0)/100,\"0\")","v":"0"},{"$f":"IFERROR(VLOOKUP($F9,#REF!,3,0),\"\")","v":""},0.25,{"$f":"IFERROR(VLOOKUP($F9,#REF!,2,0)/100,\"0\")","v":"0"},{"$f":"IFERROR(VLOOKUP($F9,#REF!,3,0),\"\")","v":""},null,{"$f":"IFERROR(VLOOKUP($F9,#REF!,2,0)/100,\"0\")","v":"0"},{"$f":"IFERROR(VLOOKUP($F9,#REF!,3,0),\"\")","v":""},0.25,{"$f":"IFERROR(VLOOKUP($F9,#REF!,2,0)/100,\"0\")","v":"0"},0,0]
[null,"OFICINA ASESORA DE PLANEACIÓN - (OAP)","Fortalecer el Modelo de Transformación Organizacional articulado con el Modelo Integrado de Planeación y Gestión (MIPG)","Implementación de MIPG en la UAESP de acuerdo con el Plan de Desarrollo de la Vigencia","Mantenimiento y sostenibilidad del MIPG","Seguimiento a la implementación de las 17 políticas de gestión y desempeño institucional",0.5,"2020-01-02","2020-12-31","1 informe de avance trimestral del cumplimiento de los estándares del MIPG","1042-Fortalecimiento institucional en la gestión pública ","Desarrollar y fortalecer el modelo el transformación organizacional de la entidad.","Fortalecimiento Institucional: Consolidar una entidad moderna y efectiva constituida por un equipo comprometido con el logro de los objetivos institucionales","Plan Anticorrupción y de Atención al Ciudadano","Eje 7 - Gobierno Legítimo, fortalecimiento local y eficiencia","42 - Transparencia, gestión pública y servicio a la ciudadanía.","Gestionar el 100% del plan de adecuación y sostenibilidad SIG-MIPG",{"$f":"IFERROR(VLOOKUP($F10,#REF!,3,0),\"\")","v":""},null,{"$f":"IFERROR(VLOOKUP($F10,#REF!,2,0)/100,\"0\")","v":"0"},{"$f":"IFERROR(VLOOKUP($F10,#REF!,3,0),\"\")","v":""},null,{"$f":"IFERROR(VLOOKUP($F10,#REF!,2,0)/100,\"0\")","v":"0"},{"$f":"IFERROR(VLOOKUP($F10,#REF!,3,0),\"\")","v":""},0.25,{"$f":"IFERROR(VLOOKUP($F10,#REF!,2,0)/100,\"0\")","v":"0"},{"$f":"IFERROR(VLOOKUP($F10,#REF!,3,0),\"\")","v":""},null,{"$f":"IFERROR(VLOOKUP($F10,#REF!,2,0)/100,\"0\")","v":"0"},{"$f":"IFERROR(VLOOKUP($F10,#REF!,3,0),\"\")","v":""},null,{"$f":"IFERROR(VLOOKUP($F10,#REF!,2,0)/100,\"0\")","v":"0"},{"$f":"IFERROR(VLOOKUP($F10,#REF!,3,0),\"\")","v":""},0.25,{"$f":"IFERROR(VLOOKUP($F10,#REF!,2,0)/100,\"0\")","v":"0"},{"$f":"IFERROR(VLOOKUP($F10,#REF!,3,0),\"\")","v":""},null,{"$f":"IFERROR(VLOOKUP($F10,#REF!,2,0)/100,\"0\")","v":"0"},{"$f":"IFERROR(VLOOKUP($F10,#REF!,3,0),\"\")","v":""},null,{"$f":"IFERROR(VLOOKUP($F10,#REF!,2,0)/100,\"0\")","v":"0"},{"$f":"IFERROR(VLOOKUP($F10,#REF!,3,0),\"\")","v":""},0.25,{"$f":"IFERROR(VLOOKUP($F10,#REF!,2,0)/100,\"0\")","v":"0"},{"$f":"IFERROR(VLOOKUP($F10,#REF!,3,0),\"\")","v":""},null,{"$f":"IFERROR(VLOOKUP($F10,#REF!,2,0)/100,\"0\")","v":"0"},{"$f":"IFERROR(VLOOKUP($F10,#REF!,3,0),\"\")","v":""},null,{"$f":"IFERROR(VLOOKUP($F10,#REF!,2,0)/100,\"0\")","v":"0"},{"$f":"IFERROR(VLOOKUP($F10,#REF!,3,0),\"\")","v":""},0.25,{"$f":"IFERROR(VLOOKUP($F10,#REF!,2,0)/100,\"0\")","v":"0"},0,0]
[null,"OFICINA ASESORA DE PLANEACIÓN - (OAP)",null,null,null,"Divulgar los avances de la implementación del MIPG ",0.5,"2020-01-02","2020-12-31",null,"1042-Fortalecimiento institucional en la gestión pública ","Desarrollar y fortalecer el modelo el transformación organizacional de la entidad.","Fortalecimiento Institucional: Consolidar una entidad moderna y efectiva constituida por un equipo comprometido con el logro de los objetivos institucionales","Plan Anual de Adquisiciones","Eje 7 - Gobierno Legítimo, fortalecimiento local y eficiencia","42 - Transparencia, gestión pública y servicio a la ciudadanía.","Gestionar el 100% del plan de adecuación y sostenibilidad SIG-MIPG",{"$f":"IFERROR(VLOOKUP($F11,#REF!,3,0),\"\")","v":""},null,{"$f":"IFERROR(VLOOKUP($F11,#REF!,2,0)/100,\"0\")","v":"0"},{"$f":"IFERROR(VLOOKUP($F11,#REF!,3,0),\"\")","v":""},null,{"$f":"IFERROR(VLOOKUP($F11,#REF!,2,0)/100,\"0\")","v":"0"},{"$f":"IFERROR(VLOOKUP($F11,#REF!,3,0),\"\")","v":""},0.25,{"$f":"IFERROR(VLOOKUP($F11,#REF!,2,0)/100,\"0\")","v":"0"},{"$f":"IFERROR(VLOOKUP($F11,#REF!,3,0),\"\")","v":""},null,{"$f":"IFERROR(VLOOKUP($F11,#REF!,2,0)/100,\"0\")","v":"0"},{"$f":"IFERROR(VLOOKUP($F11,#REF!,3,0),\"\")","v":""},null,{"$f":"IFERROR(VLOOKUP($F11,#REF!,2,0)/100,\"0\")","v":"0"},{"$f":"IFERROR(VLOOKUP($F11,#REF!,3,0),\"\")","v":""},0.25,{"$f":"IFERROR(VLOOKUP($F11,#REF!,2,0)/100,\"0\")","v":"0"},{"$f":"IFERROR(VLOOKUP($F11,#REF!,3,0),\"\")","v":""},null,{"$f":"IFERROR(VLOOKUP($F11,#REF!,2,0)/100,\"0\")","v":"0"},{"$f":"IFERROR(VLOOKUP($F11,#REF!,3,0),\"\")","v":""},null,{"$f":"IFERROR(VLOOKUP($F11,#REF!,2,0)/100,\"0\")","v":"0"},{"$f":"IFERROR(VLOOKUP($F11,#REF!,3,0),\"\")","v":""},0.25,{"$f":"IFERROR(VLOOKUP($F11,#REF!,2,0)/100,\"0\")","v":"0"},{"$f":"IFERROR(VLOOKUP($F11,#REF!,3,0),\"\")","v":""},null,{"$f":"IFERROR(VLOOKUP($F11,#REF!,2,0)/100,\"0\")","v":"0"},{"$f":"IFERROR(VLOOKUP($F11,#REF!,3,0),\"\")","v":""},null,{"$f":"IFERROR(VLOOKUP($F11,#REF!,2,0)/100,\"0\")","v":"0"},{"$f":"IFERROR(VLOOKUP($F11,#REF!,3,0),\"\")","v":""},0.25,{"$f":"IFERROR(VLOOKUP($F11,#REF!,2,0)/100,\"0\")","v":"0"},0,0]
[null,"OFICINA ASESORA DE PLANEACIÓN - (OAP)",null,"Sostenibilidad del  MTO","Informe de seguimiento  de Sostenibilidad del MTO","Seguimiento a la ejecución de las actividades establecidad en el  Plan de Sostenibilidad del MTO",1,"2020-02-01","2020-12-31","Informe semestral del índice de madurez \ndel MTO","1042-Fortalecimiento institucional en la gestión pública ","Desarrollar y fortalecer el modelo el transformación organizacional de la entidad.","Fortalecimiento Institucional: Consolidar una entidad moderna y efectiva constituida por un equipo comprometido con el logro de los objetivos institucionales","Plan Anual de Adquisiciones","Eje 7 - Gobierno Legítimo, fortalecimiento local y eficiencia","42 - Transparencia, gestión pública y servicio a la ciudadanía.","Gestionar el 100% del plan de adecuación y sostenibilidad SIG-MIPG",{"$f":"IFERROR(VLOOKUP($F12,#REF!,3,0),\"\")","v":""},null,{"$f":"IFERROR(VLOOKUP($F12,#REF!,2,0)/100,\"0\")","v":"0"},{"$f":"IFERROR(VLOOKUP($F12,#REF!,3,0),\"\")","v":""},0.08,{"$f":"IFERROR(VLOOKUP($F12,#REF!,2,0)/100,\"0\")","v":"0"},{"$f":"IFERROR(VLOOKUP($F12,#REF!,3,0),\"\")","v":""},0.08,{"$f":"IFERROR(VLOOKUP($F12,#REF!,2,0)/100,\"0\")","v":"0"},{"$f":"IFERROR(VLOOKUP($F12,#REF!,3,0),\"\")","v":""},0.08,{"$f":"IFERROR(VLOOKUP($F12,#REF!,2,0)/100,\"0\")","v":"0"},{"$f":"IFERROR(VLOOKUP($F12,#REF!,3,0),\"\")","v":""},0.08,{"$f":"IFERROR(VLOOKUP($F12,#REF!,2,0)/100,\"0\")","v":"0"},{"$f":"IFERROR(VLOOKUP($F12,#REF!,3,0),\"\")","v":""},0.08,{"$f":"IFERROR(VLOOKUP($F12,#REF!,2,0)/100,\"0\")","v":"0"},{"$f":"IFERROR(VLOOKUP($F12,#REF!,3,0),\"\")","v":""},0.08,{"$f":"IFERROR(VLOOKUP($F12,#REF!,2,0)/100,\"0\")","v":"0"},{"$f":"IFERROR(VLOOKUP($F12,#REF!,3,0),\"\")","v":""},0.08,{"$f":"IFERROR(VLOOKUP($F12,#REF!,2,0)/100,\"0\")","v":"0"},{"$f":"IFERROR(VLOOKUP($F12,#REF!,3,0),\"\")","v":""},0.08,{"$f":"IFERROR(VLOOKUP($F12,#REF!,2,0)/100,\"0\")","v":"0"},{"$f":"IFERROR(VLOOKUP($F12,#REF!,3,0),\"\")","v":""},0.08,{"$f":"IFERROR(VLOOKUP($F12,#REF!,2,0)/100,\"0\")","v":"0"},{"$f":"IFERROR(VLOOKUP($F12,#REF!,3,0),\"\")","v":""},0.08,{"$f":"IFERROR(VLOOKUP($F12,#REF!,2,0)/100,\"0\")","v":"0"},{"$f":"IFERROR(VLOOKUP($F12,#REF!,3,0),\"\")","v":""},0.2,{"$f":"IFERROR(VLOOKUP($F12,#REF!,2,0)/100,\"0\")","v":"0"},0,0]
[null,"OFICINA DE CONTROL INTERNO - (OCI)","Soporte estratégico para la toma de decisiones, agregando valor al desempeño institucional ","Incrementar en 5 puntos porcentuales los resultado de medición en FURAG","Resultado vigencia actual - Resultado vigencia anterior","100% Informes de auditoría interna realizados y divulgados",0.5,"2020-01-02","2020-12-31","• Solicitud de necesidades de formación al Equipo de Trabajo 2020.\n\n• Jornadas de re - entrenamiento previo realización de Auditorías Internas.\n\n• Informes de auditoría comunicados a lideres de proceso, representante legal y CICCI.\n\n• Publicar informes de Auditoria en Página Web","1042-Fortalecimiento institucional en la gestión pública ","Desarrollar y fortalecer el modelo el transformación organizacional de la entidad.","Fortalecimiento Institucional: Consolidar una entidad moderna y efectiva constituida por un equipo comprometido con el logro de los objetivos institucionales","PLANES Y PROGRAMAS","Eje 7 - Gobierno Legítimo, fortalecimiento local y eficiencia","42 - Transparencia, gestión pública y servicio a la ciudadanía.","Gestionar el 100% del plan de adecuación y sostenibilidad SIG-MIPG",{"$f":"IFERROR(VLOOKUP($F13,#REF!,3,0),\"\")","v":""},null,{"$f":"IFERROR(VLOOKUP($F13,#REF!,2,0)/100,\"0\")","v":"0"},{"$f":"IFERROR(VLOOKUP($F13,#REF!,3,0),\"\")","v":""},0.16600000000000001,0,{"$f":"IFERROR(VLOOKUP($F13,#REF!,3,0),\"\")","v":""},null,{"$f":"IFERROR(VLOOKUP($F13,#REF!,2,0)/100,\"0\")","v":"0"},{"$f":"IFERROR(VLOOKUP($F13,#REF!,3,0),\"\")","v":""},0.16600000000000001,{"$f":"IFERROR(VLOOKUP($F13,#REF!,2,0)/100,\"0\")","v":"0"},{"$f":"IFERROR(VLOOKUP($F13,#REF!,3,0),\"\")","v":""},null,{"$f":"IFERROR(VLOOKUP($F13,#REF!,2,0)/100,\"0\")","v":"0"},{"$f":"IFERROR(VLOOKUP($F13,#REF!,3,0),\"\")","v":""},0.16600000000000001,{"$f":"IFERROR(VLOOKUP($F13,#REF!,2,0)/100,\"0\")","v":"0"},{"$f":"IFERROR(VLOOKUP($F13,#REF!,3,0),\"\")","v":""},null,{"$f":"IFERROR(VLOOKUP($F13,#REF!,2,0)/100,\"0\")","v":"0"},{"$f":"IFERROR(VLOOKUP($F13,#REF!,3,0),\"\")","v":""},0.16600000000000001,{"$f":"IFERROR(VLOOKUP($F13,#REF!,2,0)/100,\"0\")","v":"0"},{"$f":"IFERROR(VLOOKUP($F13,#REF!,3,0),\"\")","v":""},null,{"$f":"IFERROR(VLOOKUP($F13,#REF!,2,0)/100,\"0\")","v":"0"},{"$f":"IFERROR(VLOOKUP($F13,#REF!,3,0),\"\")","v":""},0.16600000000000001,{"$f":"IFERROR(VLOOKUP($F13,#REF!,2,0)/100,\"0\")","v":"0"},{"$f":"IFERROR(VLOOKUP($F13,#REF!,3,0),\"\")","v":""},null,{"$f":"IFERROR(VLOOKUP($F13,#REF!,2,0)/100,\"0\")","v":"0"},{"$f":"IFERROR(VLOOKUP($F13,#REF!,3,0),\"\")","v":""},0.16669999999999999,{"$f":"IFERROR(VLOOKUP($F13,#REF!,2,0)/100,\"0\")","v":"0"},0,0]
[null,"OFICINA DE CONTROL INTERNO - (OCI)",null,null,null,"Documentos relacionados con el procedimiento de Auditoría Interna, analizados y actualizados",0.15,"2020-01-02","2020-12-31","• Documentos del Procedimiento de Auditorías internas validados por el equipo auditor designado.\n\n• Solicitud de creación y/o modificación de documentos el procedimientos, si es necesario, producto de análisis","1042-Fortalecimiento institucional en la gestión pública ","Desarrollar y fortalecer el modelo el transformación organizacional de la entidad.","Fortalecimiento Institucional: Consolidar una entidad moderna y efectiva constituida por un equipo comprometido con el logro de los objetivos institucionales","PLANES Y PROGRAMAS","Eje 7 - Gobierno Legítimo, fortalecimiento local y eficiencia","42 - Transparencia, gestión pública y servicio a la ciudadanía.","Gestionar el 100% del plan de adecuación y sostenibilidad SIG-MIPG",{"$f":"IFERROR(VLOOKUP($F14,#REF!,3,0),\"\")","v":""},null,{"$f":"IFERROR(VLOOKUP($F14,#REF!,2,0)/100,\"0\")","v":"0"},null,0,{"$f":"IFERROR(VLOOKUP($F14,#REF!,2,0)/100,\"0\")","v":"0"},{"$f":"IFERROR(VLOOKUP($F14,#REF!,3,0),\"\")","v":""},null,{"$f":"IFERROR(VLOOKUP($F14,#REF!,2,0)/100,\"0\")","v":"0"},{"$f":"IFERROR(VLOOKUP($F14,#REF!,3,0),\"\")","v":""},0.2,{"$f":"IFERROR(VLOOKUP($F14,#REF!,2,0)/100,\"0\")","v":"0"},{"$f":"IFERROR(VLOOKUP($F14,#REF!,3,0),\"\")","v":""},null,{"$f":"IFERROR(VLOOKUP($F14,#REF!,2,0)/100,\"0\")","v":"0"},{"$f":"IFERROR(VLOOKUP($F14,#REF!,3,0),\"\")","v":""},0.3,{"$f":"IFERROR(VLOOKUP($F14,#REF!,2,0)/100,\"0\")","v":"0"},{"$f":"IFERROR(VLOOKUP($F14,#REF!,3,0),\"\")","v":""},null,{"$f":"IFERROR(VLOOKUP($F14,#REF!,2,0)/100,\"0\")","v":"0"},{"$f":"IFERROR(VLOOKUP($F14,#REF!,3,0),\"\")","v":""},null,{"$f":"IFERROR(VLOOKUP($F14,#REF!,2,0)/100,\"0\")","v":"0"},{"$f":"IFERROR(VLOOKUP($F14,#REF!,3,0),\"\")","v":""},null,{"$f":"IFERROR(VLOOKUP($F14,#REF!,2,0)/100,\"0\")","v":"0"},{"$f":"IFERROR(VLOOKUP($F14,#REF!,3,0),\"\")","v":""},0.5,{"$f":"IFERROR(VLOOKUP($F14,#REF!,2,0)/100,\"0\")","v":"0"},{"$f":"IFERROR(VLOOKUP($F14,#REF!,3,0),\"\")","v":""},null,{"$f":"IFERROR(VLOOKUP($F14,#REF!,2,0)/100,\"0\")","v":"0"},{"$f":"IFERROR(VLOOKUP($F14,#REF!,3,0),\"\")","v":""},null,{"$f":"IFERROR(VLOOKUP($F14,#REF!,2,0)/100,\"0\")","v":"0"},0,0]
[null,"OFICINA DE CONTROL INTERNO - (OCI)",null,null,null,"\"Mapa de Aseguramiento\" basado en las tres líneas de defensa, propuesto. ",0.2,"2020-04-01","2020-12-31","• Documento \"Mapa de Aseguramiento\"\n\n• Mesas de trabajo con procesos de la UAESP.","1042-Fortalecimiento institucional en la gestión pública ","Desarrollar y fortalecer el modelo el transformación organizacional de la entidad.","Fortalecimiento Institucional: Consolidar una entidad moderna y efectiva constituida por un equipo comprometido con el logro de los objetivos institucionales","PLANES Y PROGRAMAS","Eje 7 - Gobierno Legítimo, fortalecimiento local y eficiencia","42 - Transparencia, gestión pública y servicio a la ciudadanía.","Gestionar el 100% del plan de adecuación y sostenibilidad SIG-MIPG",{"$f":"IFERROR(VLOOKUP($F15,#REF!,3,0),\"\")","v":""},null,{"$f":"IFERROR(VLOOKUP($F15,#REF!,2,0)/100,\"0\")","v":"0"},null,0,{"$f":"IFERROR(VLOOKUP($F15,#REF!,2,0)/100,\"0\")","v":"0"},{"$f":"IFERROR(VLOOKUP($F15,#REF!,3,0),\"\")","v":""},null,{"$f":"IFERROR(VLOOKUP($F15,#REF!,2,0)/100,\"0\")","v":"0"},{"$f":"IFERROR(VLOOKUP($F15,#REF!,3,0),\"\")","v":""},0.1,{"$f":"IFERROR(VLOOKUP($F15,#REF!,2,0)/100,\"0\")","v":"0"},{"$f":"IFERROR(VLOOKUP($F15,#REF!,3,0),\"\")","v":""},null,{"$f":"IFERROR(VLOOKUP($F15,#REF!,2,0)/100,\"0\")","v":"0"},{"$f":"IFERROR(VLOOKUP($F15,#REF!,3,0),\"\")","v":""},0.2,{"$f":"IFERROR(VLOOKUP($F15,#REF!,2,0)/100,\"0\")","v":"0"},{"$f":"IFERROR(VLOOKUP($F15,#REF!,3,0),\"\")","v":""},null,{"$f":"IFERROR(VLOOKUP($F15,#REF!,2,0)/100,\"0\")","v":"0"},{"$f":"IFERROR(VLOOKUP($F15,#REF!,3,0),\"\")","v":""},0.3,{"$f":"IFERROR(VLOOKUP($F15,#REF!,2,0)/100,\"0\")","v":"0"},{"$f":"IFERROR(VLOOKUP($F15,#REF!,3,0),\"\")","v":""},null,{"$f":"IFERROR(VLOOKUP($F15,#REF!,2,0)/100,\"0\")","v":"0"},{"$f":"IFERROR(VLOOKUP($F15,#REF!,3,0),\"\")","v":""},0.3,{"$f":"IFERROR(VLOOKUP($F15,#REF!,2,0)/100,\"0\")","v":"0"},{"$f":"IFERROR(VLOOKUP($F15,#REF!,3,0),\"\")","v":""},null,{"$f":"IFERROR(VLOOKUP($F15,#REF!,2,0)/100,\"0\")","v":"0"},{"$f":"IFERROR(VLOOKUP($F15,#REF!,3,0),\"\")","v":""},0.1,{"$f":"IFERROR(VLOOKUP($F15,#REF!,2,0)/100,\"0\")","v":"0"},0,0]
[null,"OFICINA DE CONTROL INTERNO - (OCI)",null,null,null,"Plan de mejoramiento institucional operando de forma sistematizada",0.15,"2020-02-01","2020-12-31","• Pruebas piloto del funcionamiento de PM de forma sistematizada.\n\n• Procedimientos ajustados, conforme a operacionalización sistematizada. ","1042-Fortalecimiento institucional en la gestión pública ","Desarrollar y fortalecer el modelo el transformación organizacional de la entidad.","Fortalecimiento Institucional: Consolidar una entidad moderna y efectiva constituida por un equipo comprometido con el logro de los objetivos institucionales","PLANES Y PROGRAMAS","Eje 7 - Gobierno Legítimo, fortalecimiento local y eficiencia","42 - Transparencia, gestión pública y servicio a la ciudadanía.","Gestionar el 100% del plan de adecuación y sostenibilidad SIG-MIPG",{"$f":"IFERROR(VLOOKUP($F16,#REF!,3,0),\"\")","v":""},null,{"$f":"IFERROR(VLOOKUP($F16,#REF!,2,0)/100,\"0\")","v":"0"},{"$f":"IFERROR(VLOOKUP($F16,#REF!,3,0),\"\")","v":""},0.16600000000000001,{"$f":"IFERROR(VLOOKUP($F16,#REF!,2,0)/100,\"0\")","v":"0"},{"$f":"IFERROR(VLOOKUP($F16,#REF!,3,0),\"\")","v":""},null,{"$f":"IFERROR(VLOOKUP($F16,#REF!,2,0)/100,\"0\")","v":"0"},{"$f":"IFERROR(VLOOKUP($F16,#REF!,3,0),\"\")","v":""},0.16600000000000001,{"$f":"IFERROR(VLOOKUP($F16,#REF!,2,0)/100,\"0\")","v":"0"},{"$f":"IFERROR(VLOOKUP($F16,#REF!,3,0),\"\")","v":""},null,{"$f":"IFERROR(VLOOKUP($F16,#REF!,2,0)/100,\"0\")","v":"0"},{"$f":"IFERROR(VLOOKUP($F16,#REF!,3,0),\"\")","v":""},0.16600000000000001,{"$f":"IFERROR(VLOOKUP($F16,#REF!,2,0)/100,\"0\")","v":"0"},{"$f":"IFERROR(VLOOKUP($F16,#REF!,3,0),\"\")","v":""},null,{"$f":"IFERROR(VLOOKUP($F16,#REF!,2,0)/100,\"0\")","v":"0"},{"$f":"IFERROR(VLOOKUP($F16,#REF!,3,0),\"\")","v":""},0.16600000000000001,{"$f":"IFERROR(VLOOKUP($F16,#REF!,2,0)/100,\"0\")","v":"0"},{"$f":"IFERROR(VLOOKUP($F16,#REF!,3,0),\"\")","v":""},null,{"$f":"IFERROR(VLOOKUP($F16,#REF!,2,0)/100,\"0\")","v":"0"},{"$f":"IFERROR(VLOOKUP($F16,#REF!,3,0),\"\")","v":""},0.16600000000000001,{"$f":"IFERROR(VLOOKUP($F16,#REF!,2,0)/100,\"0\")","v":"0"},{"$f":"IFERROR(VLOOKUP($F16,#REF!,3,0),\"\")","v":""},null,{"$f":"IFERROR(VLOOKUP($F16,#REF!,2,0)/100,\"0\")","v":"0"},{"$f":"IFERROR(VLOOKUP($F16,#REF!,3,0),\"\")","v":""},0.16669999999999999,{"$f":"IFERROR(VLOOKUP($F16,#REF!,2,0)/100,\"0\")","v":"0"},0,0]
[null,"OFICINA DE CONTROL INTERNO - (OCI)","Asesoría y formulación de recomendaciones con alcance preventivo y  de fomento a la cultura del control","80% de actividades de prevención desarrolladas","Actividades realizadas / actividades programadas * 100","80% de No Conformidades tratadas por los procesos de la Entidad.",0.25,"2019-01-02","2020-12-31","• Email de solicitud de presentación dentro de los 10 días (si aplica)\n\n• Plan de Mejoramiento  Interno Actualizado\n\n• Plan de Mejoramiento publicado en página WEB","1042-Fortalecimiento institucional en la gestión pública ","Desarrollar y fortalecer el modelo el transformación organizacional de la entidad.","Fortalecimiento Institucional: Consolidar una entidad moderna y efectiva constituida por un equipo comprometido con el logro de los objetivos institucionales","PLANES Y PROGRAMAS","Eje 7 - Gobierno Legítimo, fortalecimiento local y eficiencia","42 - Transparencia, gestión pública y servicio a la ciudadanía.","Gestionar el 100% del plan de adecuación y sostenibilidad SIG-MIPG",{"$f":"IFERROR(VLOOKUP($F17,#REF!,3,0),\"\")","v":""},null,{"$f":"IFERROR(VLOOKUP($F17,#REF!,2,0)/100,\"0\")","v":"0"},{"$f":"IFERROR(VLOOKUP($F17,#REF!,3,0),\"\")","v":""},0.16600000000000001,{"$f":"IFERROR(VLOOKUP($F17,#REF!,2,0)/100,\"0\")","v":"0"},{"$f":"IFERROR(VLOOKUP($F17,#REF!,3,0),\"\")","v":""},null,{"$f":"IFERROR(VLOOKUP($F17,#REF!,2,0)/100,\"0\")","v":"0"},{"$f":"IFERROR(VLOOKUP($F17,#REF!,3,0),\"\")","v":""},0.16600000000000001,{"$f":"IFERROR(VLOOKUP($F17,#REF!,2,0)/100,\"0\")","v":"0"},{"$f":"IFERROR(VLOOKUP($F17,#REF!,3,0),\"\")","v":""},null,{"$f":"IFERROR(VLOOKUP($F17,#REF!,2,0)/100,\"0\")","v":"0"},{"$f":"IFERROR(VLOOKUP($F17,#REF!,3,0),\"\")","v":""},0.16600000000000001,{"$f":"IFERROR(VLOOKUP($F17,#REF!,2,0)/100,\"0\")","v":"0"},{"$f":"IFERROR(VLOOKUP($F17,#REF!,3,0),\"\")","v":""},null,{"$f":"IFERROR(VLOOKUP($F17,#REF!,2,0)/100,\"0\")","v":"0"},{"$f":"IFERROR(VLOOKUP($F17,#REF!,3,0),\"\")","v":""},0.16600000000000001,{"$f":"IFERROR(VLOOKUP($F17,#REF!,2,0)/100,\"0\")","v":"0"},{"$f":"IFERROR(VLOOKUP($F17,#REF!,3,0),\"\")","v":""},null,{"$f":"IFERROR(VLOOKUP($F17,#REF!,2,0)/100,\"0\")","v":"0"},{"$f":"IFERROR(VLOOKUP($F17,#REF!,3,0),\"\")","v":""},0.16600000000000001,{"$f":"IFERROR(VLOOKUP($F17,#REF!,2,0)/100,\"0\")","v":"0"},{"$f":"IFERROR(VLOOKUP($F17,#REF!,3,0),\"\")","v":""},null,{"$f":"IFERROR(VLOOKUP($F17,#REF!,2,0)/100,\"0\")","v":"0"},{"$f":"IFERROR(VLOOKUP($F17,#REF!,3,0),\"\")","v":""},0.16669999999999999,{"$f":"IFERROR(VLOOKUP($F17,#REF!,2,0)/100,\"0\")","v":"0"},0,0]
[null,"OFICINA DE CONTROL INTERNO - (OCI)",null,null,null,"“80% de las Acciones Correctivas evaluadas como cerradas, respecto a programación de cierre, producto de auditorias internas y externas”.",0.25,"2019-01-02","2020-12-31","• Plan de Mejoramiento  Interno Actualizado\n\n• Plan de mejoramiento publicado en página WEB","1042-Fortalecimiento institucional en la gestión pública ","Desarrollar y fortalecer el modelo el transformación organizacional de la entidad.","Fortalecimiento Institucional: Consolidar una entidad moderna y efectiva constituida por un equipo comprometido con el logro de los objetivos institucionales","PLANES Y PROGRAMAS","Eje 7 - Gobierno Legítimo, fortalecimiento local y eficiencia","42 - Transparencia, gestión pública y servicio a la ciudadanía.","Gestionar el 100% del plan de adecuación y sostenibilidad SIG-MIPG",{"$f":"IFERROR(VLOOKUP($F18,#REF!,3,0),\"\")","v":""},null,{"$f":"IFERROR(VLOOKUP($F18,#REF!,2,0)/100,\"0\")","v":"0"},{"$f":"IFERROR(VLOOKUP($F18,#REF!,3,0),\"\")","v":""},0.16600000000000001,{"$f":"IFERROR(VLOOKUP($F18,#REF!,2,0)/100,\"0\")","v":"0"},{"$f":"IFERROR(VLOOKUP($F18,#REF!,3,0),\"\")","v":""},null,{"$f":"IFERROR(VLOOKUP($F18,#REF!,2,0)/100,\"0\")","v":"0"},{"$f":"IFERROR(VLOOKUP($F18,#REF!,3,0),\"\")","v":""},0.16600000000000001,{"$f":"IFERROR(VLOOKUP($F18,#REF!,2,0)/100,\"0\")","v":"0"},{"$f":"IFERROR(VLOOKUP($F18,#REF!,3,0),\"\")","v":""},null,{"$f":"IFERROR(VLOOKUP($F18,#REF!,2,0)/100,\"0\")","v":"0"},{"$f":"IFERROR(VLOOKUP($F18,#REF!,3,0),\"\")","v":""},0.16600000000000001,{"$f":"IFERROR(VLOOKUP($F18,#REF!,2,0)/100,\"0\")","v":"0"},{"$f":"IFERROR(VLOOKUP($F18,#REF!,3,0),\"\")","v":""},null,{"$f":"IFERROR(VLOOKUP($F18,#REF!,2,0)/100,\"0\")","v":"0"},{"$f":"IFERROR(VLOOKUP($F18,#REF!,3,0),\"\")","v":""},0.16600000000000001,{"$f":"IFERROR(VLOOKUP($F18,#REF!,2,0)/100,\"0\")","v":"0"},{"$f":"IFERROR(VLOOKUP($F18,#REF!,3,0),\"\")","v":""},null,{"$f":"IFERROR(VLOOKUP($F18,#REF!,2,0)/100,\"0\")","v":"0"},{"$f":"IFERROR(VLOOKUP($F18,#REF!,3,0),\"\")","v":""},0.16600000000000001,{"$f":"IFERROR(VLOOKUP($F18,#REF!,2,0)/100,\"0\")","v":"0"},{"$f":"IFERROR(VLOOKUP($F18,#REF!,3,0),\"\")","v":""},null,{"$f":"IFERROR(VLOOKUP($F18,#REF!,2,0)/100,\"0\")","v":"0"},{"$f":"IFERROR(VLOOKUP($F18,#REF!,3,0),\"\")","v":""},0.16669999999999999,{"$f":"IFERROR(VLOOKUP($F18,#REF!,2,0)/100,\"0\")","v":"0"},0,0]
[null,"OFICINA DE CONTROL INTERNO - (OCI)",null,null,null,"80% Acompañamientos efectuados, según solicitud y demanda.",0.15,"2019-01-02","2020-12-31","• Registros en Calendario OCI\n\n• Actas de visita. \n\n• Registros de alertas, acompañamientos, asesorías o recomendaciones","1042-Fortalecimiento institucional en la gestión pública ","Desarrollar y fortalecer el modelo el transformación organizacional de la entidad.","Fortalecimiento Institucional: Consolidar una entidad moderna y efectiva constituida por un equipo comprometido con el logro de los objetivos institucionales","PLANES Y PROGRAMAS","Eje 7 - Gobierno Legítimo, fortalecimiento local y eficiencia","42 - Transparencia, gestión pública y servicio a la ciudadanía.","Gestionar el 100% del plan de adecuación y sostenibilidad SIG-MIPG",{"$f":"IFERROR(VLOOKUP($F19,#REF!,3,0),\"\")","v":""},null,{"$f":"IFERROR(VLOOKUP($F19,#REF!,2,0)/100,\"0\")","v":"0"},{"$f":"IFERROR(VLOOKUP($F19,#REF!,3,0),\"\")","v":""},0.16600000000000001,{"$f":"IFERROR(VLOOKUP($F19,#REF!,2,0)/100,\"0\")","v":"0"},{"$f":"IFERROR(VLOOKUP($F19,#REF!,3,0),\"\")","v":""},null,{"$f":"IFERROR(VLOOKUP($F19,#REF!,2,0)/100,\"0\")","v":"0"},{"$f":"IFERROR(VLOOKUP($F19,#REF!,3,0),\"\")","v":""},0.16600000000000001,{"$f":"IFERROR(VLOOKUP($F19,#REF!,2,0)/100,\"0\")","v":"0"},{"$f":"IFERROR(VLOOKUP($F19,#REF!,3,0),\"\")","v":""},null,{"$f":"IFERROR(VLOOKUP($F19,#REF!,2,0)/100,\"0\")","v":"0"},{"$f":"IFERROR(VLOOKUP($F19,#REF!,3,0),\"\")","v":""},0.16600000000000001,{"$f":"IFERROR(VLOOKUP($F19,#REF!,2,0)/100,\"0\")","v":"0"},{"$f":"IFERROR(VLOOKUP($F19,#REF!,3,0),\"\")","v":""},null,{"$f":"IFERROR(VLOOKUP($F19,#REF!,2,0)/100,\"0\")","v":"0"},{"$f":"IFERROR(VLOOKUP($F19,#REF!,3,0),\"\")","v":""},0.16600000000000001,{"$f":"IFERROR(VLOOKUP($F19,#REF!,2,0)/100,\"0\")","v":"0"},{"$f":"IFERROR(VLOOKUP($F19,#REF!,3,0),\"\")","v":""},null,{"$f":"IFERROR(VLOOKUP($F19,#REF!,2,0)/100,\"0\")","v":"0"},{"$f":"IFERROR(VLOOKUP($F19,#REF!,3,0),\"\")","v":""},0.16600000000000001,{"$f":"IFERROR(VLOOKUP($F19,#REF!,2,0)/100,\"0\")","v":"0"},{"$f":"IFERROR(VLOOKUP($F19,#REF!,3,0),\"\")","v":""},null,{"$f":"IFERROR(VLOOKUP($F19,#REF!,2,0)/100,\"0\")","v":"0"},{"$f":"IFERROR(VLOOKUP($F19,#REF!,3,0),\"\")","v":""},0.16669999999999999,{"$f":"IFERROR(VLOOKUP($F19,#REF!,2,0)/100,\"0\")","v":"0"},0,0]
[null,"OFICINA DE CONTROL INTERNO - (OCI)",null,null,null,"100% Actividades de prevención y fomento de la cultura del control realizados.",0.15,"2019-01-02","2020-12-31","• Actividades realizadas frente elementos de control referentes a la \"Planificación\" y propósito de  \"auditorias internas\"","1042-Fortalecimiento institucional en la gestión pública ","Desarrollar y fortalecer el modelo el transformación organizacional de la entidad.","Fortalecimiento Institucional: Consolidar una entidad moderna y efectiva constituida por un equipo comprometido con el logro de los objetivos institucionales","PLANES Y PROGRAMAS","Eje 7 - Gobierno Legítimo, fortalecimiento local y eficiencia","42 - Transparencia, gestión pública y servicio a la ciudadanía.","Gestionar el 100% del plan de adecuación y sostenibilidad SIG-MIPG",{"$f":"IFERROR(VLOOKUP($F20,#REF!,3,0),\"\")","v":""},null,{"$f":"IFERROR(VLOOKUP($F20,#REF!,2,0)/100,\"0\")","v":"0"},{"$f":"IFERROR(VLOOKUP($F20,#REF!,3,0),\"\")","v":""},0.16600000000000001,{"$f":"IFERROR(VLOOKUP($F20,#REF!,2,0)/100,\"0\")","v":"0"},{"$f":"IFERROR(VLOOKUP($F20,#REF!,3,0),\"\")","v":""},null,{"$f":"IFERROR(VLOOKUP($F20,#REF!,2,0)/100,\"0\")","v":"0"},{"$f":"IFERROR(VLOOKUP($F20,#REF!,3,0),\"\")","v":""},0.16600000000000001,{"$f":"IFERROR(VLOOKUP($F20,#REF!,2,0)/100,\"0\")","v":"0"},null,null,{"$f":"IFERROR(VLOOKUP($F20,#REF!,2,0)/100,\"0\")","v":"0"},{"$f":"IFERROR(VLOOKUP($F20,#REF!,3,0),\"\")","v":""},0.16600000000000001,{"$f":"IFERROR(VLOOKUP($F20,#REF!,2,0)/100,\"0\")","v":"0"},{"$f":"IFERROR(VLOOKUP($F20,#REF!,3,0),\"\")","v":""},null,{"$f":"IFERROR(VLOOKUP($F20,#REF!,2,0)/100,\"0\")","v":"0"},{"$f":"IFERROR(VLOOKUP($F20,#REF!,3,0),\"\")","v":""},0.16600000000000001,{"$f":"IFERROR(VLOOKUP($F20,#REF!,2,0)/100,\"0\")","v":"0"},{"$f":"IFERROR(VLOOKUP($F20,#REF!,3,0),\"\")","v":""},null,{"$f":"IFERROR(VLOOKUP($F20,#REF!,2,0)/100,\"0\")","v":"0"},{"$f":"IFERROR(VLOOKUP($F20,#REF!,3,0),\"\")","v":""},0.16600000000000001,{"$f":"IFERROR(VLOOKUP($F20,#REF!,2,0)/100,\"0\")","v":"0"},{"$f":"IFERROR(VLOOKUP($F20,#REF!,3,0),\"\")","v":""},null,{"$f":"IFERROR(VLOOKUP($F20,#REF!,2,0)/100,\"0\")","v":"0"},{"$f":"IFERROR(VLOOKUP($F20,#REF!,3,0),\"\")","v":""},0.16669999999999999,{"$f":"IFERROR(VLOOKUP($F20,#REF!,2,0)/100,\"0\")","v":"0"},0,0]
[null,"OFICINA DE CONTROL INTERNO - (OCI)",null,null,null,"100% de requerimientos de entes externos de control gestionados.",0.2,"2019-01-02","2020-12-31","• Matriz de respuesta a entes de control actualizada y estados comunicados a lideres de proceso.\n\n• Registros de comunicación a lideres de proceso frente a requerimientos, rendición de la Cuenta, entre otros.","1042-Fortalecimiento institucional en la gestión pública ","Desarrollar y fortalecer el modelo el transformación organizacional de la entidad.","Fortalecimiento Institucional: Consolidar una entidad moderna y efectiva constituida por un equipo comprometido con el logro de los objetivos institucionales","PLANES Y PROGRAMAS","Eje 7 - Gobierno Legítimo, fortalecimiento local y eficiencia","42 - Transparencia, gestión pública y servicio a la ciudadanía.","Gestionar el 100% del plan de adecuación y sostenibilidad SIG-MIPG",{"$f":"IFERROR(VLOOKUP($F21,#REF!,3,0),\"\")","v":""},null,{"$f":"IFERROR(VLOOKUP($F21,#REF!,2,0)/100,\"0\")","v":"0"},{"$f":"IFERROR(VLOOKUP($F21,#REF!,3,0),\"\")","v":""},0.16600000000000001,{"$f":"IFERROR(VLOOKUP($F21,#REF!,2,0)/100,\"0\")","v":"0"},{"$f":"IFERROR(VLOOKUP($F21,#REF!,3,0),\"\")","v":""},null,{"$f":"IFERROR(VLOOKUP($F21,#REF!,2,0)/100,\"0\")","v":"0"},{"$f":"IFERROR(VLOOKUP($F21,#REF!,3,0),\"\")","v":""},0.16600000000000001,{"$f":"IFERROR(VLOOKUP($F21,#REF!,2,0)/100,\"0\")","v":"0"},{"$f":"IFERROR(VLOOKUP($F21,#REF!,3,0),\"\")","v":""},null,{"$f":"IFERROR(VLOOKUP($F21,#REF!,2,0)/100,\"0\")","v":"0"},{"$f":"IFERROR(VLOOKUP($F21,#REF!,3,0),\"\")","v":""},0.16600000000000001,{"$f":"IFERROR(VLOOKUP($F21,#REF!,2,0)/100,\"0\")","v":"0"},{"$f":"IFERROR(VLOOKUP($F21,#REF!,3,0),\"\")","v":""},null,{"$f":"IFERROR(VLOOKUP($F21,#REF!,2,0)/100,\"0\")","v":"0"},{"$f":"IFERROR(VLOOKUP($F21,#REF!,3,0),\"\")","v":""},0.16600000000000001,{"$f":"IFERROR(VLOOKUP($F21,#REF!,2,0)/100,\"0\")","v":"0"},{"$f":"IFERROR(VLOOKUP($F21,#REF!,3,0),\"\")","v":""},null,{"$f":"IFERROR(VLOOKUP($F21,#REF!,2,0)/100,\"0\")","v":"0"},{"$f":"IFERROR(VLOOKUP($F21,#REF!,3,0),\"\")","v":""},0.16600000000000001,{"$f":"IFERROR(VLOOKUP($F21,#REF!,2,0)/100,\"0\")","v":"0"},{"$f":"IFERROR(VLOOKUP($F21,#REF!,3,0),\"\")","v":""},null,{"$f":"IFERROR(VLOOKUP($F21,#REF!,2,0)/100,\"0\")","v":"0"},{"$f":"IFERROR(VLOOKUP($F21,#REF!,3,0),\"\")","v":""},0.16669999999999999,{"$f":"IFERROR(VLOOKUP($F21,#REF!,2,0)/100,\"0\")","v":"0"},0,0]
[null,"OFICINA ASESORA DE TECNOLOGÍAS DE LA INFORMACIÓN - (TIC)","Fortalecer la gestión de las plataformas tecnológicas de la entidad (hardware y software)","Atender las necesidades  tecnológicas de la entidad","Número de necesidades tecnológicas atendidas ","Cumplimiento de la Resolución 2710 de 2017 (Viene de 2019)",0.1,"2020-02-01","2020-12-31","Informes de ejecución de la Fase II: Implementación del Protocolo IPV6 que evidencia el avance de  cumplimiento de la resolución ( Estándares)","1042-Fortalecimiento institucional en la gestión pública ","Garantizar el 100% de la arquitectura tecnológica de la entidad  ","Fortalecimiento Institucional: Consolidar una entidad moderna y efectiva constituida por un equipo comprometido con el logro de los objetivos institucionales","Plan Estratégico de Tecnologías de la Información y las Comunicaciones -PETI","Eje 7 - Gobierno Legítimo, fortalecimiento local y eficiencia","42 - Transparencia, gestión pública y servicio a la ciudadanía.","Gestionar el 100% del plan de adecuación y sostenibilidad SIG-MIPG",{"$f":"IFERROR(VLOOKUP($F22,#REF!,3,0),\"\")","v":""},null,{"$f":"IFERROR(VLOOKUP($F22,#REF!,2,0)/100,\"0\")","v":"0"},{"$f":"IFERROR(VLOOKUP($F22,#REF!,3,0),\"\")","v":""},0.3,{"$f":"IFERROR(VLOOKUP($F22,#REF!,2,0)/100,\"0\")","v":"0"},{"$f":"IFERROR(VLOOKUP($F22,#REF!,3,0),\"\")","v":""},null,{"$f":"IFERROR(VLOOKUP($F22,#REF!,2,0)/100,\"0\")","v":"0"},{"$f":"IFERROR(VLOOKUP($F22,#REF!,3,0),\"\")","v":""},null,{"$f":"IFERROR(VLOOKUP($F22,#REF!,2,0)/100,\"0\")","v":"0"},{"$f":"IFERROR(VLOOKUP($F22,#REF!,3,0),\"\")","v":""},0.3,{"$f":"IFERROR(VLOOKUP($F22,#REF!,2,0)/100,\"0\")","v":"0"},{"$f":"IFERROR(VLOOKUP($F22,#REF!,3,0),\"\")","v":""},0,{"$f":"IFERROR(VLOOKUP($F22,#REF!,2,0)/100,\"0\")","v":"0"},{"$f":"IFERROR(VLOOKUP($F22,#REF!,3,0),\"\")","v":""},null,{"$f":"IFERROR(VLOOKUP($F22,#REF!,2,0)/100,\"0\")","v":"0"},{"$f":"IFERROR(VLOOKUP($F22,#REF!,3,0),\"\")","v":""},null,{"$f":"IFERROR(VLOOKUP($F22,#REF!,2,0)/100,\"0\")","v":"0"},{"$f":"IFERROR(VLOOKUP($F22,#REF!,3,0),\"\")","v":""},0.3,{"$f":"IFERROR(VLOOKUP($F22,#REF!,2,0)/100,\"0\")","v":"0"},{"$f":"IFERROR(VLOOKUP($F22,#REF!,3,0),\"\")","v":""},null,{"$f":"IFERROR(VLOOKUP($F22,#REF!,2,0)/100,\"0\")","v":"0"},{"$f":"IFERROR(VLOOKUP($F22,#REF!,3,0),\"\")","v":""},null,{"$f":"IFERROR(VLOOKUP($F22,#REF!,2,0)/100,\"0\")","v":"0"},{"$f":"IFERROR(VLOOKUP($F22,#REF!,3,0),\"\")","v":""},0.1,{"$f":"IFERROR(VLOOKUP($F22,#REF!,2,0)/100,\"0\")","v":"0"},0,0]
[null,"OFICINA ASESORA DE TECNOLOGÍAS DE LA INFORMACIÓN - (TIC)",null,null,null,"Garantizar el servicio de  conectividad  de la Entidad ",0.2,"2020-01-01","2020-12-31","Contrato suscrito","1042-Fortalecimiento institucional en la gestión pública ","Garantizar el 100% de la arquitectura tecnológica de la entidad  ","Fortalecimiento Institucional: Consolidar una entidad moderna y efectiva constituida por un equipo comprometido con el logro de los objetivos institucionales","Plan Estratégico de Tecnologías de la Información y las Comunicaciones -PETI","Eje 7 - Gobierno Legítimo, fortalecimiento local y eficiencia","42 - Transparencia, gestión pública y servicio a la ciudadanía.","Gestionar el 100% del plan de adecuación y sostenibilidad SIG-MIPG",{"$f":"IFERROR(VLOOKUP($F23,#REF!,3,0),\"\")","v":""},null,{"$f":"IFERROR(VLOOKUP($F23,#REF!,2,0)/100,\"0\")","v":"0"},{"$f":"IFERROR(VLOOKUP($F23,#REF!,3,0),\"\")","v":""},0.05,{"$f":"IFERROR(VLOOKUP($F23,#REF!,2,0)/100,\"0\")","v":"0"},{"$f":"IFERROR(VLOOKUP($F23,#REF!,3,0),\"\")","v":""},0.05,{"$f":"IFERROR(VLOOKUP($F23,#REF!,2,0)/100,\"0\")","v":"0"},{"$f":"IFERROR(VLOOKUP($F23,#REF!,3,0),\"\")","v":""},0.1,{"$f":"IFERROR(VLOOKUP($F23,#REF!,2,0)/100,\"0\")","v":"0"},{"$f":"IFERROR(VLOOKUP($F23,#REF!,3,0),\"\")","v":""},0.1,{"$f":"IFERROR(VLOOKUP($F23,#REF!,2,0)/100,\"0\")","v":"0"},{"$f":"IFERROR(VLOOKUP($F23,#REF!,3,0),\"\")","v":""},0.1,{"$f":"IFERROR(VLOOKUP($F23,#REF!,2,0)/100,\"0\")","v":"0"},{"$f":"IFERROR(VLOOKUP($F23,#REF!,3,0),\"\")","v":""},0.1,{"$f":"IFERROR(VLOOKUP($F23,#REF!,2,0)/100,\"0\")","v":"0"},{"$f":"IFERROR(VLOOKUP($F23,#REF!,3,0),\"\")","v":""},0.1,{"$f":"IFERROR(VLOOKUP($F23,#REF!,2,0)/100,\"0\")","v":"0"},{"$f":"IFERROR(VLOOKUP($F23,#REF!,3,0),\"\")","v":""},0.1,{"$f":"IFERROR(VLOOKUP($F23,#REF!,2,0)/100,\"0\")","v":"0"},{"$f":"IFERROR(VLOOKUP($F23,#REF!,3,0),\"\")","v":""},0.1,{"$f":"IFERROR(VLOOKUP($F23,#REF!,2,0)/100,\"0\")","v":"0"},{"$f":"IFERROR(VLOOKUP($F23,#REF!,3,0),\"\")","v":""},0.1,{"$f":"IFERROR(VLOOKUP($F23,#REF!,2,0)/100,\"0\")","v":"0"},{"$f":"IFERROR(VLOOKUP($F23,#REF!,3,0),\"\")","v":""},0.1,{"$f":"IFERROR(VLOOKUP($F23,#REF!,2,0)/100,\"0\")","v":"0"},0,0]
[null,"OFICINA ASESORA DE TECNOLOGÍAS DE LA INFORMACIÓN - (TIC)",null,null,null,"Garantizar el suministro tecnológica de la entidad",0.2,"2020-02-01","2020-12-31","Registro de entrega de Infraestructura tecnológica en funcionamiento","1042-Fortalecimiento institucional en la gestión pública ","Garantizar el 100% de la arquitectura tecnológica de la entidad  ","Fortalecimiento Institucional: Consolidar una entidad moderna y efectiva constituida por un equipo comprometido con el logro de los objetivos institucionales","Plan Estratégico de Tecnologías de la Información y las Comunicaciones -PETI","Eje 7 - Gobierno Legítimo, fortalecimiento local y eficiencia","42 - Transparencia, gestión pública y servicio a la ciudadanía.","Gestionar el 100% del plan de adecuación y sostenibilidad SIG-MIPG",{"$f":"IFERROR(VLOOKUP($F24,#REF!,3,0),\"\")","v":""},null,{"$f":"IFERROR(VLOOKUP($F24,#REF!,2,0)/100,\"0\")","v":"0"},{"$f":"IFERROR(VLOOKUP($F24,#REF!,3,0),\"\")","v":""},0.05,{"$f":"IFERROR(VLOOKUP($F24,#REF!,2,0)/100,\"0\")","v":"0"},{"$f":"IFERROR(VLOOKUP($F24,#REF!,3,0),\"\")","v":""},0.05,{"$f":"IFERROR(VLOOKUP($F24,#REF!,2,0)/100,\"0\")","v":"0"},{"$f":"IFERROR(VLOOKUP($F24,#REF!,3,0),\"\")","v":""},0.1,{"$f":"IFERROR(VLOOKUP($F24,#REF!,2,0)/100,\"0\")","v":"0"},{"$f":"IFERROR(VLOOKUP($F24,#REF!,3,0),\"\")","v":""},0.1,{"$f":"IFERROR(VLOOKUP($F24,#REF!,2,0)/100,\"0\")","v":"0"},{"$f":"IFERROR(VLOOKUP($F24,#REF!,3,0),\"\")","v":""},0.1,{"$f":"IFERROR(VLOOKUP($F24,#REF!,2,0)/100,\"0\")","v":"0"},{"$f":"IFERROR(VLOOKUP($F24,#REF!,3,0),\"\")","v":""},0.1,{"$f":"IFERROR(VLOOKUP($F24,#REF!,2,0)/100,\"0\")","v":"0"},{"$f":"IFERROR(VLOOKUP($F24,#REF!,3,0),\"\")","v":""},0.1,{"$f":"IFERROR(VLOOKUP($F24,#REF!,2,0)/100,\"0\")","v":"0"},{"$f":"IFERROR(VLOOKUP($F24,#REF!,3,0),\"\")","v":""},0.1,{"$f":"IFERROR(VLOOKUP($F24,#REF!,2,0)/100,\"0\")","v":"0"},{"$f":"IFERROR(VLOOKUP($F24,#REF!,3,0),\"\")","v":""},0.1,{"$f":"IFERROR(VLOOKUP($F24,#REF!,2,0)/100,\"0\")","v":"0"},{"$f":"IFERROR(VLOOKUP($F24,#REF!,3,0),\"\")","v":""},0.1,{"$f":"IFERROR(VLOOKUP($F24,#REF!,2,0)/100,\"0\")","v":"0"},{"$f":"IFERROR(VLOOKUP($F24,#REF!,3,0),\"\")","v":""},0.1,{"$f":"IFERROR(VLOOKUP($F24,#REF!,2,0)/100,\"0\")","v":"0"},0,0]
[null,"OFICINA ASESORA DE TECNOLOGÍAS DE LA INFORMACIÓN - (TIC)",null,null,null,"Implementación de esquema de replicación de servidores críticos",0.3,"2020-05-01","2020-12-31","Informe de puesta en marcha ","1042-Fortalecimiento institucional en la gestión pública ","Garantizar el 100% de la arquitectura tecnológica de la entidad  ","Fortalecimiento Institucional: Consolidar una entidad moderna y efectiva constituida por un equipo comprometido con el logro de los objetivos institucionales","Plan Estratégico de Tecnologías de la Información y las Comunicaciones -PETI","Eje 7 - Gobierno Legítimo, fortalecimiento local y eficiencia","42 - Transparencia, gestión pública y servicio a la ciudadanía.","Gestionar el 100% del plan de adecuación y sostenibilidad SIG-MIPG",{"$f":"IFERROR(VLOOKUP($F25,#REF!,3,0),\"\")","v":""},null,{"$f":"IFERROR(VLOOKUP($F25,#REF!,2,0)/100,\"0\")","v":"0"},{"$f":"IFERROR(VLOOKUP($F25,#REF!,3,0),\"\")","v":""},null,{"$f":"IFERROR(VLOOKUP($F25,#REF!,2,0)/100,\"0\")","v":"0"},{"$f":"IFERROR(VLOOKUP($F25,#REF!,3,0),\"\")","v":""},null,{"$f":"IFERROR(VLOOKUP($F25,#REF!,2,0)/100,\"0\")","v":"0"},{"$f":"IFERROR(VLOOKUP($F25,#REF!,3,0),\"\")","v":""},null,{"$f":"IFERROR(VLOOKUP($F25,#REF!,2,0)/100,\"0\")","v":"0"},{"$f":"IFERROR(VLOOKUP($F25,#REF!,3,0),\"\")","v":""},0.1,{"$f":"IFERROR(VLOOKUP($F25,#REF!,2,0)/100,\"0\")","v":"0"},{"$f":"IFERROR(VLOOKUP($F25,#REF!,3,0),\"\")","v":""},0.1,{"$f":"IFERROR(VLOOKUP($F25,#REF!,2,0)/100,\"0\")","v":"0"},{"$f":"IFERROR(VLOOKUP($F25,#REF!,3,0),\"\")","v":""},0.1,{"$f":"IFERROR(VLOOKUP($F25,#REF!,2,0)/100,\"0\")","v":"0"},{"$f":"IFERROR(VLOOKUP($F25,#REF!,3,0),\"\")","v":""},null,{"$f":"IFERROR(VLOOKUP($F25,#REF!,2,0)/100,\"0\")","v":"0"},{"$f":"IFERROR(VLOOKUP($F25,#REF!,3,0),\"\")","v":""},0.4,{"$f":"IFERROR(VLOOKUP($F25,#REF!,2,0)/100,\"0\")","v":"0"},{"$f":"IFERROR(VLOOKUP($F25,#REF!,3,0),\"\")","v":""},null,{"$f":"IFERROR(VLOOKUP($F25,#REF!,2,0)/100,\"0\")","v":"0"},{"$f":"IFERROR(VLOOKUP($F25,#REF!,3,0),\"\")","v":""},null,{"$f":"IFERROR(VLOOKUP($F25,#REF!,2,0)/100,\"0\")","v":"0"},{"$f":"IFERROR(VLOOKUP($F25,#REF!,3,0),\"\")","v":""},0.3,{"$f":"IFERROR(VLOOKUP($F25,#REF!,2,0)/100,\"0\")","v":"0"},0,0]
[null,"OFICINA ASESORA DE TECNOLOGÍAS DE LA INFORMACIÓN - (TIC)",null,null,null,"Mantenimiento de infraestructura",0.2,"2020-04-01","2020-12-31","Informe de mantenimiento","1042-Fortalecimiento institucional en la gestión pública ","Garantizar el 100% de la arquitectura tecnológica de la entidad  ","Fortalecimiento Institucional: Consolidar una entidad moderna y efectiva constituida por un equipo comprometido con el logro de los objetivos institucionales","Plan Estratégico de Tecnologías de la Información y las Comunicaciones -PETI","Eje 7 - Gobierno Legítimo, fortalecimiento local y eficiencia","42 - Transparencia, gestión pública y servicio a la ciudadanía.","Gestionar el 100% del plan de adecuación y sostenibilidad SIG-MIPG",{"$f":"IFERROR(VLOOKUP($F26,#REF!,3,0),\"\")","v":""},null,{"$f":"IFERROR(VLOOKUP($F26,#REF!,2,0)/100,\"0\")","v":"0"},{"$f":"IFERROR(VLOOKUP($F26,#REF!,3,0),\"\")","v":""},null,{"$f":"IFERROR(VLOOKUP($F26,#REF!,2,0)/100,\"0\")","v":"0"},{"$f":"IFERROR(VLOOKUP($F26,#REF!,3,0),\"\")","v":""},null,{"$f":"IFERROR(VLOOKUP($F26,#REF!,2,0)/100,\"0\")","v":"0"},{"$f":"IFERROR(VLOOKUP($F26,#REF!,3,0),\"\")","v":""},0.1,{"$f":"IFERROR(VLOOKUP($F26,#REF!,2,0)/100,\"0\")","v":"0"},{"$f":"IFERROR(VLOOKUP($F26,#REF!,3,0),\"\")","v":""},0.1,{"$f":"IFERROR(VLOOKUP($F26,#REF!,2,0)/100,\"0\")","v":"0"},{"$f":"IFERROR(VLOOKUP($F26,#REF!,3,0),\"\")","v":""},0.1,{"$f":"IFERROR(VLOOKUP($F26,#REF!,2,0)/100,\"0\")","v":"0"},{"$f":"IFERROR(VLOOKUP($F26,#REF!,3,0),\"\")","v":""},0.1,{"$f":"IFERROR(VLOOKUP($F26,#REF!,2,0)/100,\"0\")","v":"0"},{"$f":"IFERROR(VLOOKUP($F26,#REF!,3,0),\"\")","v":""},null,{"$f":"IFERROR(VLOOKUP($F26,#REF!,2,0)/100,\"0\")","v":"0"},{"$f":"IFERROR(VLOOKUP($F26,#REF!,3,0),\"\")","v":""},null,{"$f":"IFERROR(VLOOKUP($F26,#REF!,2,0)/100,\"0\")","v":"0"},{"$f":"IFERROR(VLOOKUP($F26,#REF!,3,0),\"\")","v":""},0.3,{"$f":"IFERROR(VLOOKUP($F26,#REF!,2,0)/100,\"0\")","v":"0"},{"$f":"IFERROR(VLOOKUP($F26,#REF!,3,0),\"\")","v":""},null,{"$f":"IFERROR(VLOOKUP($F26,#REF!,2,0)/100,\"0\")","v":"0"},{"$f":"IFERROR(VLOOKUP($F26,#REF!,3,0),\"\")","v":""},0.3,{"$f":"IFERROR(VLOOKUP($F26,#REF!,2,0)/100,\"0\")","v":"0"},0,0]
[null,"OFICINA ASESORA DE TECNOLOGÍAS DE LA INFORMACIÓN - (TIC)",null,"Fortalecer el  servicio de la mesa de ayuda de la entidad","Personal sensibilizado","Sensibilizar el 100% en el uso de la herramienta HELP PEOPLE al personal de la entidad.",1,"2020-02-02","2020-12-31","Lista de asistencia","1042-Fortalecimiento institucional en la gestión pública ","Garantizar el 100% de la arquitectura tecnológica de la entidad  ","Fortalecimiento Institucional: Consolidar una entidad moderna y efectiva constituida por un equipo comprometido con el logro de los objetivos institucionales","Plan Estratégico de Tecnologías de la Información y las Comunicaciones -PETI","Eje 7 - Gobierno Legítimo, fortalecimiento local y eficiencia","42 - Transparencia, gestión pública y servicio a la ciudadanía.","Gestionar el 100% del plan de adecuación y sostenibilidad SIG-MIPG",{"$f":"IFERROR(VLOOKUP($F27,#REF!,3,0),\"\")","v":""},null,{"$f":"IFERROR(VLOOKUP($F27,#REF!,2,0)/100,\"0\")","v":"0"},{"$f":"IFERROR(VLOOKUP($F27,#REF!,3,0),\"\")","v":""},0.05,{"$f":"IFERROR(VLOOKUP($F27,#REF!,2,0)/100,\"0\")","v":"0"},{"$f":"IFERROR(VLOOKUP($F27,#REF!,3,0),\"\")","v":""},0.05,{"$f":"IFERROR(VLOOKUP($F27,#REF!,2,0)/100,\"0\")","v":"0"},{"$f":"IFERROR(VLOOKUP($F27,#REF!,3,0),\"\")","v":""},0.1,{"$f":"IFERROR(VLOOKUP($F27,#REF!,2,0)/100,\"0\")","v":"0"},{"$f":"IFERROR(VLOOKUP($F27,#REF!,3,0),\"\")","v":""},0.1,{"$f":"IFERROR(VLOOKUP($F27,#REF!,2,0)/100,\"0\")","v":"0"},{"$f":"IFERROR(VLOOKUP($F27,#REF!,3,0),\"\")","v":""},0.1,{"$f":"IFERROR(VLOOKUP($F27,#REF!,2,0)/100,\"0\")","v":"0"},{"$f":"IFERROR(VLOOKUP($F27,#REF!,3,0),\"\")","v":""},0.1,{"$f":"IFERROR(VLOOKUP($F27,#REF!,2,0)/100,\"0\")","v":"0"},{"$f":"IFERROR(VLOOKUP($F27,#REF!,3,0),\"\")","v":""},0.1,{"$f":"IFERROR(VLOOKUP($F27,#REF!,2,0)/100,\"0\")","v":"0"},{"$f":"IFERROR(VLOOKUP($F27,#REF!,3,0),\"\")","v":""},0.1,{"$f":"IFERROR(VLOOKUP($F27,#REF!,2,0)/100,\"0\")","v":"0"},{"$f":"IFERROR(VLOOKUP($F27,#REF!,3,0),\"\")","v":""},0.1,{"$f":"IFERROR(VLOOKUP($F27,#REF!,2,0)/100,\"0\")","v":"0"},{"$f":"IFERROR(VLOOKUP($F27,#REF!,3,0),\"\")","v":""},0.1,{"$f":"IFERROR(VLOOKUP($F27,#REF!,2,0)/100,\"0\")","v":"0"},{"$f":"IFERROR(VLOOKUP($F27,#REF!,3,0),\"\")","v":""},0.1,{"$f":"IFERROR(VLOOKUP($F27,#REF!,2,0)/100,\"0\")","v":"0"},0,0]
[null,"OFICINA ASESORA DE TECNOLOGÍAS DE LA INFORMACIÓN - (TIC)","Implementar los lineamientos que fortalezcan la política de Gobierno Digital en la entidad","Aumentar en un 10% con respecto a la vigencia anterior al cumplimiento del  Modelo de Privacidad y Seguridad de la Información-MSPI","Procedimientos formulados y presentados ","Implementación del MSPI dentro de la Entidad",1,"2020-02-01","2020-12-31","Implementación del 10% adicional del MSPI a través de los procedimientos aprobados","1042-Fortalecimiento institucional en la gestión pública ","Garantizar el 100% de la arquitectura tecnológica de la entidad  ","Fortalecimiento Institucional: Consolidar una entidad moderna y efectiva constituida por un equipo comprometido con el logro de los objetivos institucionales","Plan de tratamiento de riesgos de seguridad y  privacidad de la Información","Eje 7 - Gobierno Legítimo, fortalecimiento local y eficiencia","42 - Transparencia, gestión pública y servicio a la ciudadanía.","Gestionar el 100% del plan de adecuación y sostenibilidad SIG-MIPG",{"$f":"IFERROR(VLOOKUP($F28,#REF!,3,0),\"\")","v":""},null,{"$f":"IFERROR(VLOOKUP($F28,#REF!,2,0)/100,\"0\")","v":"0"},{"$f":"IFERROR(VLOOKUP($F28,#REF!,3,0),\"\")","v":""},0.05,{"$f":"IFERROR(VLOOKUP($F28,#REF!,2,0)/100,\"0\")","v":"0"},{"$f":"IFERROR(VLOOKUP($F28,#REF!,3,0),\"\")","v":""},0.05,{"$f":"IFERROR(VLOOKUP($F28,#REF!,2,0)/100,\"0\")","v":"0"},{"$f":"IFERROR(VLOOKUP($F28,#REF!,3,0),\"\")","v":""},0.1,{"$f":"IFERROR(VLOOKUP($F28,#REF!,2,0)/100,\"0\")","v":"0"},{"$f":"IFERROR(VLOOKUP($F28,#REF!,3,0),\"\")","v":""},0.1,{"$f":"IFERROR(VLOOKUP($F28,#REF!,2,0)/100,\"0\")","v":"0"},{"$f":"IFERROR(VLOOKUP($F28,#REF!,3,0),\"\")","v":""},0.1,{"$f":"IFERROR(VLOOKUP($F28,#REF!,2,0)/100,\"0\")","v":"0"},{"$f":"IFERROR(VLOOKUP($F28,#REF!,3,0),\"\")","v":""},0.1,{"$f":"IFERROR(VLOOKUP($F28,#REF!,2,0)/100,\"0\")","v":"0"},{"$f":"IFERROR(VLOOKUP($F28,#REF!,3,0),\"\")","v":""},0.1,{"$f":"IFERROR(VLOOKUP($F28,#REF!,2,0)/100,\"0\")","v":"0"},{"$f":"IFERROR(VLOOKUP($F28,#REF!,3,0),\"\")","v":""},0.1,{"$f":"IFERROR(VLOOKUP($F28,#REF!,2,0)/100,\"0\")","v":"0"},{"$f":"IFERROR(VLOOKUP($F28,#REF!,3,0),\"\")","v":""},0.1,{"$f":"IFERROR(VLOOKUP($F28,#REF!,2,0)/100,\"0\")","v":"0"},{"$f":"IFERROR(VLOOKUP($F28,#REF!,3,0),\"\")","v":""},0.1,{"$f":"IFERROR(VLOOKUP($F28,#REF!,2,0)/100,\"0\")","v":"0"},{"$f":"IFERROR(VLOOKUP($F28,#REF!,3,0),\"\")","v":""},0.1,{"$f":"IFERROR(VLOOKUP($F28,#REF!,2,0)/100,\"0\")","v":"0"},0,0]
[null,"OFICINA ASESORA DE COMUNICACIONES - (OAC)","Mantener el reconocimiento institucional","Fortalecer la imagen  de la entidad","Número de contenidos entregados a la ciudad.","Implementar el Plan de Comunicaciones",0.5,"2020-01-01","2020-12-31","Informe trimestral del desarrollo del trabajo periodístico.","1042-Fortalecimiento institucional en la gestión pública ","Divulgar y posicionar en los  diferentes grupos de interés de la ciudad el 100% de los planes, programas y proyecto de la entidad ","Fortalecimiento Institucional: Consolidar una entidad moderna y efectiva constituida por un equipo comprometido con el logro de los objetivos institucionales","N/A","Eje 7 - Gobierno Legítimo, fortalecimiento local y eficiencia","42 - Transparencia, gestión pública y servicio a la ciudadanía.","Gestionar el 100% del plan de adecuación y sostenibilidad SIG-MIPG",{"$f":"IFERROR(VLOOKUP($F29,#REF!,3,0),\"\")","v":""},null,{"$f":"IFERROR(VLOOKUP($F29,#REF!,2,0)/100,\"0\")","v":"0"},{"$f":"IFERROR(VLOOKUP($F29,#REF!,3,0),\"\")","v":""},null,{"$f":"IFERROR(VLOOKUP($F29,#REF!,2,0)/100,\"0\")","v":"0"},{"$f":"IFERROR(VLOOKUP($F29,#REF!,3,0),\"\")","v":""},0.25,{"$f":"IFERROR(VLOOKUP($F29,#REF!,2,0)/100,\"0\")","v":"0"},{"$f":"IFERROR(VLOOKUP($F29,#REF!,3,0),\"\")","v":""},null,{"$f":"IFERROR(VLOOKUP($F29,#REF!,2,0)/100,\"0\")","v":"0"},{"$f":"IFERROR(VLOOKUP($F29,#REF!,3,0),\"\")","v":""},null,{"$f":"IFERROR(VLOOKUP($F29,#REF!,2,0)/100,\"0\")","v":"0"},{"$f":"IFERROR(VLOOKUP($F29,#REF!,3,0),\"\")","v":""},0.25,{"$f":"IFERROR(VLOOKUP($F29,#REF!,2,0)/100,\"0\")","v":"0"},{"$f":"IFERROR(VLOOKUP($F29,#REF!,3,0),\"\")","v":""},null,{"$f":"IFERROR(VLOOKUP($F29,#REF!,2,0)/100,\"0\")","v":"0"},{"$f":"IFERROR(VLOOKUP($F29,#REF!,3,0),\"\")","v":""},null,{"$f":"IFERROR(VLOOKUP($F29,#REF!,2,0)/100,\"0\")","v":"0"},{"$f":"IFERROR(VLOOKUP($F29,#REF!,3,0),\"\")","v":""},0.25,{"$f":"IFERROR(VLOOKUP($F29,#REF!,2,0)/100,\"0\")","v":"0"},{"$f":"IFERROR(VLOOKUP($F29,#REF!,3,0),\"\")","v":""},null,{"$f":"IFERROR(VLOOKUP($F29,#REF!,2,0)/100,\"0\")","v":"0"},{"$f":"IFERROR(VLOOKUP($F29,#REF!,3,0),\"\")","v":""},null,{"$f":"IFERROR(VLOOKUP($F29,#REF!,2,0)/100,\"0\")","v":"0"},{"$f":"IFERROR(VLOOKUP($F29,#REF!,3,0),\"\")","v":""},0.25,{"$f":"IFERROR(VLOOKUP($F29,#REF!,2,0)/100,\"0\")","v":"0"},0,0]
[null,"OFICINA ASESORA DE COMUNICACIONES - (OAC)",null,null,null,"Generar contenidos de los planes programas y proyectos de la entidad de acuerdo con la programación establecida.",0.5,"2020-01-01","2020-12-31","Informe trimestral de impactos en medios  y de contenidos generados","1042-Fortalecimiento institucional en la gestión pública ","Divulgar y posicionar en los  diferentes grupos de interés de la ciudad el 100% de los planes, programas y proyecto de la entidad ","Fortalecimiento Institucional: Consolidar una entidad moderna y efectiva constituida por un equipo comprometido con el logro de los objetivos institucionales","N/A","Eje 7 - Gobierno Legítimo, fortalecimiento local y eficiencia","42 - Transparencia, gestión pública y servicio a la ciudadanía.","Gestionar el 100% del plan de adecuación y sostenibilidad SIG-MIPG",{"$f":"IFERROR(VLOOKUP($F30,#REF!,3,0),\"\")","v":""},null,{"$f":"IFERROR(VLOOKUP($F30,#REF!,2,0)/100,\"0\")","v":"0"},{"$f":"IFERROR(VLOOKUP($F30,#REF!,3,0),\"\")","v":""},null,{"$f":"IFERROR(VLOOKUP($F30,#REF!,2,0)/100,\"0\")","v":"0"},{"$f":"IFERROR(VLOOKUP($F30,#REF!,3,0),\"\")","v":""},0.25,{"$f":"IFERROR(VLOOKUP($F30,#REF!,2,0)/100,\"0\")","v":"0"},{"$f":"IFERROR(VLOOKUP($F30,#REF!,3,0),\"\")","v":""},null,{"$f":"IFERROR(VLOOKUP($F30,#REF!,2,0)/100,\"0\")","v":"0"},{"$f":"IFERROR(VLOOKUP($F30,#REF!,3,0),\"\")","v":""},null,{"$f":"IFERROR(VLOOKUP($F30,#REF!,2,0)/100,\"0\")","v":"0"},{"$f":"IFERROR(VLOOKUP($F30,#REF!,3,0),\"\")","v":""},0.25,{"$f":"IFERROR(VLOOKUP($F30,#REF!,2,0)/100,\"0\")","v":"0"},{"$f":"IFERROR(VLOOKUP($F30,#REF!,3,0),\"\")","v":""},null,{"$f":"IFERROR(VLOOKUP($F30,#REF!,2,0)/100,\"0\")","v":"0"},{"$f":"IFERROR(VLOOKUP($F30,#REF!,3,0),\"\")","v":""},null,{"$f":"IFERROR(VLOOKUP($F30,#REF!,2,0)/100,\"0\")","v":"0"},{"$f":"IFERROR(VLOOKUP($F30,#REF!,3,0),\"\")","v":""},0.25,{"$f":"IFERROR(VLOOKUP($F30,#REF!,2,0)/100,\"0\")","v":"0"},{"$f":"IFERROR(VLOOKUP($F30,#REF!,3,0),\"\")","v":""},null,{"$f":"IFERROR(VLOOKUP($F30,#REF!,2,0)/100,\"0\")","v":"0"},{"$f":"IFERROR(VLOOKUP($F30,#REF!,3,0),\"\")","v":""},null,{"$f":"IFERROR(VLOOKUP($F30,#REF!,2,0)/100,\"0\")","v":"0"},{"$f":"IFERROR(VLOOKUP($F30,#REF!,3,0),\"\")","v":""},0.25,{"$f":"IFERROR(VLOOKUP($F30,#REF!,2,0)/100,\"0\")","v":"0"},0,0]
[null,"SUBDIRECCIÓN DE ASUNTOS LEGALES - (SAL)","Asegurar en lo jurídico el fortalecimiento del modelo de transformación organizacional","Publicar el 100% de las actuaciones derivadas de los contratos suscritos por la Unidad","Actuaciones contractuales proyectadas / actuaciones contractuales publicadas","Publicación de  los procesos de contratación en el sistema de compra pública.",1,"2020-01-01","2020-12-31","Procesos contractuales publicados","1042-Fortalecimiento institucional en la gestión pública ","Desarrollar y fortalecer el modelo el transformación organizacional de la entidad.","Fortalecimiento Institucional: Consolidar una entidad moderna y efectiva constituida por un equipo comprometido con el logro de los objetivos institucionales","Plan Anual de Adquisiciones","Eje 7 - Gobierno Legítimo, fortalecimiento local y eficiencia","42 - Transparencia, gestión pública y servicio a la ciudadanía.","Gestionar el 100% del plan de adecuación y sostenibilidad SIG-MIPG",{"$f":"IFERROR(VLOOKUP($F31,#REF!,3,0),\"\")","v":""},8.3299999999999999E-2,{"$f":"IFERROR(VLOOKUP($F31,#REF!,2,0)/100,\"0\")","v":"0"},{"$f":"IFERROR(VLOOKUP($F31,#REF!,3,0),\"\")","v":""},8.3299999999999999E-2,{"$f":"IFERROR(VLOOKUP($F31,#REF!,2,0)/100,\"0\")","v":"0"},{"$f":"IFERROR(VLOOKUP($F31,#REF!,3,0),\"\")","v":""},8.3299999999999999E-2,{"$f":"IFERROR(VLOOKUP($F31,#REF!,2,0)/100,\"0\")","v":"0"},{"$f":"IFERROR(VLOOKUP($F31,#REF!,3,0),\"\")","v":""},8.3299999999999999E-2,{"$f":"IFERROR(VLOOKUP($F31,#REF!,2,0)/100,\"0\")","v":"0"},{"$f":"IFERROR(VLOOKUP($F31,#REF!,3,0),\"\")","v":""},8.3299999999999999E-2,{"$f":"IFERROR(VLOOKUP($F31,#REF!,2,0)/100,\"0\")","v":"0"},null,8.3299999999999999E-2,{"$f":"IFERROR(VLOOKUP($F31,#REF!,2,0)/100,\"0\")","v":"0"},{"$f":"IFERROR(VLOOKUP($F31,#REF!,3,0),\"\")","v":""},8.3299999999999999E-2,{"$f":"IFERROR(VLOOKUP($F31,#REF!,2,0)/100,\"0\")","v":"0"},{"$f":"IFERROR(VLOOKUP($F31,#REF!,3,0),\"\")","v":""},8.3299999999999999E-2,{"$f":"IFERROR(VLOOKUP($F31,#REF!,2,0)/100,\"0\")","v":"0"},{"$f":"IFERROR(VLOOKUP($F31,#REF!,3,0),\"\")","v":""},8.3299999999999999E-2,{"$f":"IFERROR(VLOOKUP($F31,#REF!,2,0)/100,\"0\")","v":"0"},{"$f":"IFERROR(VLOOKUP($F31,#REF!,3,0),\"\")","v":""},8.3299999999999999E-2,{"$f":"IFERROR(VLOOKUP($F31,#REF!,2,0)/100,\"0\")","v":"0"},{"$f":"IFERROR(VLOOKUP($F31,#REF!,3,0),\"\")","v":""},8.3299999999999999E-2,{"$f":"IFERROR(VLOOKUP($F31,#REF!,2,0)/100,\"0\")","v":"0"},{"$f":"IFERROR(VLOOKUP($F31,#REF!,3,0),\"\")","v":""},8.3299999999999999E-2,{"$f":"IFERROR(VLOOKUP($F31,#REF!,2,0)/100,\"0\")","v":"0"},0,0]
[null,"SUBDIRECCIÓN DE ASUNTOS LEGALES - (SAL)",null,"Plan de trabajo para la implementación de las políticas de prevención del daño antijurídico ejecutado al 100% ","Plan de trabajo ejecutado / Plan de trabajo diseñado","Formulación de un plan de trabajo de implementación de las políticas.",1,"2020-01-01","2020-12-31","Modelo de gestión jurídica implementado","1042-Fortalecimiento institucional en la gestión pública ","Desarrollar y fortalecer el modelo el transformación organizacional de la entidad.","Fortalecimiento Institucional: Consolidar una entidad moderna y efectiva constituida por un equipo comprometido con el logro de los objetivos institucionales","N/A","Eje 7 - Gobierno Legítimo, fortalecimiento local y eficiencia","42 - Transparencia, gestión pública y servicio a la ciudadanía.","Gestionar el 100% del plan de adecuación y sostenibilidad SIG-MIPG",{"$f":"IFERROR(VLOOKUP($F32,#REF!,3,0),\"\")","v":""},null,{"$f":"IFERROR(VLOOKUP($F32,#REF!,2,0)/100,\"0\")","v":"0"},{"$f":"IFERROR(VLOOKUP($F32,#REF!,3,0),\"\")","v":""},0.3,{"$f":"IFERROR(VLOOKUP($F32,#REF!,2,0)/100,\"0\")","v":"0"},{"$f":"IFERROR(VLOOKUP($F32,#REF!,3,0),\"\")","v":""},0.3,{"$f":"IFERROR(VLOOKUP($F32,#REF!,2,0)/100,\"0\")","v":"0"},{"$f":"IFERROR(VLOOKUP($F32,#REF!,3,0),\"\")","v":""},null,{"$f":"IFERROR(VLOOKUP($F32,#REF!,2,0)/100,\"0\")","v":"0"},{"$f":"IFERROR(VLOOKUP($F32,#REF!,3,0),\"\")","v":""},null,{"$f":"IFERROR(VLOOKUP($F32,#REF!,2,0)/100,\"0\")","v":"0"},{"$f":"IFERROR(VLOOKUP($F32,#REF!,3,0),\"\")","v":""},0.4,{"$f":"IFERROR(VLOOKUP($F32,#REF!,2,0)/100,\"0\")","v":"0"},{"$f":"IFERROR(VLOOKUP($F32,#REF!,3,0),\"\")","v":""},null,{"$f":"IFERROR(VLOOKUP($F32,#REF!,2,0)/100,\"0\")","v":"0"},{"$f":"IFERROR(VLOOKUP($F32,#REF!,3,0),\"\")","v":""},null,{"$f":"IFERROR(VLOOKUP($F32,#REF!,2,0)/100,\"0\")","v":"0"},{"$f":"IFERROR(VLOOKUP($F32,#REF!,3,0),\"\")","v":""},{"$f":"IFERROR(VLOOKUP($F32,#REF!,2,0)/100,\"0\")","v":"0"},{"$f":"IFERROR(VLOOKUP($F32,#REF!,2,0)/100,\"0\")","v":"0"},{"$f":"IFERROR(VLOOKUP($F32,#REF!,3,0),\"\")","v":""},null,{"$f":"IFERROR(VLOOKUP($F32,#REF!,2,0)/100,\"0\")","v":"0"},{"$f":"IFERROR(VLOOKUP($F32,#REF!,3,0),\"\")","v":""},null,{"$f":"IFERROR(VLOOKUP($F32,#REF!,2,0)/100,\"0\")","v":"0"},{"$f":"IFERROR(VLOOKUP($F32,#REF!,3,0),\"\")","v":""},null,{"$f":"IFERROR(VLOOKUP($F32,#REF!,2,0)/100,\"0\")","v":"0"},0,0]
[null,"SUBDIRECCIÓN DE ASUNTOS LEGALES - (SAL)",null,"Atender el 100% de los procesos judiciales y arbitrales en los que la Entidad sea demandada o convocada, fortaleciendo la defensa jurídica de la UAESP","Procesos vigentes/ Procesos atendidos","Actualización permanente del SIPROJ",1,"2020-01-01","2020-12-31","Plataforma SIPROJ actualizada","1042-Fortalecimiento institucional en la gestión pública ","Desarrollar y fortalecer el modelo el transformación organizacional de la entidad.","Fortalecimiento Institucional: Consolidar una entidad moderna y efectiva constituida por un equipo comprometido con el logro de los objetivos institucionales","N/A","Eje 7 - Gobierno Legítimo, fortalecimiento local y eficiencia","42 - Transparencia, gestión pública y servicio a la ciudadanía.","Gestionar el 100% del plan de adecuación y sostenibilidad SIG-MIPG",{"$f":"IFERROR(VLOOKUP($F33,#REF!,3,0),\"\")","v":""},8.3299999999999999E-2,{"$f":"IFERROR(VLOOKUP($F33,#REF!,2,0)/100,\"0\")","v":"0"},{"$f":"IFERROR(VLOOKUP($F33,#REF!,3,0),\"\")","v":""},8.3299999999999999E-2,{"$f":"IFERROR(VLOOKUP($F33,#REF!,2,0)/100,\"0\")","v":"0"},null,8.3299999999999999E-2,{"$f":"IFERROR(VLOOKUP($F33,#REF!,2,0)/100,\"0\")","v":"0"},{"$f":"IFERROR(VLOOKUP($F33,#REF!,3,0),\"\")","v":""},8.3299999999999999E-2,{"$f":"IFERROR(VLOOKUP($F33,#REF!,2,0)/100,\"0\")","v":"0"},null,8.3299999999999999E-2,{"$f":"IFERROR(VLOOKUP($F33,#REF!,2,0)/100,\"0\")","v":"0"},null,8.3299999999999999E-2,{"$f":"IFERROR(VLOOKUP($F33,#REF!,2,0)/100,\"0\")","v":"0"},null,8.3299999999999999E-2,{"$f":"IFERROR(VLOOKUP($F33,#REF!,2,0)/100,\"0\")","v":"0"},null,8.3299999999999999E-2,{"$f":"IFERROR(VLOOKUP($F33,#REF!,2,0)/100,\"0\")","v":"0"},null,8.3299999999999999E-2,{"$f":"IFERROR(VLOOKUP($F33,#REF!,2,0)/100,\"0\")","v":"0"},null,8.3299999999999999E-2,{"$f":"IFERROR(VLOOKUP($F33,#REF!,2,0)/100,\"0\")","v":"0"},null,8.3299999999999999E-2,{"$f":"IFERROR(VLOOKUP($F33,#REF!,2,0)/100,\"0\")","v":"0"},null,8.3299999999999999E-2,{"$f":"IFERROR(VLOOKUP($F33,#REF!,2,0)/100,\"0\")","v":"0"},0,0]
[null,"SUBDIRECCIÓN DE ASUNTOS LEGALES - (SAL)",null,"Políticas de la Dirección Distrital de Asuntos Disciplinarios, socializadas al interior de la UAESP","Realizar una actividad semestral de socialización de las políticas.","Socializar a través de diferentes estrategias las políticas emanadas por la Dirección Distrital de Asuntos Disciplinarios de la Alcaldía Mayor de Bogotá D.C, frente al ejercicio de la función disciplinaria, conforme a la normatividad vigente.",1,"2020-01-01","2020-12-31","Documento de divulgación de las políticas de la función disciplinaria contenidas en Ley 734 de 2002. ","1042-Fortalecimiento institucional en la gestión pública ","Desarrollar y fortalecer el modelo el transformación organizacional de la entidad.","Fortalecimiento Institucional: Consolidar una entidad moderna y efectiva constituida por un equipo comprometido con el logro de los objetivos institucionales","N/A","Eje 7 - Gobierno Legítimo, fortalecimiento local y eficiencia","42 - Transparencia, gestión pública y servicio a la ciudadanía.","Gestionar el 100% del plan de adecuación y sostenibilidad SIG-MIPG",{"$f":"IFERROR(VLOOKUP($F34,#REF!,3,0),\"\")","v":""},null,{"$f":"IFERROR(VLOOKUP($F34,#REF!,2,0)/100,\"0\")","v":"0"},{"$f":"IFERROR(VLOOKUP($F34,#REF!,3,0),\"\")","v":""},null,{"$f":"IFERROR(VLOOKUP($F34,#REF!,2,0)/100,\"0\")","v":"0"},{"$f":"IFERROR(VLOOKUP($F34,#REF!,3,0),\"\")","v":""},0,{"$f":"IFERROR(VLOOKUP($F34,#REF!,2,0)/100,\"0\")","v":"0"},{"$f":"IFERROR(VLOOKUP($F34,#REF!,3,0),\"\")","v":""},null,{"$f":"IFERROR(VLOOKUP($F34,#REF!,2,0)/100,\"0\")","v":"0"},{"$f":"IFERROR(VLOOKUP($F34,#REF!,3,0),\"\")","v":""},null,{"$f":"IFERROR(VLOOKUP($F34,#REF!,2,0)/100,\"0\")","v":"0"},{"$f":"IFERROR(VLOOKUP($F34,#REF!,3,0),\"\")","v":""},0.5,{"$f":"IFERROR(VLOOKUP($F34,#REF!,2,0)/100,\"0\")","v":"0"},{"$f":"IFERROR(VLOOKUP($F34,#REF!,3,0),\"\")","v":""},null,{"$f":"IFERROR(VLOOKUP($F34,#REF!,2,0)/100,\"0\")","v":"0"},{"$f":"IFERROR(VLOOKUP($F34,#REF!,3,0),\"\")","v":""},null,{"$f":"IFERROR(VLOOKUP($F34,#REF!,2,0)/100,\"0\")","v":"0"},{"$f":"IFERROR(VLOOKUP($F34,#REF!,3,0),\"\")","v":""},0,{"$f":"IFERROR(VLOOKUP($F34,#REF!,2,0)/100,\"0\")","v":"0"},{"$f":"IFERROR(VLOOKUP($F34,#REF!,3,0),\"\")","v":""},null,{"$f":"IFERROR(VLOOKUP($F34,#REF!,2,0)/100,\"0\")","v":"0"},{"$f":"IFERROR(VLOOKUP($F34,#REF!,3,0),\"\")","v":""},null,{"$f":"IFERROR(VLOOKUP($F34,#REF!,2,0)/100,\"0\")","v":"0"},{"$f":"IFERROR(VLOOKUP($F34,#REF!,3,0),\"\")","v":""},0.5,{"$f":"IFERROR(VLOOKUP($F34,#REF!,2,0)/100,\"0\")","v":"0"},0,0]
[null,"SUBDIRECCIÓN ADMINISTRATIVA Y FINANCIERA (SAF)","Foralecer la  Gestión documental integral","Revisar y actualizar los instrumentos archivísticos en cumplimiento del Decreto 1080 del 2015.","Instrumentos archivísticos actualizados","Revisión y actualización de los instrumentos archivísticos de acuerdo con los lineamientos del plan de gestión documental aprobado y publicado",1,"2020-01-01","2020-12-31","Instrumentos archivísticos actualizados","1042-Fortalecimiento institucional en la gestión pública ","Fortalecer y mantener  el  100%  de la memoria institucional de la Unidad y promover la cultura de cero papel.","Fortalecimiento Institucional: Consolidar una entidad moderna y efectiva constituida por un equipo comprometido con el logro de los objetivos institucionales","Plan Anticorrupción y de Atención al Ciudadano","Eje 7 - Gobierno Legítimo, fortalecimiento local y eficiencia","42 - Transparencia, gestión pública y servicio a la ciudadanía.","Gestionar el 100% del plan de adecuación y sostenibilidad SIG-MIPG",{"$f":"IFERROR(VLOOKUP($F35,#REF!,3,0),\"\")","v":""},null,{"$f":"IFERROR(VLOOKUP($F35,#REF!,2,0)/100,\"0\")","v":"0"},{"$f":"IFERROR(VLOOKUP($F35,#REF!,3,0),\"\")","v":""},null,{"$f":"IFERROR(VLOOKUP($F35,#REF!,2,0)/100,\"0\")","v":"0"},{"$f":"IFERROR(VLOOKUP($F35,#REF!,3,0),\"\")","v":""},0.15,{"$f":"IFERROR(VLOOKUP($F35,#REF!,2,0)/100,\"0\")","v":"0"},{"$f":"IFERROR(VLOOKUP($F35,#REF!,3,0),\"\")","v":""},null,{"$f":"IFERROR(VLOOKUP($F35,#REF!,2,0)/100,\"0\")","v":"0"},{"$f":"IFERROR(VLOOKUP($F35,#REF!,3,0),\"\")","v":""},null,{"$f":"IFERROR(VLOOKUP($F35,#REF!,2,0)/100,\"0\")","v":"0"},{"$f":"IFERROR(VLOOKUP($F35,#REF!,3,0),\"\")","v":""},0.2,{"$f":"IFERROR(VLOOKUP($F35,#REF!,2,0)/100,\"0\")","v":"0"},{"$f":"IFERROR(VLOOKUP($F35,#REF!,3,0),\"\")","v":""},null,{"$f":"IFERROR(VLOOKUP($F35,#REF!,2,0)/100,\"0\")","v":"0"},{"$f":"IFERROR(VLOOKUP($F35,#REF!,3,0),\"\")","v":""},null,{"$f":"IFERROR(VLOOKUP($F35,#REF!,2,0)/100,\"0\")","v":"0"},{"$f":"IFERROR(VLOOKUP($F35,#REF!,3,0),\"\")","v":""},0.2,{"$f":"IFERROR(VLOOKUP($F35,#REF!,2,0)/100,\"0\")","v":"0"},{"$f":"IFERROR(VLOOKUP($F35,#REF!,3,0),\"\")","v":""},null,{"$f":"IFERROR(VLOOKUP($F35,#REF!,2,0)/100,\"0\")","v":"0"},{"$f":"IFERROR(VLOOKUP($F35,#REF!,3,0),\"\")","v":""},null,{"$f":"IFERROR(VLOOKUP($F35,#REF!,2,0)/100,\"0\")","v":"0"},{"$f":"IFERROR(VLOOKUP($F35,#REF!,3,0),\"\")","v":""},0.45,{"$f":"IFERROR(VLOOKUP($F35,#REF!,2,0)/100,\"0\")","v":"0"},0,0]
[null,"SUBDIRECCIÓN ADMINISTRATIVA Y FINANCIERA (SAF)",null,null,null,"Formulación de las Tablas de valoración  documental (TVD)",1,"2020-05-01","2020-12-31","Propuesta de la formulación de la tabla de valoración documental (TVD)","1042-Fortalecimiento institucional en la gestión pública ","Fortalecer y mantener  el  100%  de la memoria institucional de la Unidad y promover la cultura de cero papel.","Fortalecimiento Institucional: Consolidar una entidad moderna y efectiva constituida por un equipo comprometido con el logro de los objetivos institucionales","Plan Anticorrupción y de Atención al Ciudadano","Eje 7 - Gobierno Legítimo, fortalecimiento local y eficiencia","42 - Transparencia, gestión pública y servicio a la ciudadanía.","Gestionar el 100% del plan de adecuación y sostenibilidad SIG-MIPG",null,null,{"$f":"IFERROR(VLOOKUP($F36,#REF!,2,0)/100,\"0\")","v":"0"},null,null,{"$f":"IFERROR(VLOOKUP($F36,#REF!,2,0)/100,\"0\")","v":"0"},null,null,{"$f":"IFERROR(VLOOKUP($F36,#REF!,2,0)/100,\"0\")","v":"0"},null,null,{"$f":"IFERROR(VLOOKUP($F36,#REF!,2,0)/100,\"0\")","v":"0"},null,null,{"$f":"IFERROR(VLOOKUP($F36,#REF!,2,0)/100,\"0\")","v":"0"},null,null,{"$f":"IFERROR(VLOOKUP($F36,#REF!,2,0)/100,\"0\")","v":"0"},null,null,{"$f":"IFERROR(VLOOKUP($F36,#REF!,2,0)/100,\"0\")","v":"0"},null,null,{"$f":"IFERROR(VLOOKUP($F36,#REF!,2,0)/100,\"0\")","v":"0"},null,0.5,{"$f":"IFERROR(VLOOKUP($F36,#REF!,2,0)/100,\"0\")","v":"0"},null,null,{"$f":"IFERROR(VLOOKUP($F36,#REF!,2,0)/100,\"0\")","v":"0"},null,null,{"$f":"IFERROR(VLOOKUP($F36,#REF!,2,0)/100,\"0\")","v":"0"},null,0.5,{"$f":"IFERROR(VLOOKUP($F36,#REF!,2,0)/100,\"0\")","v":"0"},0,0]
[null,"SUBDIRECCIÓN ADMINISTRATIVA Y FINANCIERA (SAF)",null,"Contar con la digitalización del 100% de los documentos de Archivo de las vigencias 2016 en adelante","Número de documentos digitalizados","Plan de trabajo que garantice el  cumplimiento de la meta",1,"2020-03-01","2020-12-31","Reporte de documentos digitalizados","1042-Fortalecimiento institucional en la gestión pública ","Fortalecer y mantener  el  100%  de la memoria institucional de la Unidad y promover la cultura de cero papel.","Fortalecimiento Institucional: Consolidar una entidad moderna y efectiva constituida por un equipo comprometido con el logro de los objetivos institucionales","Plan Anticorrupción y de Atención al Ciudadano","Eje 7 - Gobierno Legítimo, fortalecimiento local y eficiencia","42 - Transparencia, gestión pública y servicio a la ciudadanía.","Gestionar el 100% del plan de adecuación y sostenibilidad SIG-MIPG",{"$f":"IFERROR(VLOOKUP($F37,#REF!,3,0),\"\")","v":""},null,{"$f":"IFERROR(VLOOKUP($F37,#REF!,2,0)/100,\"0\")","v":"0"},{"$f":"IFERROR(VLOOKUP($F37,#REF!,3,0),\"\")","v":""},null,{"$f":"IFERROR(VLOOKUP($F37,#REF!,2,0)/100,\"0\")","v":"0"},{"$f":"IFERROR(VLOOKUP($F37,#REF!,3,0),\"\")","v":""},0.1,{"$f":"IFERROR(VLOOKUP($F37,#REF!,2,0)/100,\"0\")","v":"0"},{"$f":"IFERROR(VLOOKUP($F37,#REF!,3,0),\"\")","v":""},0.1,{"$f":"IFERROR(VLOOKUP($F37,#REF!,2,0)/100,\"0\")","v":"0"},{"$f":"IFERROR(VLOOKUP($F37,#REF!,3,0),\"\")","v":""},0.1,{"$f":"IFERROR(VLOOKUP($F37,#REF!,2,0)/100,\"0\")","v":"0"},{"$f":"IFERROR(VLOOKUP($F37,#REF!,3,0),\"\")","v":""},0.1,{"$f":"IFERROR(VLOOKUP($F37,#REF!,2,0)/100,\"0\")","v":"0"},{"$f":"IFERROR(VLOOKUP($F37,#REF!,3,0),\"\")","v":""},0.1,{"$f":"IFERROR(VLOOKUP($F37,#REF!,2,0)/100,\"0\")","v":"0"},{"$f":"IFERROR(VLOOKUP($F37,#REF!,3,0),\"\")","v":""},0.1,{"$f":"IFERROR(VLOOKUP($F37,#REF!,2,0)/100,\"0\")","v":"0"},{"$f":"IFERROR(VLOOKUP($F37,#REF!,3,0),\"\")","v":""},0.1,{"$f":"IFERROR(VLOOKUP($F37,#REF!,2,0)/100,\"0\")","v":"0"},{"$f":"IFERROR(VLOOKUP($F37,#REF!,3,0),\"\")","v":""},0.1,{"$f":"IFERROR(VLOOKUP($F37,#REF!,2,0)/100,\"0\")","v":"0"},{"$f":"IFERROR(VLOOKUP($F37,#REF!,3,0),\"\")","v":""},0.1,{"$f":"IFERROR(VLOOKUP($F37,#REF!,2,0)/100,\"0\")","v":"0"},{"$f":"IFERROR(VLOOKUP($F37,#REF!,3,0),\"\")","v":""},0.1,{"$f":"IFERROR(VLOOKUP($F37,#REF!,2,0)/100,\"0\")","v":"0"},0,0]
[null,"SUBDIRECCIÓN ADMINISTRATIVA Y FINANCIERA (SAF)",null,"Integración del Sistema de Gestión Documental Orfeo con Bogotá te Escucha Sistema distrital de quejas y soluciones circular 007 de 2019","1 fase implementada","Implementación de la primera Fase que consiste en la radicación web ",1,"2020-01-01","2020-12-31","Informe de implementación ","1042-Fortalecimiento institucional en la gestión pública ","Fortalecer y mantener  el  100%  de la memoria institucional de la Unidad y promover la cultura de cero papel.","Fortalecimiento Institucional: Consolidar una entidad moderna y efectiva constituida por un equipo comprometido con el logro de los objetivos institucionales","Plan Anticorrupción y de Atención al Ciudadano","Eje 7 - Gobierno Legítimo, fortalecimiento local y eficiencia","42 - Transparencia, gestión pública y servicio a la ciudadanía.","Gestionar el 100% del plan de adecuación y sostenibilidad SIG-MIPG",{"$f":"IFERROR(VLOOKUP($F38,#REF!,3,0),\"\")","v":""},null,{"$f":"IFERROR(VLOOKUP($F38,#REF!,2,0)/100,\"0\")","v":"0"},{"$f":"IFERROR(VLOOKUP($F38,#REF!,3,0),\"\")","v":""},null,{"$f":"IFERROR(VLOOKUP($F38,#REF!,2,0)/100,\"0\")","v":"0"},{"$f":"IFERROR(VLOOKUP($F38,#REF!,3,0),\"\")","v":""},null,{"$f":"IFERROR(VLOOKUP($F38,#REF!,2,0)/100,\"0\")","v":"0"},{"$f":"IFERROR(VLOOKUP($F38,#REF!,3,0),\"\")","v":""},null,{"$f":"IFERROR(VLOOKUP($F38,#REF!,2,0)/100,\"0\")","v":"0"},{"$f":"IFERROR(VLOOKUP($F38,#REF!,3,0),\"\")","v":""},null,{"$f":"IFERROR(VLOOKUP($F38,#REF!,2,0)/100,\"0\")","v":"0"},{"$f":"IFERROR(VLOOKUP($F38,#REF!,3,0),\"\")","v":""},null,{"$f":"IFERROR(VLOOKUP($F38,#REF!,2,0)/100,\"0\")","v":"0"},{"$f":"IFERROR(VLOOKUP($F38,#REF!,3,0),\"\")","v":""},null,{"$f":"IFERROR(VLOOKUP($F38,#REF!,2,0)/100,\"0\")","v":"0"},{"$f":"IFERROR(VLOOKUP($F38,#REF!,3,0),\"\")","v":""},null,{"$f":"IFERROR(VLOOKUP($F38,#REF!,2,0)/100,\"0\")","v":"0"},{"$f":"IFERROR(VLOOKUP($F38,#REF!,3,0),\"\")","v":""},null,{"$f":"IFERROR(VLOOKUP($F38,#REF!,2,0)/100,\"0\")","v":"0"},{"$f":"IFERROR(VLOOKUP($F38,#REF!,3,0),\"\")","v":""},null,{"$f":"IFERROR(VLOOKUP($F38,#REF!,2,0)/100,\"0\")","v":"0"},{"$f":"IFERROR(VLOOKUP($F38,#REF!,3,0),\"\")","v":""},null,{"$f":"IFERROR(VLOOKUP($F38,#REF!,2,0)/100,\"0\")","v":"0"},{"$f":"IFERROR(VLOOKUP($F38,#REF!,3,0),\"\")","v":""},1,{"$f":"IFERROR(VLOOKUP($F38,#REF!,2,0)/100,\"0\")","v":"0"},0,0]
[null,"SUBDIRECCIÓN ADMINISTRATIVA Y FINANCIERA (SAF)","Fortalecer la Gestión de atención al ciudadano","Establecer una línea base de percepción ciudadana  frente a  la atención  de PQRS ","línea base definida","Implementación de la encuesta de percepción en el canal telefónico. (viene 2019)",1,"2020-01-01","2020-12-31","Encuesta Implementada","1042-Fortalecimiento institucional en la gestión pública ","Mejorar el 100% de la capacidad operativa y administrativa para el buen desarrollo organizacional de la Unidad.","Fortalecimiento Institucional: Consolidar una entidad moderna y efectiva constituida por un equipo comprometido con el logro de los objetivos institucionales","Plan Anticorrupción y de Atención al Ciudadano","Eje 7 - Gobierno Legítimo, fortalecimiento local y eficiencia","42 - Transparencia, gestión pública y servicio a la ciudadanía.","Gestionar el 100% del plan de adecuación y sostenibilidad SIG-MIPG",{"$f":"IFERROR(VLOOKUP($F39,#REF!,3,0),\"\")","v":""},null,{"$f":"IFERROR(VLOOKUP($F39,#REF!,2,0)/100,\"0\")","v":"0"},{"$f":"IFERROR(VLOOKUP($F39,#REF!,3,0),\"\")","v":""},null,{"$f":"IFERROR(VLOOKUP($F39,#REF!,2,0)/100,\"0\")","v":"0"},{"$f":"IFERROR(VLOOKUP($F39,#REF!,3,0),\"\")","v":""},null,{"$f":"IFERROR(VLOOKUP($F39,#REF!,2,0)/100,\"0\")","v":"0"},{"$f":"IFERROR(VLOOKUP($F39,#REF!,3,0),\"\")","v":""},0.3,{"$f":"IFERROR(VLOOKUP($F39,#REF!,2,0)/100,\"0\")","v":"0"},{"$f":"IFERROR(VLOOKUP($F39,#REF!,3,0),\"\")","v":""},null,{"$f":"IFERROR(VLOOKUP($F39,#REF!,2,0)/100,\"0\")","v":"0"},{"$f":"IFERROR(VLOOKUP($F39,#REF!,3,0),\"\")","v":""},null,{"$f":"IFERROR(VLOOKUP($F39,#REF!,2,0)/100,\"0\")","v":"0"},{"$f":"IFERROR(VLOOKUP($F39,#REF!,3,0),\"\")","v":""},0.3,{"$f":"IFERROR(VLOOKUP($F39,#REF!,2,0)/100,\"0\")","v":"0"},{"$f":"IFERROR(VLOOKUP($F39,#REF!,3,0),\"\")","v":""},null,{"$f":"IFERROR(VLOOKUP($F39,#REF!,2,0)/100,\"0\")","v":"0"},{"$f":"IFERROR(VLOOKUP($F39,#REF!,3,0),\"\")","v":""},null,{"$f":"IFERROR(VLOOKUP($F39,#REF!,2,0)/100,\"0\")","v":"0"},{"$f":"IFERROR(VLOOKUP($F39,#REF!,3,0),\"\")","v":""},null,{"$f":"IFERROR(VLOOKUP($F39,#REF!,2,0)/100,\"0\")","v":"0"},{"$f":"IFERROR(VLOOKUP($F39,#REF!,3,0),\"\")","v":""},null,{"$f":"IFERROR(VLOOKUP($F39,#REF!,2,0)/100,\"0\")","v":"0"},{"$f":"IFERROR(VLOOKUP($F39,#REF!,3,0),\"\")","v":""},0.4,{"$f":"IFERROR(VLOOKUP($F39,#REF!,2,0)/100,\"0\")","v":"0"},0,0]
[null,"SUBDIRECCIÓN ADMINISTRATIVA Y FINANCIERA (SAF)","Fortalecer el Sistema Integrado de Gestión Financiera    SI-CAPITAL.","Optimizar la utilización de los módulos que conforman el aplicativo SI-CAPITAL","Reunión de seguimiento mensual","Seguimiento a la integración de los módulos que conforman el aplicativo SI-CAPITAL",0.7,"2020-01-01","2020-12-31","Acta de reunión","1042-Fortalecimiento institucional en la gestión pública ","Mejorar el 100% de la capacidad operativa y administrativa para el buen desarrollo organizacional de la Unidad.","Fortalecimiento Institucional: Consolidar una entidad moderna y efectiva constituida por un equipo comprometido con el logro de los objetivos institucionales","N/A","Eje 7 - Gobierno Legítimo, fortalecimiento local y eficiencia","42 - Transparencia, gestión pública y servicio a la ciudadanía.","Gestionar el 100% del plan de adecuación y sostenibilidad SIG-MIPG",{"$f":"IFERROR(VLOOKUP($F40,#REF!,3,0),\"\")","v":""},0.08,{"$f":"IFERROR(VLOOKUP($F40,#REF!,2,0)/100,\"0\")","v":"0"},{"$f":"IFERROR(VLOOKUP($F40,#REF!,3,0),\"\")","v":""},0.08,{"$f":"IFERROR(VLOOKUP($F40,#REF!,2,0)/100,\"0\")","v":"0"},{"$f":"IFERROR(VLOOKUP($F40,#REF!,3,0),\"\")","v":""},0.08,{"$f":"IFERROR(VLOOKUP($F40,#REF!,2,0)/100,\"0\")","v":"0"},{"$f":"IFERROR(VLOOKUP($F40,#REF!,3,0),\"\")","v":""},0.08,{"$f":"IFERROR(VLOOKUP($F40,#REF!,2,0)/100,\"0\")","v":"0"},{"$f":"IFERROR(VLOOKUP($F40,#REF!,3,0),\"\")","v":""},0.08,{"$f":"IFERROR(VLOOKUP($F40,#REF!,2,0)/100,\"0\")","v":"0"},{"$f":"IFERROR(VLOOKUP($F40,#REF!,3,0),\"\")","v":""},0.08,{"$f":"IFERROR(VLOOKUP($F40,#REF!,2,0)/100,\"0\")","v":"0"},{"$f":"IFERROR(VLOOKUP($F40,#REF!,3,0),\"\")","v":""},0.08,{"$f":"IFERROR(VLOOKUP($F40,#REF!,2,0)/100,\"0\")","v":"0"},{"$f":"IFERROR(VLOOKUP($F40,#REF!,3,0),\"\")","v":""},0.08,{"$f":"IFERROR(VLOOKUP($F40,#REF!,2,0)/100,\"0\")","v":"0"},{"$f":"IFERROR(VLOOKUP($F40,#REF!,3,0),\"\")","v":""},0.08,{"$f":"IFERROR(VLOOKUP($F40,#REF!,2,0)/100,\"0\")","v":"0"},{"$f":"IFERROR(VLOOKUP($F40,#REF!,3,0),\"\")","v":""},0.08,{"$f":"IFERROR(VLOOKUP($F40,#REF!,2,0)/100,\"0\")","v":"0"},{"$f":"IFERROR(VLOOKUP($F40,#REF!,3,0),\"\")","v":""},0.08,{"$f":"IFERROR(VLOOKUP($F40,#REF!,2,0)/100,\"0\")","v":"0"},{"$f":"IFERROR(VLOOKUP($F40,#REF!,3,0),\"\")","v":""},0.12,{"$f":"IFERROR(VLOOKUP($F40,#REF!,2,0)/100,\"0\")","v":"0"},0,0]
[null,"SUBDIRECCIÓN ADMINISTRATIVA Y FINANCIERA (SAF)",null,null,"Dos desarrollos de funcionalidad","Dos desarrollos de funcionalidades del aplicativo SI-CAPITAL que optimice la gestión financiera de la entidad",0.3,"2020-01-01","2020-12-31","Acta de reunión ","1042-Fortalecimiento institucional en la gestión pública ","Mejorar el 100% de la capacidad operativa y administrativa para el buen desarrollo organizacional de la Unidad.","Fortalecimiento Institucional: Consolidar una entidad moderna y efectiva constituida por un equipo comprometido con el logro de los objetivos institucionales","N/A","Eje 7 - Gobierno Legítimo, fortalecimiento local y eficiencia","42 - Transparencia, gestión pública y servicio a la ciudadanía.","Gestionar el 100% del plan de adecuación y sostenibilidad SIG-MIPG",{"$f":"IFERROR(VLOOKUP($F41,#REF!,3,0),\"\")","v":""},null,{"$f":"IFERROR(VLOOKUP($F41,#REF!,2,0)/100,\"0\")","v":"0"},{"$f":"IFERROR(VLOOKUP($F41,#REF!,3,0),\"\")","v":""},null,{"$f":"IFERROR(VLOOKUP($F41,#REF!,2,0)/100,\"0\")","v":"0"},{"$f":"IFERROR(VLOOKUP($F41,#REF!,3,0),\"\")","v":""},null,{"$f":"IFERROR(VLOOKUP($F41,#REF!,2,0)/100,\"0\")","v":"0"},{"$f":"IFERROR(VLOOKUP($F41,#REF!,3,0),\"\")","v":""},null,{"$f":"IFERROR(VLOOKUP($F41,#REF!,2,0)/100,\"0\")","v":"0"},{"$f":"IFERROR(VLOOKUP($F41,#REF!,3,0),\"\")","v":""},null,{"$f":"IFERROR(VLOOKUP($F41,#REF!,2,0)/100,\"0\")","v":"0"},{"$f":"IFERROR(VLOOKUP($F41,#REF!,3,0),\"\")","v":""},null,{"$f":"IFERROR(VLOOKUP($F41,#REF!,2,0)/100,\"0\")","v":"0"},{"$f":"IFERROR(VLOOKUP($F41,#REF!,3,0),\"\")","v":""},null,{"$f":"IFERROR(VLOOKUP($F41,#REF!,2,0)/100,\"0\")","v":"0"},{"$f":"IFERROR(VLOOKUP($F41,#REF!,3,0),\"\")","v":""},null,{"$f":"IFERROR(VLOOKUP($F41,#REF!,2,0)/100,\"0\")","v":"0"},{"$f":"IFERROR(VLOOKUP($F41,#REF!,3,0),\"\")","v":""},null,{"$f":"IFERROR(VLOOKUP($F41,#REF!,2,0)/100,\"0\")","v":"0"},{"$f":"IFERROR(VLOOKUP($F41,#REF!,3,0),\"\")","v":""},null,{"$f":"IFERROR(VLOOKUP($F41,#REF!,2,0)/100,\"0\")","v":"0"},{"$f":"IFERROR(VLOOKUP($F41,#REF!,3,0),\"\")","v":""},null,{"$f":"IFERROR(VLOOKUP($F41,#REF!,2,0)/100,\"0\")","v":"0"},{"$f":"IFERROR(VLOOKUP($F41,#REF!,3,0),\"\")","v":""},1,{"$f":"IFERROR(VLOOKUP($F41,#REF!,2,0)/100,\"0\")","v":"0"},0,0]
[null,"SUBDIRECCIÓN ADMINISTRATIVA Y FINANCIERA (SAF)","Hacer de la UAESP un referente en el Distrito, por su ambiente laboral","Fortalecer el ambiente  laboral  de la entidad ","Resultado de la medición de ambiente/clima laboral \n","Ejecutar el plan de intervención para el mejoramiento del clima laboral.\n\n",0.3,"2020-02-03","2020-12-31","Plan de intervención formulado y ejecutado al 90%. \n","1042-Fortalecimiento institucional en la gestión pública ","Mejorar el 100% de la capacidad operativa y administrativa para el buen desarrollo organizacional de la Unidad.","Fortalecimiento Institucional: Consolidar una entidad moderna y efectiva constituida por un equipo comprometido con el logro de los objetivos institucionales","Plan Estratégico de Talento Humano","Eje 7 - Gobierno Legítimo, fortalecimiento local y eficiencia","42 - Transparencia, gestión pública y servicio a la ciudadanía.","Gestionar el 100% del plan de adecuación y sostenibilidad SIG-MIPG",{"$f":"IFERROR(VLOOKUP($F42,#REF!,3,0),\"\")","v":""},null,{"$f":"IFERROR(VLOOKUP($F42,#REF!,2,0)/100,\"0\")","v":"0"},{"$f":"IFERROR(VLOOKUP($F42,#REF!,3,0),\"\")","v":""},null,{"$f":"IFERROR(VLOOKUP($F42,#REF!,2,0)/100,\"0\")","v":"0"},{"$f":"IFERROR(VLOOKUP($F42,#REF!,3,0),\"\")","v":""},0.25,{"$f":"IFERROR(VLOOKUP($F42,#REF!,2,0)/100,\"0\")","v":"0"},{"$f":"IFERROR(VLOOKUP($F42,#REF!,3,0),\"\")","v":""},null,{"$f":"IFERROR(VLOOKUP($F42,#REF!,2,0)/100,\"0\")","v":"0"},{"$f":"IFERROR(VLOOKUP($F42,#REF!,3,0),\"\")","v":""},null,{"$f":"IFERROR(VLOOKUP($F42,#REF!,2,0)/100,\"0\")","v":"0"},{"$f":"IFERROR(VLOOKUP($F42,#REF!,3,0),\"\")","v":""},0.25,{"$f":"IFERROR(VLOOKUP($F42,#REF!,2,0)/100,\"0\")","v":"0"},{"$f":"IFERROR(VLOOKUP($F42,#REF!,3,0),\"\")","v":""},null,{"$f":"IFERROR(VLOOKUP($F42,#REF!,2,0)/100,\"0\")","v":"0"},{"$f":"IFERROR(VLOOKUP($F42,#REF!,3,0),\"\")","v":""},null,{"$f":"IFERROR(VLOOKUP($F42,#REF!,2,0)/100,\"0\")","v":"0"},{"$f":"IFERROR(VLOOKUP($F42,#REF!,3,0),\"\")","v":""},0.25,{"$f":"IFERROR(VLOOKUP($F42,#REF!,2,0)/100,\"0\")","v":"0"},{"$f":"IFERROR(VLOOKUP($F42,#REF!,3,0),\"\")","v":""},null,{"$f":"IFERROR(VLOOKUP($F42,#REF!,2,0)/100,\"0\")","v":"0"},{"$f":"IFERROR(VLOOKUP($F42,#REF!,3,0),\"\")","v":""},null,{"$f":"IFERROR(VLOOKUP($F42,#REF!,2,0)/100,\"0\")","v":"0"},{"$f":"IFERROR(VLOOKUP($F42,#REF!,3,0),\"\")","v":""},0.25,{"$f":"IFERROR(VLOOKUP($F42,#REF!,2,0)/100,\"0\")","v":"0"},0,0]
[null,"SUBDIRECCIÓN ADMINISTRATIVA Y FINANCIERA (SAF)",null,null,"Acciones cumplidas / Acciones programadas ","Fortalecer  la modalidad de teletrabajo",0.1,"2020-02-03","2020-12-31","Desarrollo de al menos una mejora en la implementación de la modalidad de teletrabajo","1042-Fortalecimiento institucional en la gestión pública ","Mejorar el 100% de la capacidad operativa y administrativa para el buen desarrollo organizacional de la Unidad.","Fortalecimiento Institucional: Consolidar una entidad moderna y efectiva constituida por un equipo comprometido con el logro de los objetivos institucionales","Plan Institucional de Capacitación","Eje 7 - Gobierno Legítimo, fortalecimiento local y eficiencia","42 - Transparencia, gestión pública y servicio a la ciudadanía.","Gestionar el 100% del plan de adecuación y sostenibilidad SIG-MIPG",{"$f":"IFERROR(VLOOKUP($F43,#REF!,3,0),\"\")","v":""},null,{"$f":"IFERROR(VLOOKUP($F43,#REF!,2,0)/100,\"0\")","v":"0"},{"$f":"IFERROR(VLOOKUP($F43,#REF!,3,0),\"\")","v":""},null,{"$f":"IFERROR(VLOOKUP($F43,#REF!,2,0)/100,\"0\")","v":"0"},{"$f":"IFERROR(VLOOKUP($F43,#REF!,3,0),\"\")","v":""},0.25,{"$f":"IFERROR(VLOOKUP($F43,#REF!,2,0)/100,\"0\")","v":"0"},{"$f":"IFERROR(VLOOKUP($F43,#REF!,3,0),\"\")","v":""},null,{"$f":"IFERROR(VLOOKUP($F43,#REF!,2,0)/100,\"0\")","v":"0"},{"$f":"IFERROR(VLOOKUP($F43,#REF!,3,0),\"\")","v":""},null,{"$f":"IFERROR(VLOOKUP($F43,#REF!,2,0)/100,\"0\")","v":"0"},{"$f":"IFERROR(VLOOKUP($F43,#REF!,3,0),\"\")","v":""},0.25,{"$f":"IFERROR(VLOOKUP($F43,#REF!,2,0)/100,\"0\")","v":"0"},{"$f":"IFERROR(VLOOKUP($F43,#REF!,3,0),\"\")","v":""},null,{"$f":"IFERROR(VLOOKUP($F43,#REF!,2,0)/100,\"0\")","v":"0"},{"$f":"IFERROR(VLOOKUP($F43,#REF!,3,0),\"\")","v":""},null,{"$f":"IFERROR(VLOOKUP($F43,#REF!,2,0)/100,\"0\")","v":"0"},{"$f":"IFERROR(VLOOKUP($F43,#REF!,3,0),\"\")","v":""},0.25,{"$f":"IFERROR(VLOOKUP($F43,#REF!,2,0)/100,\"0\")","v":"0"},{"$f":"IFERROR(VLOOKUP($F43,#REF!,3,0),\"\")","v":""},null,{"$f":"IFERROR(VLOOKUP($F43,#REF!,2,0)/100,\"0\")","v":"0"},{"$f":"IFERROR(VLOOKUP($F43,#REF!,3,0),\"\")","v":""},null,{"$f":"IFERROR(VLOOKUP($F43,#REF!,2,0)/100,\"0\")","v":"0"},{"$f":"IFERROR(VLOOKUP($F43,#REF!,3,0),\"\")","v":""},0.25,{"$f":"IFERROR(VLOOKUP($F43,#REF!,2,0)/100,\"0\")","v":"0"},0,0]
[null,"SUBDIRECCIÓN ADMINISTRATIVA Y FINANCIERA (SAF)",null,null,"% de ejecucion programado.","Formular y ejecutar el Plan Institucional de Capacitación de la entidad en un 90%",0.3,"2020-02-03","2020-12-31","Plan de Capacitación formulado y ejecutado al 90%","1042-Fortalecimiento institucional en la gestión pública ","Mejorar el 100% de la capacidad operativa y administrativa para el buen desarrollo organizacional de la Unidad.","Fortalecimiento Institucional: Consolidar una entidad moderna y efectiva constituida por un equipo comprometido con el logro de los objetivos institucionales","Plan de incentivos institucionales","Eje 7 - Gobierno Legítimo, fortalecimiento local y eficiencia","42 - Transparencia, gestión pública y servicio a la ciudadanía.","Gestionar el 100% del plan de adecuación y sostenibilidad SIG-MIPG",{"$f":"IFERROR(VLOOKUP($F44,#REF!,3,0),\"\")","v":""},null,{"$f":"IFERROR(VLOOKUP($F44,#REF!,2,0)/100,\"0\")","v":"0"},{"$f":"IFERROR(VLOOKUP($F44,#REF!,3,0),\"\")","v":""},null,{"$f":"IFERROR(VLOOKUP($F44,#REF!,2,0)/100,\"0\")","v":"0"},{"$f":"IFERROR(VLOOKUP($F44,#REF!,3,0),\"\")","v":""},0.25,{"$f":"IFERROR(VLOOKUP($F44,#REF!,2,0)/100,\"0\")","v":"0"},{"$f":"IFERROR(VLOOKUP($F44,#REF!,3,0),\"\")","v":""},null,{"$f":"IFERROR(VLOOKUP($F44,#REF!,2,0)/100,\"0\")","v":"0"},{"$f":"IFERROR(VLOOKUP($F44,#REF!,3,0),\"\")","v":""},null,{"$f":"IFERROR(VLOOKUP($F44,#REF!,2,0)/100,\"0\")","v":"0"},{"$f":"IFERROR(VLOOKUP($F44,#REF!,3,0),\"\")","v":""},0.25,{"$f":"IFERROR(VLOOKUP($F44,#REF!,2,0)/100,\"0\")","v":"0"},{"$f":"IFERROR(VLOOKUP($F44,#REF!,3,0),\"\")","v":""},null,{"$f":"IFERROR(VLOOKUP($F44,#REF!,2,0)/100,\"0\")","v":"0"},{"$f":"IFERROR(VLOOKUP($F44,#REF!,3,0),\"\")","v":""},null,{"$f":"IFERROR(VLOOKUP($F44,#REF!,2,0)/100,\"0\")","v":"0"},{"$f":"IFERROR(VLOOKUP($F44,#REF!,3,0),\"\")","v":""},0.25,{"$f":"IFERROR(VLOOKUP($F44,#REF!,2,0)/100,\"0\")","v":"0"},{"$f":"IFERROR(VLOOKUP($F44,#REF!,3,0),\"\")","v":""},null,{"$f":"IFERROR(VLOOKUP($F44,#REF!,2,0)/100,\"0\")","v":"0"},{"$f":"IFERROR(VLOOKUP($F44,#REF!,3,0),\"\")","v":""},null,{"$f":"IFERROR(VLOOKUP($F44,#REF!,2,0)/100,\"0\")","v":"0"},{"$f":"IFERROR(VLOOKUP($F44,#REF!,3,0),\"\")","v":""},0.25,{"$f":"IFERROR(VLOOKUP($F44,#REF!,2,0)/100,\"0\")","v":"0"},0,0]
[null,"SUBDIRECCIÓN ADMINISTRATIVA Y FINANCIERA (SAF)",null,null,"% de ejecucion programado.","Ejecutar el Plan de Bienestar e incentivos de la entidad al 90%",0.3,"2020-02-03","2020-12-31","Plan de bienestar formulado y ejecutado al 90%","1042-Fortalecimiento institucional en la gestión pública ","Mejorar el 100% de la capacidad operativa y administrativa para el buen desarrollo organizacional de la Unidad.","Fortalecimiento Institucional: Consolidar una entidad moderna y efectiva constituida por un equipo comprometido con el logro de los objetivos institucionales","Plan de Trabajo Anual en Seguridad y Salud en el Trabajo","Eje 7 - Gobierno Legítimo, fortalecimiento local y eficiencia","42 - Transparencia, gestión pública y servicio a la ciudadanía.","Gestionar el 100% del plan de adecuación y sostenibilidad SIG-MIPG",{"$f":"IFERROR(VLOOKUP($F45,#REF!,3,0),\"\")","v":""},null,{"$f":"IFERROR(VLOOKUP($F45,#REF!,2,0)/100,\"0\")","v":"0"},{"$f":"IFERROR(VLOOKUP($F45,#REF!,3,0),\"\")","v":""},null,{"$f":"IFERROR(VLOOKUP($F45,#REF!,2,0)/100,\"0\")","v":"0"},{"$f":"IFERROR(VLOOKUP($F45,#REF!,3,0),\"\")","v":""},0.25,{"$f":"IFERROR(VLOOKUP($F45,#REF!,2,0)/100,\"0\")","v":"0"},{"$f":"IFERROR(VLOOKUP($F45,#REF!,3,0),\"\")","v":""},null,{"$f":"IFERROR(VLOOKUP($F45,#REF!,2,0)/100,\"0\")","v":"0"},{"$f":"IFERROR(VLOOKUP($F45,#REF!,3,0),\"\")","v":""},null,{"$f":"IFERROR(VLOOKUP($F45,#REF!,2,0)/100,\"0\")","v":"0"},{"$f":"IFERROR(VLOOKUP($F45,#REF!,3,0),\"\")","v":""},0.25,{"$f":"IFERROR(VLOOKUP($F45,#REF!,2,0)/100,\"0\")","v":"0"},{"$f":"IFERROR(VLOOKUP($F45,#REF!,3,0),\"\")","v":""},null,{"$f":"IFERROR(VLOOKUP($F45,#REF!,2,0)/100,\"0\")","v":"0"},{"$f":"IFERROR(VLOOKUP($F45,#REF!,3,0),\"\")","v":""},null,{"$f":"IFERROR(VLOOKUP($F45,#REF!,2,0)/100,\"0\")","v":"0"},{"$f":"IFERROR(VLOOKUP($F45,#REF!,3,0),\"\")","v":""},0.25,{"$f":"IFERROR(VLOOKUP($F45,#REF!,2,0)/100,\"0\")","v":"0"},{"$f":"IFERROR(VLOOKUP($F45,#REF!,3,0),\"\")","v":""},null,{"$f":"IFERROR(VLOOKUP($F45,#REF!,2,0)/100,\"0\")","v":"0"},{"$f":"IFERROR(VLOOKUP($F45,#REF!,3,0),\"\")","v":""},null,{"$f":"IFERROR(VLOOKUP($F45,#REF!,2,0)/100,\"0\")","v":"0"},{"$f":"IFERROR(VLOOKUP($F45,#REF!,3,0),\"\")","v":""},0.25,{"$f":"IFERROR(VLOOKUP($F45,#REF!,2,0)/100,\"0\")","v":"0"},0,0]
[null,"SUBDIRECCIÓN ADMINISTRATIVA Y FINANCIERA (SAF)",null,"Implementar en un 90% el Sistema de Gestión de Seguridad y Salud en el Trabajo (SGSST).","% de ejecucion programado del plan anual  del SGSST.","Actividades ejecutadas hasta cumplir con el % programado.",1,"2020-02-03","2020-12-31","Plan Anual del SGSST ejecutado en el 90%","1042-Fortalecimiento institucional en la gestión pública ","Mejorar el 100% de la capacidad operativa y administrativa para el buen desarrollo organizacional de la Unidad.","Fortalecimiento Institucional: Consolidar una entidad moderna y efectiva constituida por un equipo comprometido con el logro de los objetivos institucionales","Plan de Trabajo Anual en Seguridad y Salud en el Trabajo","Eje 7 - Gobierno Legítimo, fortalecimiento local y eficiencia","42 - Transparencia, gestión pública y servicio a la ciudadanía.","Gestionar el 100% del plan de adecuación y sostenibilidad SIG-MIPG",{"$f":"IFERROR(VLOOKUP($F46,#REF!,3,0),\"\")","v":""},null,{"$f":"IFERROR(VLOOKUP($F46,#REF!,2,0)/100,\"0\")","v":"0"},{"$f":"IFERROR(VLOOKUP($F46,#REF!,3,0),\"\")","v":""},null,{"$f":"IFERROR(VLOOKUP($F46,#REF!,2,0)/100,\"0\")","v":"0"},{"$f":"IFERROR(VLOOKUP($F46,#REF!,3,0),\"\")","v":""},null,{"$f":"IFERROR(VLOOKUP($F46,#REF!,2,0)/100,\"0\")","v":"0"},{"$f":"IFERROR(VLOOKUP($F46,#REF!,3,0),\"\")","v":""},null,{"$f":"IFERROR(VLOOKUP($F46,#REF!,2,0)/100,\"0\")","v":"0"},{"$f":"IFERROR(VLOOKUP($F46,#REF!,3,0),\"\")","v":""},null,{"$f":"IFERROR(VLOOKUP($F46,#REF!,2,0)/100,\"0\")","v":"0"},{"$f":"IFERROR(VLOOKUP($F46,#REF!,3,0),\"\")","v":""},0.5,{"$f":"IFERROR(VLOOKUP($F46,#REF!,2,0)/100,\"0\")","v":"0"},{"$f":"IFERROR(VLOOKUP($F46,#REF!,3,0),\"\")","v":""},null,{"$f":"IFERROR(VLOOKUP($F46,#REF!,2,0)/100,\"0\")","v":"0"},{"$f":"IFERROR(VLOOKUP($F46,#REF!,3,0),\"\")","v":""},null,{"$f":"IFERROR(VLOOKUP($F46,#REF!,2,0)/100,\"0\")","v":"0"},{"$f":"IFERROR(VLOOKUP($F46,#REF!,3,0),\"\")","v":""},null,{"$f":"IFERROR(VLOOKUP($F46,#REF!,2,0)/100,\"0\")","v":"0"},{"$f":"IFERROR(VLOOKUP($F46,#REF!,3,0),\"\")","v":""},null,{"$f":"IFERROR(VLOOKUP($F46,#REF!,2,0)/100,\"0\")","v":"0"},{"$f":"IFERROR(VLOOKUP($F46,#REF!,3,0),\"\")","v":""},null,{"$f":"IFERROR(VLOOKUP($F46,#REF!,2,0)/100,\"0\")","v":"0"},{"$f":"IFERROR(VLOOKUP($F46,#REF!,3,0),\"\")","v":""},0.5,{"$f":"IFERROR(VLOOKUP($F46,#REF!,2,0)/100,\"0\")","v":"0"},0,0]
[null,"SUBDIRECCIÓN ADMINISTRATIVA Y FINANCIERA (SAF)","Fortalecer la Infraestructura de todas las sedes que estén a cargo de la entidad en el marco de los requisitos legales.","Atender el 100% de las necesidades definidas y autorizadas.\n","Nivel de Ejecución del Contrato (Ejecutado al 100%).","Formulación y ejecución del plan de mantenimiento.","100%\n","2020-02-01","2020-12-31","Plan de mantenimiento de infraestructura y  contrato ejecutados.","1042-Fortalecimiento institucional en la gestión pública ","Mejorar el 100% de la capacidad operativa y administrativa para el buen desarrollo organizacional de la Unidad.","Fortalecimiento Institucional: Consolidar una entidad moderna y efectiva constituida por un equipo comprometido con el logro de los objetivos institucionales","N/A","Eje 7 - Gobierno Legítimo, fortalecimiento local y eficiencia","42 - Transparencia, gestión pública y servicio a la ciudadanía.","Gestionar el 100% del plan de adecuación y sostenibilidad SIG-MIPG",{"$f":"IFERROR(VLOOKUP($F47,#REF!,3,0),\"\")","v":""},null,{"$f":"IFERROR(VLOOKUP($F47,#REF!,2,0)/100,\"0\")","v":"0"},{"$f":"IFERROR(VLOOKUP($F47,#REF!,3,0),\"\")","v":""},null,{"$f":"IFERROR(VLOOKUP($F47,#REF!,2,0)/100,\"0\")","v":"0"},{"$f":"IFERROR(VLOOKUP($F47,#REF!,3,0),\"\")","v":""},null,{"$f":"IFERROR(VLOOKUP($F47,#REF!,2,0)/100,\"0\")","v":"0"},{"$f":"IFERROR(VLOOKUP($F47,#REF!,3,0),\"\")","v":""},null,{"$f":"IFERROR(VLOOKUP($F47,#REF!,2,0)/100,\"0\")","v":"0"},{"$f":"IFERROR(VLOOKUP($F47,#REF!,3,0),\"\")","v":""},null,{"$f":"IFERROR(VLOOKUP($F47,#REF!,2,0)/100,\"0\")","v":"0"},{"$f":"IFERROR(VLOOKUP($F47,#REF!,3,0),\"\")","v":""},null,{"$f":"IFERROR(VLOOKUP($F47,#REF!,2,0)/100,\"0\")","v":"0"},{"$f":"IFERROR(VLOOKUP($F47,#REF!,3,0),\"\")","v":""},0.5,{"$f":"IFERROR(VLOOKUP($F47,#REF!,2,0)/100,\"0\")","v":"0"},{"$f":"IFERROR(VLOOKUP($F47,#REF!,3,0),\"\")","v":""},null,{"$f":"IFERROR(VLOOKUP($F47,#REF!,2,0)/100,\"0\")","v":"0"},{"$f":"IFERROR(VLOOKUP($F47,#REF!,3,0),\"\")","v":""},null,{"$f":"IFERROR(VLOOKUP($F47,#REF!,2,0)/100,\"0\")","v":"0"},{"$f":"IFERROR(VLOOKUP($F47,#REF!,3,0),\"\")","v":""},null,{"$f":"IFERROR(VLOOKUP($F47,#REF!,2,0)/100,\"0\")","v":"0"},{"$f":"IFERROR(VLOOKUP($F47,#REF!,3,0),\"\")","v":""},null,{"$f":"IFERROR(VLOOKUP($F47,#REF!,2,0)/100,\"0\")","v":"0"},{"$f":"IFERROR(VLOOKUP($F47,#REF!,3,0),\"\")","v":""},0.5,{"$f":"IFERROR(VLOOKUP($F47,#REF!,2,0)/100,\"0\")","v":"0"},0,{"$error":"#VALUE!"}]
[null,"SUBDIRECCIÓN ADMINISTRATIVA Y FINANCIERA (SAF)","Coordinar acciones que promuevan la austeridad en el gasto","Plan de austeridad del gasto\n","Plan de austeridad del gasto aprobado y publicado","Elaborar el plan de austeridad del gasto y realizar el seguimiento al mismo Separalo ",1,"2020-02-01","2020-12-31","Plan de austeridad del gasto ","1042-Fortalecimiento institucional en la gestión pública ","Mejorar el 100% de la capacidad operativa y administrativa para el buen desarrollo organizacional de la Unidad.","Fortalecimiento Institucional: Consolidar una entidad moderna y efectiva constituida por un equipo comprometido con el logro de los objetivos institucionales","N/A","Eje 7 - Gobierno Legítimo, fortalecimiento local y eficiencia","42 - Transparencia, gestión pública y servicio a la ciudadanía.","Gestionar el 100% del plan de adecuación y sostenibilidad SIG-MIPG",null,null,{"$f":"IFERROR(VLOOKUP($F48,#REF!,2,0)/100,\"0\")","v":"0"},null,null,{"$f":"IFERROR(VLOOKUP($F48,#REF!,2,0)/100,\"0\")","v":"0"},null,null,{"$f":"IFERROR(VLOOKUP($F48,#REF!,2,0)/100,\"0\")","v":"0"},null,null,{"$f":"IFERROR(VLOOKUP($F48,#REF!,2,0)/100,\"0\")","v":"0"},null,null,{"$f":"IFERROR(VLOOKUP($F48,#REF!,2,0)/100,\"0\")","v":"0"},null,0.5,{"$f":"IFERROR(VLOOKUP($F48,#REF!,2,0)/100,\"0\")","v":"0"},null,null,{"$f":"IFERROR(VLOOKUP($F48,#REF!,2,0)/100,\"0\")","v":"0"},null,null,{"$f":"IFERROR(VLOOKUP($F48,#REF!,2,0)/100,\"0\")","v":"0"},null,null,{"$f":"IFERROR(VLOOKUP($F48,#REF!,2,0)/100,\"0\")","v":"0"},null,null,{"$f":"IFERROR(VLOOKUP($F48,#REF!,2,0)/100,\"0\")","v":"0"},null,null,{"$f":"IFERROR(VLOOKUP($F48,#REF!,2,0)/100,\"0\")","v":"0"},null,0.5,{"$f":"IFERROR(VLOOKUP($F48,#REF!,2,0)/100,\"0\")","v":"0"},0,0]
[null,"SUBDIRECCIÓN DE RECOLECCIÓN BARRIDO Y LIMPIEZA (SRBL)","Establecer altos estándares de limpieza integral en el Distrito Capital","Ejecutar las obligaciones de hacer financiadas y programadas para la vigencia ","Actividades ejecutadas de obligaciones de hacer","Contar con los contratos para ejecutar las obligaciones de hacer. ",1,"2020-01-01","2020-12-31","Contratos suscritos para ejecutar las obligaciones de hacer e informes de actividades realizadas","1109-Manejo integral de residuos sólidos en el Distrito Capital y la Región Distrito Capital","Garantizar el 100% de las Obligaciones de hacer para el mejoramiento del estándar del servicio público de aseo","Modelo Integral de Prestación del Servicio Garantizar los más altos estándares de calidad en la prestación sostenible y efectiva de los servicios","Plan Anual de Adquisiciones","Pilar 2 - Democracia Urbana ","13 - Infraestructura para el desarrollo del Hábitat.","Disminuir en 6% las toneladas de residuos urbanos dispuestos en el relleno sanitario",{"$f":"IFERROR(VLOOKUP($F49,#REF!,3,0),\"\")","v":""},null,{"$f":"IFERROR(VLOOKUP($F49,#REF!,2,0)/100,\"0\")","v":"0"},{"$f":"IFERROR(VLOOKUP($F49,#REF!,3,0),\"\")","v":""},null,{"$f":"IFERROR(VLOOKUP($F49,#REF!,2,0)/100,\"0\")","v":"0"},{"$f":"IFERROR(VLOOKUP($F49,#REF!,3,0),\"\")","v":""},0.25,{"$f":"IFERROR(VLOOKUP($F49,#REF!,2,0)/100,\"0\")","v":"0"},{"$f":"IFERROR(VLOOKUP($F49,#REF!,3,0),\"\")","v":""},null,{"$f":"IFERROR(VLOOKUP($F49,#REF!,2,0)/100,\"0\")","v":"0"},{"$f":"IFERROR(VLOOKUP($F49,#REF!,3,0),\"\")","v":""},null,{"$f":"IFERROR(VLOOKUP($F49,#REF!,2,0)/100,\"0\")","v":"0"},{"$f":"IFERROR(VLOOKUP($F49,#REF!,3,0),\"\")","v":""},0.25,{"$f":"IFERROR(VLOOKUP($F49,#REF!,2,0)/100,\"0\")","v":"0"},{"$f":"IFERROR(VLOOKUP($F49,#REF!,3,0),\"\")","v":""},null,{"$f":"IFERROR(VLOOKUP($F49,#REF!,2,0)/100,\"0\")","v":"0"},{"$f":"IFERROR(VLOOKUP($F49,#REF!,3,0),\"\")","v":""},null,{"$f":"IFERROR(VLOOKUP($F49,#REF!,2,0)/100,\"0\")","v":"0"},{"$f":"IFERROR(VLOOKUP($F49,#REF!,3,0),\"\")","v":""},0.25,{"$f":"IFERROR(VLOOKUP($F49,#REF!,2,0)/100,\"0\")","v":"0"},{"$f":"IFERROR(VLOOKUP($F49,#REF!,3,0),\"\")","v":""},null,{"$f":"IFERROR(VLOOKUP($F49,#REF!,2,0)/100,\"0\")","v":"0"},{"$f":"IFERROR(VLOOKUP($F49,#REF!,3,0),\"\")","v":""},null,{"$f":"IFERROR(VLOOKUP($F49,#REF!,2,0)/100,\"0\")","v":"0"},{"$f":"IFERROR(VLOOKUP($F49,#REF!,3,0),\"\")","v":""},0.25,{"$f":"IFERROR(VLOOKUP($F49,#REF!,2,0)/100,\"0\")","v":"0"},0,0]
[null,"SUBDIRECCIÓN DE RECOLECCIÓN BARRIDO Y LIMPIEZA (SRBL)","Garantizar una adecuada prestación del servicio de aseo","Cumplir  con las obligaciones y reglamentación del esquema de aseo de Bogotá D.C.","Avance en el cumplimiento del Plan de servicio de  aseo","Contar con el plan de supervisión   y control del servicio de  aseo aprobado  y ejecución  del plan de supervisión y control",1,"2020-01-01","2020-12-31","Plan de supervisión y 12 informes de supervisión y control ","1109-Manejo integral de residuos sólidos en el Distrito Capital y la Región Distrito Capital","Garantizar la recolección y transporte 100 % de los residuos sólidos que se generan en la ciudad al sitio de disposición final","Modelo Integral de Prestación del Servicio Garantizar los más altos estándares de calidad en la prestación sostenible y efectiva de los servicios","Plan Anual de Adquisiciones","Pilar 2 - Democracia Urbana ","13 - Infraestructura para el desarrollo del Hábitat.","Disminuir en 6% las toneladas de residuos urbanos dispuestos en el relleno sanitario",{"$f":"IFERROR(VLOOKUP($F50,#REF!,3,0),\"\")","v":""},0.12,{"$f":"IFERROR(VLOOKUP($F50,#REF!,2,0)/100,\"0\")","v":"0"},{"$f":"IFERROR(VLOOKUP($F50,#REF!,3,0),\"\")","v":""},0.08,{"$f":"IFERROR(VLOOKUP($F50,#REF!,2,0)/100,\"0\")","v":"0"},{"$f":"IFERROR(VLOOKUP($F50,#REF!,3,0),\"\")","v":""},0.08,{"$f":"IFERROR(VLOOKUP($F50,#REF!,2,0)/100,\"0\")","v":"0"},{"$f":"IFERROR(VLOOKUP($F50,#REF!,3,0),\"\")","v":""},0.08,{"$f":"IFERROR(VLOOKUP($F50,#REF!,2,0)/100,\"0\")","v":"0"},{"$f":"IFERROR(VLOOKUP($F50,#REF!,3,0),\"\")","v":""},0.08,{"$f":"IFERROR(VLOOKUP($F50,#REF!,2,0)/100,\"0\")","v":"0"},{"$f":"IFERROR(VLOOKUP($F50,#REF!,3,0),\"\")","v":""},0.08,{"$f":"IFERROR(VLOOKUP($F50,#REF!,2,0)/100,\"0\")","v":"0"},{"$f":"IFERROR(VLOOKUP($F50,#REF!,3,0),\"\")","v":""},0.08,{"$f":"IFERROR(VLOOKUP($F50,#REF!,2,0)/100,\"0\")","v":"0"},{"$f":"IFERROR(VLOOKUP($F50,#REF!,3,0),\"\")","v":""},0.08,{"$f":"IFERROR(VLOOKUP($F50,#REF!,2,0)/100,\"0\")","v":"0"},{"$f":"IFERROR(VLOOKUP($F50,#REF!,3,0),\"\")","v":""},0.08,{"$f":"IFERROR(VLOOKUP($F50,#REF!,2,0)/100,\"0\")","v":"0"},{"$f":"IFERROR(VLOOKUP($F50,#REF!,3,0),\"\")","v":""},0.08,{"$f":"IFERROR(VLOOKUP($F50,#REF!,2,0)/100,\"0\")","v":"0"},{"$f":"IFERROR(VLOOKUP($F50,#REF!,3,0),\"\")","v":""},0.08,{"$f":"IFERROR(VLOOKUP($F50,#REF!,2,0)/100,\"0\")","v":"0"},{"$f":"IFERROR(VLOOKUP($F50,#REF!,3,0),\"\")","v":""},0.08,{"$f":"IFERROR(VLOOKUP($F50,#REF!,2,0)/100,\"0\")","v":"0"},0,0]
[null,"SUBDIRECCIÓN DE RECOLECCIÓN BARRIDO Y LIMPIEZA (SRBL)",null,"Cumplir  con las obligaciones y reglamentación del servicio de residuos hospitalarios","Avance en el cumplimiento del Plan de servicio de  aseo","Contar con el plan de supervisión   y control del servicio de  hospitalarios aprobado  y ejecución  del plan de supervisión y control  del servicio de hospitalarios.",1,"2020-01-01","31/09/2020","Plan de supervisión y 12 informes de supervisión y control ","1109-Manejo integral de residuos sólidos en el Distrito Capital y la Región Distrito Capital","Garantizar la recolección y transporte 100 % de los residuos sólidos que se generan en la ciudad al sitio de disposición final","Modelo Integral de Prestación del Servicio Garantizar los más altos estándares de calidad en la prestación sostenible y efectiva de los servicios","Plan Anual de Adquisiciones","Pilar 2 - Democracia Urbana ","13 - Infraestructura para el desarrollo del Hábitat.","Disminuir en 6% las toneladas de residuos urbanos dispuestos en el relleno sanitario",{"$f":"IFERROR(VLOOKUP($F51,#REF!,3,0),\"\")","v":""},0.12,{"$f":"IFERROR(VLOOKUP($F51,#REF!,2,0)/100,\"0\")","v":"0"},{"$f":"IFERROR(VLOOKUP($F51,#REF!,3,0),\"\")","v":""},0.08,{"$f":"IFERROR(VLOOKUP($F51,#REF!,2,0)/100,\"0\")","v":"0"},{"$f":"IFERROR(VLOOKUP($F51,#REF!,3,0),\"\")","v":""},0.08,{"$f":"IFERROR(VLOOKUP($F51,#REF!,2,0)/100,\"0\")","v":"0"},{"$f":"IFERROR(VLOOKUP($F51,#REF!,3,0),\"\")","v":""},0.08,{"$f":"IFERROR(VLOOKUP($F51,#REF!,2,0)/100,\"0\")","v":"0"},{"$f":"IFERROR(VLOOKUP($F51,#REF!,3,0),\"\")","v":""},0.08,{"$f":"IFERROR(VLOOKUP($F51,#REF!,2,0)/100,\"0\")","v":"0"},{"$f":"IFERROR(VLOOKUP($F51,#REF!,3,0),\"\")","v":""},0.08,{"$f":"IFERROR(VLOOKUP($F51,#REF!,2,0)/100,\"0\")","v":"0"},{"$f":"IFERROR(VLOOKUP($F51,#REF!,3,0),\"\")","v":""},0.08,{"$f":"IFERROR(VLOOKUP($F51,#REF!,2,0)/100,\"0\")","v":"0"},{"$f":"IFERROR(VLOOKUP($F51,#REF!,3,0),\"\")","v":""},0.08,{"$f":"IFERROR(VLOOKUP($F51,#REF!,2,0)/100,\"0\")","v":"0"},{"$f":"IFERROR(VLOOKUP($F51,#REF!,3,0),\"\")","v":""},0.08,{"$f":"IFERROR(VLOOKUP($F51,#REF!,2,0)/100,\"0\")","v":"0"},{"$f":"IFERROR(VLOOKUP($F51,#REF!,3,0),\"\")","v":""},0.08,{"$f":"IFERROR(VLOOKUP($F51,#REF!,2,0)/100,\"0\")","v":"0"},{"$f":"IFERROR(VLOOKUP($F51,#REF!,3,0),\"\")","v":""},0.08,{"$f":"IFERROR(VLOOKUP($F51,#REF!,2,0)/100,\"0\")","v":"0"},{"$f":"IFERROR(VLOOKUP($F51,#REF!,3,0),\"\")","v":""},0.08,{"$f":"IFERROR(VLOOKUP($F51,#REF!,2,0)/100,\"0\")","v":"0"},0,0]
[null,"SUBDIRECCIÓN DE RECOLECCIÓN BARRIDO Y LIMPIEZA (SRBL)","Garantizar el cumplimiento de las Instancias de Coordinación enfocadas en el desarrollo del Decreto Distrital 190 de 2006 (PMIRS) y sus modificaciones ","Cumplimiento de la Resolución 233 de 2018 de la Secretaría General","Acta de comité suscrita y aprobada","Cumplimiento al seguimiento del Plan Maestro  Integral de Residuos Sólidos",1,"2020-03-01","31/09/2020","Acta de reunión y presentación de resultados asociado al desarrollo del comité de Plan Maestro Integral de Residuos Sólidos","1109-Manejo integral de residuos sólidos en el Distrito Capital y la Región Distrito Capital","Garantizar la recolección y transporte 100 % de los residuos sólidos que se generan en la ciudad al sitio de disposición final","Modelo Integral de Prestación del Servicio Garantizar los más altos estándares de calidad en la prestación sostenible y efectiva de los servicios","Instancia de Coordinación - Resolución 233 de 2018","Pilar 2 - Democracia Urbana ","13 - Infraestructura para el desarrollo del Hábitat.","Disminuir en 6% las toneladas de residuos urbanos dispuestos en el relleno sanitario",{"$f":"IFERROR(VLOOKUP($F52,#REF!,3,0),\"\")","v":""},null,{"$f":"IFERROR(VLOOKUP($F52,#REF!,2,0)/100,\"0\")","v":"0"},{"$f":"IFERROR(VLOOKUP($F52,#REF!,3,0),\"\")","v":""},null,{"$f":"IFERROR(VLOOKUP($F52,#REF!,2,0)/100,\"0\")","v":"0"},{"$f":"IFERROR(VLOOKUP($F52,#REF!,3,0),\"\")","v":""},null,{"$f":"IFERROR(VLOOKUP($F52,#REF!,2,0)/100,\"0\")","v":"0"},{"$f":"IFERROR(VLOOKUP($F52,#REF!,3,0),\"\")","v":""},null,{"$f":"IFERROR(VLOOKUP($F52,#REF!,2,0)/100,\"0\")","v":"0"},{"$f":"IFERROR(VLOOKUP($F52,#REF!,3,0),\"\")","v":""},null,{"$f":"IFERROR(VLOOKUP($F52,#REF!,2,0)/100,\"0\")","v":"0"},{"$f":"IFERROR(VLOOKUP($F52,#REF!,3,0),\"\")","v":""},0.5,{"$f":"IFERROR(VLOOKUP($F52,#REF!,2,0)/100,\"0\")","v":"0"},{"$f":"IFERROR(VLOOKUP($F52,#REF!,3,0),\"\")","v":""},null,{"$f":"IFERROR(VLOOKUP($F52,#REF!,2,0)/100,\"0\")","v":"0"},{"$f":"IFERROR(VLOOKUP($F52,#REF!,3,0),\"\")","v":""},null,{"$f":"IFERROR(VLOOKUP($F52,#REF!,2,0)/100,\"0\")","v":"0"},{"$f":"IFERROR(VLOOKUP($F52,#REF!,3,0),\"\")","v":""},0.5,{"$f":"IFERROR(VLOOKUP($F52,#REF!,2,0)/100,\"0\")","v":"0"},{"$f":"IFERROR(VLOOKUP($F52,#REF!,3,0),\"\")","v":""},null,{"$f":"IFERROR(VLOOKUP($F52,#REF!,2,0)/100,\"0\")","v":"0"},{"$f":"IFERROR(VLOOKUP($F52,#REF!,3,0),\"\")","v":""},null,{"$f":"IFERROR(VLOOKUP($F52,#REF!,2,0)/100,\"0\")","v":"0"},{"$f":"IFERROR(VLOOKUP($F52,#REF!,3,0),\"\")","v":""},null,{"$f":"IFERROR(VLOOKUP($F52,#REF!,2,0)/100,\"0\")","v":"0"},0,0]
[null,"SUBDIRECCIÓN DE DISPOSICIÓN FINAL - (SDF)","Fortalecer la gestión de la operación del Relleno Sanitario Doña Juana (RSDJ)","Realizar el 100% del seguimiento a la operación del R.S.D.J","\n\n\n\nCumplimiento del Plan Anual de Supervisión al Contrato de interventoría del servicio ","Seguimiento al  trámite de licencia ambiental para optimización del RSDJ",0.1,"2020-01-01","2020-12-31","Informe mensual, actividades ejecutadas  e acuerdo al cronograma establecido por CGR","1109-Manejo integral de residuos sólidos en el Distrito Capital y la Región Distrito Capital","'3-Disponer el 100% de los residuos que ingresan al RSDJ","Modelo Integral de Prestación del Servicio Garantizar los más altos estándares de calidad en la prestación sostenible y efectiva de los servicios","Plan Anual de Adquisiciones","Pilar 2 - Democracia Urbana ","13 - Infraestructura para el desarrollo del Hábitat.","Disminuir en 6% las toneladas de residuos urbanos dispuestos en el relleno sanitario",{"$f":"IFERROR(VLOOKUP($F53,#REF!,3,0),\"\")","v":""},0.08,{"$f":"IFERROR(VLOOKUP($F53,#REF!,2,0)/100,\"0\")","v":"0"},{"$f":"IFERROR(VLOOKUP($F53,#REF!,3,0),\"\")","v":""},0.08,{"$f":"IFERROR(VLOOKUP($F53,#REF!,2,0)/100,\"0\")","v":"0"},{"$f":"IFERROR(VLOOKUP($F53,#REF!,3,0),\"\")","v":""},0.08,{"$f":"IFERROR(VLOOKUP($F53,#REF!,2,0)/100,\"0\")","v":"0"},{"$f":"IFERROR(VLOOKUP($F53,#REF!,3,0),\"\")","v":""},0.08,{"$f":"IFERROR(VLOOKUP($F53,#REF!,2,0)/100,\"0\")","v":"0"},{"$f":"IFERROR(VLOOKUP($F53,#REF!,3,0),\"\")","v":""},0.08,{"$f":"IFERROR(VLOOKUP($F53,#REF!,2,0)/100,\"0\")","v":"0"},{"$f":"IFERROR(VLOOKUP($F53,#REF!,3,0),\"\")","v":""},0.08,{"$f":"IFERROR(VLOOKUP($F53,#REF!,2,0)/100,\"0\")","v":"0"},{"$f":"IFERROR(VLOOKUP($F53,#REF!,3,0),\"\")","v":""},0.08,{"$f":"IFERROR(VLOOKUP($F53,#REF!,2,0)/100,\"0\")","v":"0"},{"$f":"IFERROR(VLOOKUP($F53,#REF!,3,0),\"\")","v":""},0.08,{"$f":"IFERROR(VLOOKUP($F53,#REF!,2,0)/100,\"0\")","v":"0"},{"$f":"IFERROR(VLOOKUP($F53,#REF!,3,0),\"\")","v":""},0.08,{"$f":"IFERROR(VLOOKUP($F53,#REF!,2,0)/100,\"0\")","v":"0"},{"$f":"IFERROR(VLOOKUP($F53,#REF!,3,0),\"\")","v":""},0.08,{"$f":"IFERROR(VLOOKUP($F53,#REF!,2,0)/100,\"0\")","v":"0"},{"$f":"IFERROR(VLOOKUP($F53,#REF!,3,0),\"\")","v":""},0.1,{"$f":"IFERROR(VLOOKUP($F53,#REF!,2,0)/100,\"0\")","v":"0"},{"$f":"IFERROR(VLOOKUP($F53,#REF!,3,0),\"\")","v":""},0.1,{"$f":"IFERROR(VLOOKUP($F53,#REF!,2,0)/100,\"0\")","v":"0"},0,0]
[null,"SUBDIRECCIÓN DE DISPOSICIÓN FINAL - (SDF)",null,null,null,"Seguimiento al cumplimiento del laudo arbitral por parte del operador del RSDJ",0.3,"2020-01-01","2020-12-31","Informes de supervisión y control ","1109-Manejo integral de residuos sólidos en el Distrito Capital y la Región Distrito Capital","'3-Disponer el 100% de los residuos que ingresan al RSDJ","Modelo Integral de Prestación del Servicio Garantizar los más altos estándares de calidad en la prestación sostenible y efectiva de los servicios","Plan Anual de Adquisiciones","Pilar 2 - Democracia Urbana ","13 - Infraestructura para el desarrollo del Hábitat.","Disminuir en 6% las toneladas de residuos urbanos dispuestos en el relleno sanitario",{"$f":"IFERROR(VLOOKUP($F54,#REF!,3,0),\"\")","v":""},0.08,{"$f":"IFERROR(VLOOKUP($F54,#REF!,2,0)/100,\"0\")","v":"0"},{"$f":"IFERROR(VLOOKUP($F54,#REF!,3,0),\"\")","v":""},0.08,{"$f":"IFERROR(VLOOKUP($F54,#REF!,2,0)/100,\"0\")","v":"0"},{"$f":"IFERROR(VLOOKUP($F54,#REF!,3,0),\"\")","v":""},0.08,{"$f":"IFERROR(VLOOKUP($F54,#REF!,2,0)/100,\"0\")","v":"0"},{"$f":"IFERROR(VLOOKUP($F54,#REF!,3,0),\"\")","v":""},0.08,{"$f":"IFERROR(VLOOKUP($F54,#REF!,2,0)/100,\"0\")","v":"0"},{"$f":"IFERROR(VLOOKUP($F54,#REF!,3,0),\"\")","v":""},0.08,{"$f":"IFERROR(VLOOKUP($F54,#REF!,2,0)/100,\"0\")","v":"0"},{"$f":"IFERROR(VLOOKUP($F54,#REF!,3,0),\"\")","v":""},0.08,{"$f":"IFERROR(VLOOKUP($F54,#REF!,2,0)/100,\"0\")","v":"0"},{"$f":"IFERROR(VLOOKUP($F54,#REF!,3,0),\"\")","v":""},0.08,{"$f":"IFERROR(VLOOKUP($F54,#REF!,2,0)/100,\"0\")","v":"0"},{"$f":"IFERROR(VLOOKUP($F54,#REF!,3,0),\"\")","v":""},0.08,{"$f":"IFERROR(VLOOKUP($F54,#REF!,2,0)/100,\"0\")","v":"0"},{"$f":"IFERROR(VLOOKUP($F54,#REF!,3,0),\"\")","v":""},0.08,{"$f":"IFERROR(VLOOKUP($F54,#REF!,2,0)/100,\"0\")","v":"0"},{"$f":"IFERROR(VLOOKUP($F54,#REF!,3,0),\"\")","v":""},0.08,{"$f":"IFERROR(VLOOKUP($F54,#REF!,2,0)/100,\"0\")","v":"0"},{"$f":"IFERROR(VLOOKUP($F54,#REF!,3,0),\"\")","v":""},0.1,{"$f":"IFERROR(VLOOKUP($F54,#REF!,2,0)/100,\"0\")","v":"0"},{"$f":"IFERROR(VLOOKUP($F54,#REF!,3,0),\"\")","v":""},0.1,{"$f":"IFERROR(VLOOKUP($F54,#REF!,2,0)/100,\"0\")","v":"0"},0,0]
[null,"SUBDIRECCIÓN DE DISPOSICIÓN FINAL - (SDF)",null,null,null,"Presentación informe supervisión y control SDF.",0.6,"2020-01-01","2020-12-31","Informes de supervisión y control ","1109-Manejo integral de residuos sólidos en el Distrito Capital y la Región Distrito Capital","'3-Disponer el 100% de los residuos que ingresan al RSDJ","Modelo Integral de Prestación del Servicio Garantizar los más altos estándares de calidad en la prestación sostenible y efectiva de los servicios","Plan Anual de Adquisiciones","Pilar 2 - Democracia Urbana ","13 - Infraestructura para el desarrollo del Hábitat.","Disminuir en 6% las toneladas de residuos urbanos dispuestos en el relleno sanitario",{"$f":"IFERROR(VLOOKUP($F55,#REF!,3,0),\"\")","v":""},0.08,{"$f":"IFERROR(VLOOKUP($F55,#REF!,2,0)/100,\"0\")","v":"0"},{"$f":"IFERROR(VLOOKUP($F55,#REF!,3,0),\"\")","v":""},0.08,{"$f":"IFERROR(VLOOKUP($F55,#REF!,2,0)/100,\"0\")","v":"0"},{"$f":"IFERROR(VLOOKUP($F55,#REF!,3,0),\"\")","v":""},0.08,{"$f":"IFERROR(VLOOKUP($F55,#REF!,2,0)/100,\"0\")","v":"0"},{"$f":"IFERROR(VLOOKUP($F55,#REF!,3,0),\"\")","v":""},0.08,{"$f":"IFERROR(VLOOKUP($F55,#REF!,2,0)/100,\"0\")","v":"0"},{"$f":"IFERROR(VLOOKUP($F55,#REF!,3,0),\"\")","v":""},0.08,{"$f":"IFERROR(VLOOKUP($F55,#REF!,2,0)/100,\"0\")","v":"0"},{"$f":"IFERROR(VLOOKUP($F55,#REF!,3,0),\"\")","v":""},0.08,{"$f":"IFERROR(VLOOKUP($F55,#REF!,2,0)/100,\"0\")","v":"0"},{"$f":"IFERROR(VLOOKUP($F55,#REF!,3,0),\"\")","v":""},0.08,{"$f":"IFERROR(VLOOKUP($F55,#REF!,2,0)/100,\"0\")","v":"0"},{"$f":"IFERROR(VLOOKUP($F55,#REF!,3,0),\"\")","v":""},0.08,{"$f":"IFERROR(VLOOKUP($F55,#REF!,2,0)/100,\"0\")","v":"0"},{"$f":"IFERROR(VLOOKUP($F55,#REF!,3,0),\"\")","v":""},0.08,{"$f":"IFERROR(VLOOKUP($F55,#REF!,2,0)/100,\"0\")","v":"0"},{"$f":"IFERROR(VLOOKUP($F55,#REF!,3,0),\"\")","v":""},0.08,{"$f":"IFERROR(VLOOKUP($F55,#REF!,2,0)/100,\"0\")","v":"0"},{"$f":"IFERROR(VLOOKUP($F55,#REF!,3,0),\"\")","v":""},0.1,{"$f":"IFERROR(VLOOKUP($F55,#REF!,2,0)/100,\"0\")","v":"0"},{"$f":"IFERROR(VLOOKUP($F55,#REF!,3,0),\"\")","v":""},0.1,{"$f":"IFERROR(VLOOKUP($F55,#REF!,2,0)/100,\"0\")","v":"0"},0,0]
[null,"SUBDIRECCIÓN DE DISPOSICIÓN FINAL - (SDF)","Fortalecer la Gestión  Social para  la zona de influencia del Relleno Sanitario Doña Juana.\"","Garantizar  que el 90% de la población seleccionada acceda a los programas del Plan de Gestión social ","Cumplimiento en el acceso de la población seleccionada a los programas de gestión social","Cumplir  con las actividades asociadas al  plan de gestión social",0.6,"2020-01-01","2020-12-31","Convenios firmados","1109-Manejo integral de residuos sólidos en el Distrito Capital y la Región Distrito Capital","Mantener el 100% las condiciones generales para el funcionamiento y operación del RSDJ”. ","Modelo Integral de Prestación del Servicio Garantizar los más altos estándares de calidad en la prestación sostenible y efectiva de los servicios","Plan Anual de Adquisiciones","Pilar 2 - Democracia Urbana ","13 - Infraestructura para el desarrollo del Hábitat.","Disminuir en 6% las toneladas de residuos urbanos dispuestos en el relleno sanitario",{"$f":"IFERROR(VLOOKUP($F56,#REF!,3,0),\"\")","v":""},0.08,{"$f":"IFERROR(VLOOKUP($F56,#REF!,2,0)/100,\"0\")","v":"0"},{"$f":"IFERROR(VLOOKUP($F56,#REF!,3,0),\"\")","v":""},0.08,{"$f":"IFERROR(VLOOKUP($F56,#REF!,2,0)/100,\"0\")","v":"0"},{"$f":"IFERROR(VLOOKUP($F56,#REF!,3,0),\"\")","v":""},0.08,{"$f":"IFERROR(VLOOKUP($F56,#REF!,2,0)/100,\"0\")","v":"0"},{"$f":"IFERROR(VLOOKUP($F56,#REF!,3,0),\"\")","v":""},0.08,{"$f":"IFERROR(VLOOKUP($F56,#REF!,2,0)/100,\"0\")","v":"0"},{"$f":"IFERROR(VLOOKUP($F56,#REF!,3,0),\"\")","v":""},0.08,{"$f":"IFERROR(VLOOKUP($F56,#REF!,2,0)/100,\"0\")","v":"0"},{"$f":"IFERROR(VLOOKUP($F56,#REF!,3,0),\"\")","v":""},0.08,{"$f":"IFERROR(VLOOKUP($F56,#REF!,2,0)/100,\"0\")","v":"0"},{"$f":"IFERROR(VLOOKUP($F56,#REF!,3,0),\"\")","v":""},0.08,{"$f":"IFERROR(VLOOKUP($F56,#REF!,2,0)/100,\"0\")","v":"0"},{"$f":"IFERROR(VLOOKUP($F56,#REF!,3,0),\"\")","v":""},0.08,{"$f":"IFERROR(VLOOKUP($F56,#REF!,2,0)/100,\"0\")","v":"0"},{"$f":"IFERROR(VLOOKUP($F56,#REF!,3,0),\"\")","v":""},0.08,{"$f":"IFERROR(VLOOKUP($F56,#REF!,2,0)/100,\"0\")","v":"0"},{"$f":"IFERROR(VLOOKUP($F56,#REF!,3,0),\"\")","v":""},0.08,{"$f":"IFERROR(VLOOKUP($F56,#REF!,2,0)/100,\"0\")","v":"0"},{"$f":"IFERROR(VLOOKUP($F56,#REF!,3,0),\"\")","v":""},0.1,{"$f":"IFERROR(VLOOKUP($F56,#REF!,2,0)/100,\"0\")","v":"0"},{"$f":"IFERROR(VLOOKUP($F56,#REF!,3,0),\"\")","v":""},0.1,{"$f":"IFERROR(VLOOKUP($F56,#REF!,2,0)/100,\"0\")","v":"0"},0,0]
[null,"SUBDIRECCIÓN DE DISPOSICIÓN FINAL - (SDF)",null,null,null,"Cumplir con las actividades establecidas en el Plan de acción y seguimiento de gestión social",0.4,"2020-01-01","2020-12-31","Seguimiento del plan de acción","1109-Manejo integral de residuos sólidos en el Distrito Capital y la Región Distrito Capital","Mantener el 100% las condiciones generales para el funcionamiento y operación del RSDJ”. ","Modelo Integral de Prestación del Servicio Garantizar los más altos estándares de calidad en la prestación sostenible y efectiva de los servicios","Plan Anual de Adquisiciones","Pilar 2 - Democracia Urbana ","13 - Infraestructura para el desarrollo del Hábitat.","Disminuir en 6% las toneladas de residuos urbanos dispuestos en el relleno sanitario",{"$f":"IFERROR(VLOOKUP($F57,#REF!,3,0),\"\")","v":""},0.08,{"$f":"IFERROR(VLOOKUP($F57,#REF!,2,0)/100,\"0\")","v":"0"},{"$f":"IFERROR(VLOOKUP($F57,#REF!,3,0),\"\")","v":""},0.08,{"$f":"IFERROR(VLOOKUP($F57,#REF!,2,0)/100,\"0\")","v":"0"},{"$f":"IFERROR(VLOOKUP($F57,#REF!,3,0),\"\")","v":""},0.08,{"$f":"IFERROR(VLOOKUP($F57,#REF!,2,0)/100,\"0\")","v":"0"},{"$f":"IFERROR(VLOOKUP($F57,#REF!,3,0),\"\")","v":""},0.08,{"$f":"IFERROR(VLOOKUP($F57,#REF!,2,0)/100,\"0\")","v":"0"},{"$f":"IFERROR(VLOOKUP($F57,#REF!,3,0),\"\")","v":""},0.08,{"$f":"IFERROR(VLOOKUP($F57,#REF!,2,0)/100,\"0\")","v":"0"},{"$f":"IFERROR(VLOOKUP($F57,#REF!,3,0),\"\")","v":""},0.08,{"$f":"IFERROR(VLOOKUP($F57,#REF!,2,0)/100,\"0\")","v":"0"},{"$f":"IFERROR(VLOOKUP($F57,#REF!,3,0),\"\")","v":""},0.08,{"$f":"IFERROR(VLOOKUP($F57,#REF!,2,0)/100,\"0\")","v":"0"},{"$f":"IFERROR(VLOOKUP($F57,#REF!,3,0),\"\")","v":""},0.08,{"$f":"IFERROR(VLOOKUP($F57,#REF!,2,0)/100,\"0\")","v":"0"},{"$f":"IFERROR(VLOOKUP($F57,#REF!,3,0),\"\")","v":""},0.08,{"$f":"IFERROR(VLOOKUP($F57,#REF!,2,0)/100,\"0\")","v":"0"},{"$f":"IFERROR(VLOOKUP($F57,#REF!,3,0),\"\")","v":""},0.08,{"$f":"IFERROR(VLOOKUP($F57,#REF!,2,0)/100,\"0\")","v":"0"},{"$f":"IFERROR(VLOOKUP($F57,#REF!,3,0),\"\")","v":""},0.1,{"$f":"IFERROR(VLOOKUP($F57,#REF!,2,0)/100,\"0\")","v":"0"},{"$f":"IFERROR(VLOOKUP($F57,#REF!,3,0),\"\")","v":""},0.1,{"$f":"IFERROR(VLOOKUP($F57,#REF!,2,0)/100,\"0\")","v":"0"},0,0]
[" ","SUBDIRECCIÓN DE APROVECHAMIENTO (SAP)","Mejorar y fortalecer \nla capacidad operativa para el\naprovechamiento","Facilitar el espacio que permita el funcionamiento de 1 ECA en la ciudad, para la operación de 2 organizaciones de recicladores.","# de predios adquiridos o rentados","Adquirir y/o rentar 1 predio  para la implementación de ECAS",1,"2020-01-01","2020-12-31","Un predio comprado y/o rentado","1109-Manejo integral de residuos sólidos en el Distrito Capital y la Región Distrito Capital","Establecer  1 línea base del componente de aprovechamiento en la ciudad de Bogotá D.C\n","Modelo Integral de Prestación del Servicio Garantizar los más altos estándares de calidad en la prestación sostenible y efectiva de los servicios","Plan Anual de Adquisiciones","Pilar 2 - Democracia Urbana ","13 - Infraestructura para el desarrollo del Hábitat.","Disminuir en 6% las toneladas de residuos urbanos dispuestos en el relleno sanitario",{"$f":"IFERROR(VLOOKUP($F58,#REF!,3,0),\"\")","v":""},null,{"$f":"IFERROR(VLOOKUP($F58,#REF!,2,0)/100,\"0\")","v":"0"},{"$f":"IFERROR(VLOOKUP($F58,#REF!,3,0),\"\")","v":""},null,{"$f":"IFERROR(VLOOKUP($F58,#REF!,2,0)/100,\"0\")","v":"0"},{"$f":"IFERROR(VLOOKUP($F58,#REF!,3,0),\"\")","v":""},null,{"$f":"IFERROR(VLOOKUP($F58,#REF!,2,0)/100,\"0\")","v":"0"},{"$f":"IFERROR(VLOOKUP($F58,#REF!,3,0),\"\")","v":""},null,{"$f":"IFERROR(VLOOKUP($F58,#REF!,2,0)/100,\"0\")","v":"0"},{"$f":"IFERROR(VLOOKUP($F58,#REF!,3,0),\"\")","v":""},null,{"$f":"IFERROR(VLOOKUP($F58,#REF!,2,0)/100,\"0\")","v":"0"},{"$f":"IFERROR(VLOOKUP($F58,#REF!,3,0),\"\")","v":""},1,{"$f":"IFERROR(VLOOKUP($F58,#REF!,2,0)/100,\"0\")","v":"0"},{"$f":"IFERROR(VLOOKUP($F58,#REF!,3,0),\"\")","v":""},null,{"$f":"IFERROR(VLOOKUP($F58,#REF!,2,0)/100,\"0\")","v":"0"},{"$f":"IFERROR(VLOOKUP($F58,#REF!,3,0),\"\")","v":""},null,{"$f":"IFERROR(VLOOKUP($F58,#REF!,2,0)/100,\"0\")","v":"0"},{"$f":"IFERROR(VLOOKUP($F58,#REF!,3,0),\"\")","v":""},null,{"$f":"IFERROR(VLOOKUP($F58,#REF!,2,0)/100,\"0\")","v":"0"},{"$f":"IFERROR(VLOOKUP($F58,#REF!,3,0),\"\")","v":""},null,{"$f":"IFERROR(VLOOKUP($F58,#REF!,2,0)/100,\"0\")","v":"0"},{"$f":"IFERROR(VLOOKUP($F58,#REF!,3,0),\"\")","v":""},null,{"$f":"IFERROR(VLOOKUP($F58,#REF!,2,0)/100,\"0\")","v":"0"},{"$f":"IFERROR(VLOOKUP($F58,#REF!,3,0),\"\")","v":""},null,{"$f":"IFERROR(VLOOKUP($F58,#REF!,2,0)/100,\"0\")","v":"0"},0,0]
[null,"SUBDIRECCIÓN DE APROVECHAMIENTO (SAP)","Promover y fortalecer el esquema de aprovechamiento en el servicio de aseo ","Desarrollar capacitaciones para la sensibilización de los usuarios en separación en la fuente.","1 capacitación por mes","Fortalecer la cultura ciudadana en el manejo de residuos sólidos aprovechables.",1,"2020-01-01","2020-12-31","Capacitaciones realizadas","1109-Manejo integral de residuos sólidos en el Distrito Capital y la Región Distrito Capital","Establecer  1 línea base del componente de aprovechamiento en la ciudad de Bogotá D.C\n","Modelo Integral de Prestación del Servicio Garantizar los más altos estándares de calidad en la prestación sostenible y efectiva de los servicios","Plan Anual de Adquisiciones","Pilar 2 - Democracia Urbana ","13 - Infraestructura para el desarrollo del Hábitat.","Disminuir en 6% las toneladas de residuos urbanos dispuestos en el relleno sanitario",{"$f":"IFERROR(VLOOKUP($F59,#REF!,3,0),\"\")","v":""},null,{"$f":"IFERROR(VLOOKUP($F59,#REF!,2,0)/100,\"0\")","v":"0"},{"$f":"IFERROR(VLOOKUP($F59,#REF!,3,0),\"\")","v":""},0.1,{"$f":"IFERROR(VLOOKUP($F59,#REF!,2,0)/100,\"0\")","v":"0"},{"$f":"IFERROR(VLOOKUP($F59,#REF!,3,0),\"\")","v":""},0.1,{"$f":"IFERROR(VLOOKUP($F59,#REF!,2,0)/100,\"0\")","v":"0"},{"$f":"IFERROR(VLOOKUP($F59,#REF!,3,0),\"\")","v":""},0.1,{"$f":"IFERROR(VLOOKUP($F59,#REF!,2,0)/100,\"0\")","v":"0"},null,0.1,{"$f":"IFERROR(VLOOKUP($F59,#REF!,2,0)/100,\"0\")","v":"0"},{"$f":"IFERROR(VLOOKUP($F59,#REF!,3,0),\"\")","v":""},0.1,{"$f":"IFERROR(VLOOKUP($F59,#REF!,2,0)/100,\"0\")","v":"0"},{"$f":"IFERROR(VLOOKUP($F59,#REF!,3,0),\"\")","v":""},0.1,{"$f":"IFERROR(VLOOKUP($F59,#REF!,2,0)/100,\"0\")","v":"0"},{"$f":"IFERROR(VLOOKUP($F59,#REF!,3,0),\"\")","v":""},0.1,{"$f":"IFERROR(VLOOKUP($F59,#REF!,2,0)/100,\"0\")","v":"0"},{"$f":"IFERROR(VLOOKUP($F59,#REF!,3,0),\"\")","v":""},0.1,{"$f":"IFERROR(VLOOKUP($F59,#REF!,2,0)/100,\"0\")","v":"0"},{"$f":"IFERROR(VLOOKUP($F59,#REF!,3,0),\"\")","v":""},0.1,{"$f":"IFERROR(VLOOKUP($F59,#REF!,2,0)/100,\"0\")","v":"0"},{"$f":"IFERROR(VLOOKUP($F59,#REF!,3,0),\"\")","v":""},0.1,{"$f":"IFERROR(VLOOKUP($F59,#REF!,2,0)/100,\"0\")","v":"0"},{"$f":"IFERROR(VLOOKUP($F59,#REF!,3,0),\"\")","v":""},null,{"$f":"IFERROR(VLOOKUP($F59,#REF!,2,0)/100,\"0\")","v":"0"},0,0]
[null,"SUBDIRECCIÓN DE APROVECHAMIENTO (SAP)","Dignificar la labor de la población recicladora de oficio","Mejorar las condiciones de trabajo y prestación del servicio de la población recicladora de oficio","# de vehículos entregados ","Dotar a la población recicladora de oficio con vehículos que faciliten  la recolección y transporte de material aprovechable\n",0.8,"2020-01-01","2020-12-31","Suscripción de los instrumentos legales para la entrega","1109-Manejo integral de residuos sólidos en el Distrito Capital y la Región Distrito Capital","Establecer  1 línea base del componente de aprovechamiento en la ciudad de Bogotá D.C\n","Empoderamiento Ciudadano:\nFomentar una cultura ciudadana comprometida con la\nsostenibilidad de la prestación de los servicios, orientada\nal embellecimiento y sentido de pertenencia con Bogotá. ","Plan Anual de Adquisiciones","Pilar 2 - Democracia Urbana ","13 - Infraestructura para el desarrollo del Hábitat.","Disminuir en 6% las toneladas de residuos urbanos dispuestos en el relleno sanitario",{"$f":"IFERROR(VLOOKUP($F60,#REF!,3,0),\"\")","v":""},null,{"$f":"IFERROR(VLOOKUP($F60,#REF!,2,0)/100,\"0\")","v":"0"},{"$f":"IFERROR(VLOOKUP($F60,#REF!,3,0),\"\")","v":""},null,{"$f":"IFERROR(VLOOKUP($F60,#REF!,2,0)/100,\"0\")","v":"0"},{"$f":"IFERROR(VLOOKUP($F60,#REF!,3,0),\"\")","v":""},0.5,{"$f":"IFERROR(VLOOKUP($F60,#REF!,2,0)/100,\"0\")","v":"0"},{"$f":"IFERROR(VLOOKUP($F60,#REF!,3,0),\"\")","v":""},null,{"$f":"IFERROR(VLOOKUP($F60,#REF!,2,0)/100,\"0\")","v":"0"},{"$f":"IFERROR(VLOOKUP($F60,#REF!,3,0),\"\")","v":""},null,{"$f":"IFERROR(VLOOKUP($F60,#REF!,2,0)/100,\"0\")","v":"0"},{"$f":"IFERROR(VLOOKUP($F60,#REF!,3,0),\"\")","v":""},0.5,{"$f":"IFERROR(VLOOKUP($F60,#REF!,2,0)/100,\"0\")","v":"0"},{"$f":"IFERROR(VLOOKUP($F60,#REF!,3,0),\"\")","v":""},null,{"$f":"IFERROR(VLOOKUP($F60,#REF!,2,0)/100,\"0\")","v":"0"},{"$f":"IFERROR(VLOOKUP($F60,#REF!,3,0),\"\")","v":""},null,{"$f":"IFERROR(VLOOKUP($F60,#REF!,2,0)/100,\"0\")","v":"0"},{"$f":"IFERROR(VLOOKUP($F60,#REF!,3,0),\"\")","v":""},null,{"$f":"IFERROR(VLOOKUP($F60,#REF!,2,0)/100,\"0\")","v":"0"},{"$f":"IFERROR(VLOOKUP($F60,#REF!,3,0),\"\")","v":""},null,{"$f":"IFERROR(VLOOKUP($F60,#REF!,2,0)/100,\"0\")","v":"0"},{"$f":"IFERROR(VLOOKUP($F60,#REF!,3,0),\"\")","v":""},null,{"$f":"IFERROR(VLOOKUP($F60,#REF!,2,0)/100,\"0\")","v":"0"},{"$f":"IFERROR(VLOOKUP($F60,#REF!,3,0),\"\")","v":""},null,{"$f":"IFERROR(VLOOKUP($F60,#REF!,2,0)/100,\"0\")","v":"0"},0,0]
[null,"SUBDIRECCIÓN DE APROVECHAMIENTO (SAP)",null,null,"# de herramientas tecnológicas entregadas a las organizaciones recicladoras","Dotar de herramientas tecnológicas a las organizaciones recicladoras",0.1,"2020-01-01","2020-12-31","Suscripción de los instrumentos legales para la entrega","1109-Manejo integral de residuos sólidos en el Distrito Capital y la Región Distrito Capital","Establecer  1 línea base del componente de aprovechamiento en la ciudad de Bogotá D.C\n","Empoderamiento Ciudadano:\nFomentar una cultura ciudadana comprometida con la\nsostenibilidad de la prestación de los servicios, orientada\nal embellecimiento y sentido de pertenencia con Bogotá. ","Plan Anual de Adquisiciones","Pilar 2 - Democracia Urbana ","13 - Infraestructura para el desarrollo del Hábitat.","Disminuir en 6% las toneladas de residuos urbanos dispuestos en el relleno sanitario",{"$f":"IFERROR(VLOOKUP($F61,#REF!,3,0),\"\")","v":""},null,{"$f":"IFERROR(VLOOKUP($F61,#REF!,2,0)/100,\"0\")","v":"0"},{"$f":"IFERROR(VLOOKUP($F61,#REF!,3,0),\"\")","v":""},null,{"$f":"IFERROR(VLOOKUP($F61,#REF!,2,0)/100,\"0\")","v":"0"},{"$f":"IFERROR(VLOOKUP($F61,#REF!,3,0),\"\")","v":""},0.3,{"$f":"IFERROR(VLOOKUP($F61,#REF!,2,0)/100,\"0\")","v":"0"},{"$f":"IFERROR(VLOOKUP($F61,#REF!,3,0),\"\")","v":""},null,{"$f":"IFERROR(VLOOKUP($F61,#REF!,2,0)/100,\"0\")","v":"0"},{"$f":"IFERROR(VLOOKUP($F61,#REF!,3,0),\"\")","v":""},null,{"$f":"IFERROR(VLOOKUP($F61,#REF!,2,0)/100,\"0\")","v":"0"},{"$f":"IFERROR(VLOOKUP($F61,#REF!,3,0),\"\")","v":""},0.3,{"$f":"IFERROR(VLOOKUP($F61,#REF!,2,0)/100,\"0\")","v":"0"},{"$f":"IFERROR(VLOOKUP($F61,#REF!,3,0),\"\")","v":""},null,{"$f":"IFERROR(VLOOKUP($F61,#REF!,2,0)/100,\"0\")","v":"0"},{"$f":"IFERROR(VLOOKUP($F61,#REF!,3,0),\"\")","v":""},null,{"$f":"IFERROR(VLOOKUP($F61,#REF!,2,0)/100,\"0\")","v":"0"},{"$f":"IFERROR(VLOOKUP($F61,#REF!,3,0),\"\")","v":""},0.3,{"$f":"IFERROR(VLOOKUP($F61,#REF!,2,0)/100,\"0\")","v":"0"},{"$f":"IFERROR(VLOOKUP($F61,#REF!,3,0),\"\")","v":""},null,{"$f":"IFERROR(VLOOKUP($F61,#REF!,2,0)/100,\"0\")","v":"0"},{"$f":"IFERROR(VLOOKUP($F61,#REF!,3,0),\"\")","v":""},null,{"$f":"IFERROR(VLOOKUP($F61,#REF!,2,0)/100,\"0\")","v":"0"},{"$f":"IFERROR(VLOOKUP($F61,#REF!,3,0),\"\")","v":""},0.1,{"$f":"IFERROR(VLOOKUP($F61,#REF!,2,0)/100,\"0\")","v":"0"},0,0]
[null,"SUBDIRECCIÓN DE APROVECHAMIENTO (SAP)",null,null,"Base de datos depurada","Actualizar el censo de la población recicladora de oficio  inscrita en el RURO",0.1,"2020-01-01","2020-12-31","RURO actualizado","1109-Manejo integral de residuos sólidos en el Distrito Capital y la Región Distrito Capital","Establecer  1 línea base del componente de aprovechamiento en la ciudad de Bogotá D.C\n","Empoderamiento Ciudadano:\nFomentar una cultura ciudadana comprometida con la\nsostenibilidad de la prestación de los servicios, orientada\nal embellecimiento y sentido de pertenencia con Bogotá. ","Plan Anual de Adquisiciones","Pilar 2 - Democracia Urbana ","13 - Infraestructura para el desarrollo del Hábitat.","Disminuir en 6% las toneladas de residuos urbanos dispuestos en el relleno sanitario",{"$f":"IFERROR(VLOOKUP($F62,#REF!,3,0),\"\")","v":""},null,{"$f":"IFERROR(VLOOKUP($F62,#REF!,2,0)/100,\"0\")","v":"0"},{"$f":"IFERROR(VLOOKUP($F62,#REF!,3,0),\"\")","v":""},0.2,{"$f":"IFERROR(VLOOKUP($F62,#REF!,2,0)/100,\"0\")","v":"0"},{"$f":"IFERROR(VLOOKUP($F62,#REF!,3,0),\"\")","v":""},null,{"$f":"IFERROR(VLOOKUP($F62,#REF!,2,0)/100,\"0\")","v":"0"},{"$f":"IFERROR(VLOOKUP($F62,#REF!,3,0),\"\")","v":""},0.2,{"$f":"IFERROR(VLOOKUP($F62,#REF!,2,0)/100,\"0\")","v":"0"},{"$f":"IFERROR(VLOOKUP($F62,#REF!,3,0),\"\")","v":""},null,{"$f":"IFERROR(VLOOKUP($F62,#REF!,2,0)/100,\"0\")","v":"0"},{"$f":"IFERROR(VLOOKUP($F62,#REF!,3,0),\"\")","v":""},0.2,{"$f":"IFERROR(VLOOKUP($F62,#REF!,2,0)/100,\"0\")","v":"0"},{"$f":"IFERROR(VLOOKUP($F62,#REF!,3,0),\"\")","v":""},null,{"$f":"IFERROR(VLOOKUP($F62,#REF!,2,0)/100,\"0\")","v":"0"},null,0.2,{"$f":"IFERROR(VLOOKUP($F62,#REF!,2,0)/100,\"0\")","v":"0"},{"$f":"IFERROR(VLOOKUP($F62,#REF!,3,0),\"\")","v":""},null,{"$f":"IFERROR(VLOOKUP($F62,#REF!,2,0)/100,\"0\")","v":"0"},{"$f":"IFERROR(VLOOKUP($F62,#REF!,3,0),\"\")","v":""},0.2,{"$f":"IFERROR(VLOOKUP($F62,#REF!,2,0)/100,\"0\")","v":"0"},{"$f":"IFERROR(VLOOKUP($F62,#REF!,3,0),\"\")","v":""},null,{"$f":"IFERROR(VLOOKUP($F62,#REF!,2,0)/100,\"0\")","v":"0"},{"$f":"IFERROR(VLOOKUP($F62,#REF!,3,0),\"\")","v":""},null,{"$f":"IFERROR(VLOOKUP($F62,#REF!,2,0)/100,\"0\")","v":"0"},0,0]
[null,"SUBDIRECCIÓN DE APROVECHAMIENTO (SAP)","Promover el fortalecimiento empresarial para las organizaciones de recicladores.","Apoyar el cumplimiento de las fases de formalización de las organizaciones de recicladores de oficio conforme al Decreto 596 de 2016.","# de organizaciones de recicladores capacitadas\n","Desarrollar capacitaciones dirigidas a organizaciones de recicladores de oficio.",1,"2020-01-01","2020-12-31","Informes trimestrales del avance del cumplimiento de las fases.","1109-Manejo integral de residuos sólidos en el Distrito Capital y la Región Distrito Capital","Establecer  1 línea base del componente de aprovechamiento en la ciudad de Bogotá D.C\n","Empoderamiento Ciudadano:\nFomentar una cultura ciudadana comprometida con la\nsostenibilidad de la prestación de los servicios, orientada\nal embellecimiento y sentido de pertenencia con Bogotá. ","Plan Anual de Adquisiciones","Pilar 2 - Democracia Urbana ","13 - Infraestructura para el desarrollo del Hábitat.","Disminuir en 6% las toneladas de residuos urbanos dispuestos en el relleno sanitario",{"$f":"IFERROR(VLOOKUP($F63,#REF!,3,0),\"\")","v":""},null,{"$f":"IFERROR(VLOOKUP($F63,#REF!,2,0)/100,\"0\")","v":"0"},{"$f":"IFERROR(VLOOKUP($F63,#REF!,3,0),\"\")","v":""},null,{"$f":"IFERROR(VLOOKUP($F63,#REF!,2,0)/100,\"0\")","v":"0"},{"$f":"IFERROR(VLOOKUP($F63,#REF!,3,0),\"\")","v":""},0.25,{"$f":"IFERROR(VLOOKUP($F63,#REF!,2,0)/100,\"0\")","v":"0"},{"$f":"IFERROR(VLOOKUP($F63,#REF!,3,0),\"\")","v":""},null,{"$f":"IFERROR(VLOOKUP($F63,#REF!,2,0)/100,\"0\")","v":"0"},{"$f":"IFERROR(VLOOKUP($F63,#REF!,3,0),\"\")","v":""},null,{"$f":"IFERROR(VLOOKUP($F63,#REF!,2,0)/100,\"0\")","v":"0"},{"$f":"IFERROR(VLOOKUP($F63,#REF!,3,0),\"\")","v":""},0.25,{"$f":"IFERROR(VLOOKUP($F63,#REF!,2,0)/100,\"0\")","v":"0"},{"$f":"IFERROR(VLOOKUP($F63,#REF!,3,0),\"\")","v":""},null,{"$f":"IFERROR(VLOOKUP($F63,#REF!,2,0)/100,\"0\")","v":"0"},{"$f":"IFERROR(VLOOKUP($F63,#REF!,3,0),\"\")","v":""},null,{"$f":"IFERROR(VLOOKUP($F63,#REF!,2,0)/100,\"0\")","v":"0"},{"$f":"IFERROR(VLOOKUP($F63,#REF!,3,0),\"\")","v":""},0.25,{"$f":"IFERROR(VLOOKUP($F63,#REF!,2,0)/100,\"0\")","v":"0"},{"$f":"IFERROR(VLOOKUP($F63,#REF!,3,0),\"\")","v":""},null,{"$f":"IFERROR(VLOOKUP($F63,#REF!,2,0)/100,\"0\")","v":"0"},{"$f":"IFERROR(VLOOKUP($F63,#REF!,3,0),\"\")","v":""},null,{"$f":"IFERROR(VLOOKUP($F63,#REF!,2,0)/100,\"0\")","v":"0"},{"$f":"IFERROR(VLOOKUP($F63,#REF!,3,0),\"\")","v":""},0.25,{"$f":"IFERROR(VLOOKUP($F63,#REF!,2,0)/100,\"0\")","v":"0"},0,0]
[null,"SUBDIRECCIÓN DE SERVICIOS FUNERARIOS Y ALUMBRADO PÚBLICO (SSFAP)","Modernizar y Actualizar las luminarias en Parques y Vías","Instalación de 30.000 bombillas de tecnología LED y/o CMH instaladas y la actualización de 200 parques.\n","Cumplimiento de luminarias modernizadas y/o actualizadas en el servicio de alumbrado público de Bogotá","Modernización de 15,000 Luminarias entre los meses de enero a mayo de 2020 en algunas Zonas del Distrito Capital",1,"2020-02-01","2020-05-31","Informe   avance de Modernización en el servicio de alumbrado público de Bogotá.","1045-Gestión para la eficiencia energética del servicio de alumbrado público en Bogotá - D.C","Fortalecer 100 % la planeación del servicio y la gestión de control, supervisión y evaluación de la prestación del servicio de Alumbrado Público en el Distrito Capital.\n","Modelo Integral de Prestación del Servicio Garantizar los más altos estándares de calidad en la prestación sostenible y efectiva de los servicios","Plan Anual de Adquisiciones","Pilar 2 - Democracia Urbana ","19 - Seguridad y convivencia para todos","Aumentar en 17 puntos porcentuales las personas que consideran que el barrio en el habitan es seguro",{"$f":"IFERROR(VLOOKUP($F64,#REF!,3,0),\"\")","v":""},0.2,{"$f":"IFERROR(VLOOKUP($F64,#REF!,2,0)/100,\"0\")","v":"0"},{"$f":"IFERROR(VLOOKUP($F64,#REF!,3,0),\"\")","v":""},0.2,{"$f":"IFERROR(VLOOKUP($F64,#REF!,2,0)/100,\"0\")","v":"0"},{"$f":"IFERROR(VLOOKUP($F64,#REF!,3,0),\"\")","v":""},0.2,{"$f":"IFERROR(VLOOKUP($F64,#REF!,2,0)/100,\"0\")","v":"0"},{"$f":"IFERROR(VLOOKUP($F64,#REF!,3,0),\"\")","v":""},0.2,{"$f":"IFERROR(VLOOKUP($F64,#REF!,2,0)/100,\"0\")","v":"0"},{"$f":"IFERROR(VLOOKUP($F64,#REF!,3,0),\"\")","v":""},0.2,{"$f":"IFERROR(VLOOKUP($F64,#REF!,2,0)/100,\"0\")","v":"0"},{"$f":"IFERROR(VLOOKUP($F64,#REF!,3,0),\"\")","v":""},null,{"$f":"IFERROR(VLOOKUP($F64,#REF!,2,0)/100,\"0\")","v":"0"},{"$f":"IFERROR(VLOOKUP($F64,#REF!,3,0),\"\")","v":""},null,{"$f":"IFERROR(VLOOKUP($F64,#REF!,2,0)/100,\"0\")","v":"0"},{"$f":"IFERROR(VLOOKUP($F64,#REF!,3,0),\"\")","v":""},null,{"$f":"IFERROR(VLOOKUP($F64,#REF!,2,0)/100,\"0\")","v":"0"},{"$f":"IFERROR(VLOOKUP($F64,#REF!,3,0),\"\")","v":""},null,{"$f":"IFERROR(VLOOKUP($F64,#REF!,2,0)/100,\"0\")","v":"0"},{"$f":"IFERROR(VLOOKUP($F64,#REF!,3,0),\"\")","v":""},null,{"$f":"IFERROR(VLOOKUP($F64,#REF!,2,0)/100,\"0\")","v":"0"},{"$f":"IFERROR(VLOOKUP($F64,#REF!,3,0),\"\")","v":""},null,{"$f":"IFERROR(VLOOKUP($F64,#REF!,2,0)/100,\"0\")","v":"0"},{"$f":"IFERROR(VLOOKUP($F64,#REF!,3,0),\"\")","v":""},null,{"$f":"IFERROR(VLOOKUP($F64,#REF!,2,0)/100,\"0\")","v":"0"},0,0]
[null,"SUBDIRECCIÓN DE SERVICIOS FUNERARIOS Y ALUMBRADO PÚBLICO (SSFAP)","Fortalecer la prestación del Servicio de Alumbrado Publico en el Distrito Capital","Garantizar que la prestación del servicio de alumbrado público se adecue al cumplimiento de la normatividad y regulación vigente","actas de Comité Instancia de Coordinación - Resolución 233 de 2018 \n","Realización del Comité de seguimiento Instancia de Coordinación - Resolución 233 de 2018",0.3,"2020-02-01","2020-05-31","Acta de reunión Comité Instancia de Coordinación - Resolución 233 de 2018","1045-Gestión para la eficiencia energética del servicio de alumbrado público en Bogotá - D.C","Fortalecer 100 % la planeación del servicio y la gestión de control, supervisión y evaluación de la prestación del servicio de Alumbrado Público en el Distrito Capital.\n","Modelo Integral de Prestación del Servicio Garantizar los más altos estándares de calidad en la prestación sostenible y efectiva de los servicios","Instancia de Coordinación - Resolución 233 de 2018","Eje 3 - Construcción de comunidad y cultura ciudadana","19 - Seguridad y convivencia para todos","Aumentar en 17 puntos porcentuales las personas que consideran que el barrio en el habitan es seguro",{"$f":"IFERROR(VLOOKUP($F65,#REF!,3,0),\"\")","v":""},null,{"$f":"IFERROR(VLOOKUP($F65,#REF!,2,0)/100,\"0\")","v":"0"},{"$f":"IFERROR(VLOOKUP($F65,#REF!,3,0),\"\")","v":""},null,{"$f":"IFERROR(VLOOKUP($F65,#REF!,2,0)/100,\"0\")","v":"0"},{"$f":"IFERROR(VLOOKUP($F65,#REF!,3,0),\"\")","v":""},null,{"$f":"IFERROR(VLOOKUP($F65,#REF!,2,0)/100,\"0\")","v":"0"},{"$f":"IFERROR(VLOOKUP($F65,#REF!,3,0),\"\")","v":""},1,{"$f":"IFERROR(VLOOKUP($F65,#REF!,2,0)/100,\"0\")","v":"0"},{"$f":"IFERROR(VLOOKUP($F65,#REF!,3,0),\"\")","v":""},null,{"$f":"IFERROR(VLOOKUP($F65,#REF!,2,0)/100,\"0\")","v":"0"},{"$f":"IFERROR(VLOOKUP($F65,#REF!,3,0),\"\")","v":""},null,{"$f":"IFERROR(VLOOKUP($F65,#REF!,2,0)/100,\"0\")","v":"0"},{"$f":"IFERROR(VLOOKUP($F65,#REF!,3,0),\"\")","v":""},null,{"$f":"IFERROR(VLOOKUP($F65,#REF!,2,0)/100,\"0\")","v":"0"},{"$f":"IFERROR(VLOOKUP($F65,#REF!,3,0),\"\")","v":""},null,{"$f":"IFERROR(VLOOKUP($F65,#REF!,2,0)/100,\"0\")","v":"0"},{"$f":"IFERROR(VLOOKUP($F65,#REF!,3,0),\"\")","v":""},null,{"$f":"IFERROR(VLOOKUP($F65,#REF!,2,0)/100,\"0\")","v":"0"},{"$f":"IFERROR(VLOOKUP($F65,#REF!,3,0),\"\")","v":""},null,{"$f":"IFERROR(VLOOKUP($F65,#REF!,2,0)/100,\"0\")","v":"0"},{"$f":"IFERROR(VLOOKUP($F65,#REF!,3,0),\"\")","v":""},null,{"$f":"IFERROR(VLOOKUP($F65,#REF!,2,0)/100,\"0\")","v":"0"},{"$f":"IFERROR(VLOOKUP($F65,#REF!,3,0),\"\")","v":""},null,{"$f":"IFERROR(VLOOKUP($F65,#REF!,2,0)/100,\"0\")","v":"0"},0,0]
[null,"SUBDIRECCIÓN DE SERVICIOS FUNERARIOS Y ALUMBRADO PÚBLICO (SSFAP)",null,null,"Cumplimiento del Plan Anual de Supervisión al Contrato de interventoría del servicio \n\n","Presentación de informes de supervisión y control al Contrato de Interventoría en la prestación del Servicio de Alumbrado en el Distrito Capital con el cumplimiento estricto de los contratos asociado",0.35,"2020-02-01","2020-05-31","Informe mensual de supervisión y control y de ejecución contractual\n\n\n","1045-Gestión para la eficiencia energética del servicio de alumbrado público en Bogotá - D.C","Fortalecer 100 % la planeación del servicio y la gestión de control, supervisión y evaluación de la prestación del servicio de Alumbrado Público en el Distrito Capital.\n","Modelo Integral de Prestación del Servicio Garantizar los más altos estándares de calidad en la prestación sostenible y efectiva de los servicios","Publicación oportuna de los informes de supervisión y control a la prestación del Servicio de Alumbrado Público del Distrito Capital.","Eje 3 - Construcción de comunidad y cultura ciudadana","19 - Seguridad y convivencia para todos","Aumentar en 17 puntos porcentuales las personas que consideran que el barrio en el habitan es seguro",{"$f":"IFERROR(VLOOKUP($F66,#REF!,3,0),\"\")","v":""},0.2,{"$f":"IFERROR(VLOOKUP($F66,#REF!,2,0)/100,\"0\")","v":"0"},{"$f":"IFERROR(VLOOKUP($F66,#REF!,3,0),\"\")","v":""},0.2,{"$f":"IFERROR(VLOOKUP($F66,#REF!,2,0)/100,\"0\")","v":"0"},{"$f":"IFERROR(VLOOKUP($F66,#REF!,3,0),\"\")","v":""},0.2,{"$f":"IFERROR(VLOOKUP($F66,#REF!,2,0)/100,\"0\")","v":"0"},{"$f":"IFERROR(VLOOKUP($F66,#REF!,3,0),\"\")","v":""},0.2,{"$f":"IFERROR(VLOOKUP($F66,#REF!,2,0)/100,\"0\")","v":"0"},{"$f":"IFERROR(VLOOKUP($F66,#REF!,3,0),\"\")","v":""},0.2,{"$f":"IFERROR(VLOOKUP($F66,#REF!,2,0)/100,\"0\")","v":"0"},{"$f":"IFERROR(VLOOKUP($F66,#REF!,3,0),\"\")","v":""},null,{"$f":"IFERROR(VLOOKUP($F66,#REF!,2,0)/100,\"0\")","v":"0"},{"$f":"IFERROR(VLOOKUP($F66,#REF!,3,0),\"\")","v":""},null,{"$f":"IFERROR(VLOOKUP($F66,#REF!,2,0)/100,\"0\")","v":"0"},{"$f":"IFERROR(VLOOKUP($F66,#REF!,3,0),\"\")","v":""},null,{"$f":"IFERROR(VLOOKUP($F66,#REF!,2,0)/100,\"0\")","v":"0"},{"$f":"IFERROR(VLOOKUP($F66,#REF!,3,0),\"\")","v":""},null,{"$f":"IFERROR(VLOOKUP($F66,#REF!,2,0)/100,\"0\")","v":"0"},{"$f":"IFERROR(VLOOKUP($F66,#REF!,3,0),\"\")","v":""},null,{"$f":"IFERROR(VLOOKUP($F66,#REF!,2,0)/100,\"0\")","v":"0"},{"$f":"IFERROR(VLOOKUP($F66,#REF!,3,0),\"\")","v":""},null,{"$f":"IFERROR(VLOOKUP($F66,#REF!,2,0)/100,\"0\")","v":"0"},{"$f":"IFERROR(VLOOKUP($F66,#REF!,3,0),\"\")","v":""},null,{"$f":"IFERROR(VLOOKUP($F66,#REF!,2,0)/100,\"0\")","v":"0"},0,0]
[null,"SUBDIRECCIÓN DE SERVICIOS FUNERARIOS Y ALUMBRADO PÚBLICO (SSFAP)",null,null,"Propuesta de revisión del modelo de prestación del servicio de alumbrado público","Revisión para la actualización y/o adecuación del modelo  de conformidad a la normatividad pertinente del modelo de prestación del servicio de alumbrado público",0.35,"2020-02-01","2020-05-31","\n\nDocumento - Propuesta de revisión del modelo de prestación del servicio de alumbrado público\n","1045-Gestión para la eficiencia energética del servicio de alumbrado público en Bogotá - D.C","Fortalecer 100 % la planeación del servicio y la gestión de control, supervisión y evaluación de la prestación del servicio de Alumbrado Público en el Distrito Capital.\n","Modelo Integral de Prestación del Servicio Garantizar los más altos estándares de calidad en la prestación sostenible y efectiva de los servicios","Publicación oportuna de los informes de supervisión y control a la prestación del Servicio de Alumbrado Público del Distrito Capital.","Eje 3 - Construcción de comunidad y cultura ciudadana","19 - Seguridad y convivencia para todos","Aumentar en 17 puntos porcentuales las personas que consideran que el barrio en el habitan es seguro",{"$f":"IFERROR(VLOOKUP($F67,#REF!,3,0),\"\")","v":""},0.2,{"$f":"IFERROR(VLOOKUP($F67,#REF!,2,0)/100,\"0\")","v":"0"},{"$f":"IFERROR(VLOOKUP($F67,#REF!,3,0),\"\")","v":""},0.2,{"$f":"IFERROR(VLOOKUP($F67,#REF!,2,0)/100,\"0\")","v":"0"},{"$f":"IFERROR(VLOOKUP($F67,#REF!,3,0),\"\")","v":""},0.2,{"$f":"IFERROR(VLOOKUP($F67,#REF!,2,0)/100,\"0\")","v":"0"},{"$f":"IFERROR(VLOOKUP($F67,#REF!,3,0),\"\")","v":""},0.2,{"$f":"IFERROR(VLOOKUP($F67,#REF!,2,0)/100,\"0\")","v":"0"},{"$f":"IFERROR(VLOOKUP($F67,#REF!,3,0),\"\")","v":""},0.2,{"$f":"IFERROR(VLOOKUP($F67,#REF!,2,0)/100,\"0\")","v":"0"},{"$f":"IFERROR(VLOOKUP($F67,#REF!,3,0),\"\")","v":""},null,{"$f":"IFERROR(VLOOKUP($F67,#REF!,2,0)/100,\"0\")","v":"0"},{"$f":"IFERROR(VLOOKUP($F67,#REF!,3,0),\"\")","v":""},null,{"$f":"IFERROR(VLOOKUP($F67,#REF!,2,0)/100,\"0\")","v":"0"},{"$f":"IFERROR(VLOOKUP($F67,#REF!,3,0),\"\")","v":""},null,{"$f":"IFERROR(VLOOKUP($F67,#REF!,2,0)/100,\"0\")","v":"0"},{"$f":"IFERROR(VLOOKUP($F67,#REF!,3,0),\"\")","v":""},null,{"$f":"IFERROR(VLOOKUP($F67,#REF!,2,0)/100,\"0\")","v":"0"},{"$f":"IFERROR(VLOOKUP($F67,#REF!,3,0),\"\")","v":""},null,{"$f":"IFERROR(VLOOKUP($F67,#REF!,2,0)/100,\"0\")","v":"0"},{"$f":"IFERROR(VLOOKUP($F67,#REF!,3,0),\"\")","v":""},null,{"$f":"IFERROR(VLOOKUP($F67,#REF!,2,0)/100,\"0\")","v":"0"},{"$f":"IFERROR(VLOOKUP($F67,#REF!,3,0),\"\")","v":""},null,{"$f":"IFERROR(VLOOKUP($F67,#REF!,2,0)/100,\"0\")","v":"0"},0,0]
[null,"SUBDIRECCIÓN DE SERVICIOS FUNERARIOS Y ALUMBRADO PÚBLICO (SSFAP)","Garantizar que la prestación de los  servicios funerarios \n","Fortalecer la prestación del Servicios  funerarios  en el Distrito Capital\n","Cumplimiento del Plan Anual de Supervisión al Contrato de interventoría del servicio, através de la presentación de los informes mensuales de supervisión\n","Presentación de informes de supervisión y control  al Contrato de Interventoría a la prestación   de los Servicios Funerarios en el Distrito Capital con el cumplimiento estricto de los contratos asociados",0.7,"2020-02-01","2020-05-31","Informe mensual de supervisión y control y de ejecución contractual","1048 -  Gestión para la ampliación y modernización de los servicios funerarios prestados en los cementerios de propiedad del Distrito Capital","Entregar 26 servicios funerarios integrales prestados en los cementerios de propiedad del Distrito.","Modelo Integral de Prestación del Servicio Garantizar los más altos estándares de calidad en la prestación sostenible y efectiva de los servicios","Publicación oportuna de los informes de supervisión y control a la prestación de los  Servicios Funerarios en los Cementerios de propiedad  del Distrito Capital.","Pilar 2 - Democracia Urbana ","13 - Infraestructura para el desarrollo del Hábitat.","26 servicios funerarios integrales prestados en los cementerios de propiedad del Distrito",{"$f":"IFERROR(VLOOKUP($F68,#REF!,3,0),\"\")","v":""},0.2,{"$f":"IFERROR(VLOOKUP($F68,#REF!,2,0)/100,\"0\")","v":"0"},{"$f":"IFERROR(VLOOKUP($F68,#REF!,3,0),\"\")","v":""},0.2,{"$f":"IFERROR(VLOOKUP($F68,#REF!,2,0)/100,\"0\")","v":"0"},{"$f":"IFERROR(VLOOKUP($F68,#REF!,3,0),\"\")","v":""},0.2,{"$f":"IFERROR(VLOOKUP($F68,#REF!,2,0)/100,\"0\")","v":"0"},{"$f":"IFERROR(VLOOKUP($F68,#REF!,3,0),\"\")","v":""},0.2,{"$f":"IFERROR(VLOOKUP($F68,#REF!,2,0)/100,\"0\")","v":"0"},{"$f":"IFERROR(VLOOKUP($F68,#REF!,3,0),\"\")","v":""},0.2,{"$f":"IFERROR(VLOOKUP($F68,#REF!,2,0)/100,\"0\")","v":"0"},{"$f":"IFERROR(VLOOKUP($F68,#REF!,3,0),\"\")","v":""},null,{"$f":"IFERROR(VLOOKUP($F68,#REF!,2,0)/100,\"0\")","v":"0"},{"$f":"IFERROR(VLOOKUP($F68,#REF!,3,0),\"\")","v":""},null,{"$f":"IFERROR(VLOOKUP($F68,#REF!,2,0)/100,\"0\")","v":"0"},{"$f":"IFERROR(VLOOKUP($F68,#REF!,3,0),\"\")","v":""},null,{"$f":"IFERROR(VLOOKUP($F68,#REF!,2,0)/100,\"0\")","v":"0"},{"$f":"IFERROR(VLOOKUP($F68,#REF!,3,0),\"\")","v":""},null,{"$f":"IFERROR(VLOOKUP($F68,#REF!,2,0)/100,\"0\")","v":"0"},{"$f":"IFERROR(VLOOKUP($F68,#REF!,3,0),\"\")","v":""},null,{"$f":"IFERROR(VLOOKUP($F68,#REF!,2,0)/100,\"0\")","v":"0"},{"$f":"IFERROR(VLOOKUP($F68,#REF!,3,0),\"\")","v":""},null,{"$f":"IFERROR(VLOOKUP($F68,#REF!,2,0)/100,\"0\")","v":"0"},{"$f":"IFERROR(VLOOKUP($F68,#REF!,3,0),\"\")","v":""},null,{"$f":"IFERROR(VLOOKUP($F68,#REF!,2,0)/100,\"0\")","v":"0"},0,0]
[null,null,null,null,"actas de Comité Instancia de Coordinación - Resolución 233 de 2018 \n","Realización del Comité de seguimiento Instancia de Coordinación - Resolución 233 de 2018",0.3,43862,43982,"Acta de reunión Comité Instancia de Coordinación - Resolución 233 de 2018","1048 -  Gestión para la ampliación y modernización de los servicios funerarios prestados en los cementerios de propiedad del Distrito Capital","Entregar 26 servicios funerarios integrales prestados en los cementerios de propiedad del Distrito.","Modelo Integral de Prestación del Servicio Garantizar los más altos estándares de calidad en la prestación sostenible y efectiva de los servicios","Plan Anual de Adquisiciones","Pilar 2 - Democracia Urbana ","13 - Infraestructura para el desarrollo del Hábitat.","26 servicios funerarios integrales prestados en los cementerios de propiedad del Distrito",{"$f":"IFERROR(VLOOKUP($F69,#REF!,3,0),\"\")","v":""},null,{"$f":"IFERROR(VLOOKUP($F69,#REF!,2,0)/100,\"0\")","v":"0"},{"$f":"IFERROR(VLOOKUP($F69,#REF!,3,0),\"\")","v":""},null,{"$f":"IFERROR(VLOOKUP($F69,#REF!,2,0)/100,\"0\")","v":"0"},{"$f":"IFERROR(VLOOKUP($F69,#REF!,3,0),\"\")","v":""},null,{"$f":"IFERROR(VLOOKUP($F69,#REF!,2,0)/100,\"0\")","v":"0"},{"$f":"IFERROR(VLOOKUP($F69,#REF!,3,0),\"\")","v":""},1,{"$f":"IFERROR(VLOOKUP($F69,#REF!,2,0)/100,\"0\")","v":"0"},{"$f":"IFERROR(VLOOKUP($F69,#REF!,3,0),\"\")","v":""},null,{"$f":"IFERROR(VLOOKUP($F69,#REF!,2,0)/100,\"0\")","v":"0"},{"$f":"IFERROR(VLOOKUP($F69,#REF!,3,0),\"\")","v":""},null,{"$f":"IFERROR(VLOOKUP($F69,#REF!,2,0)/100,\"0\")","v":"0"},{"$f":"IFERROR(VLOOKUP($F69,#REF!,3,0),\"\")","v":""},null,{"$f":"IFERROR(VLOOKUP($F69,#REF!,2,0)/100,\"0\")","v":"0"},{"$f":"IFERROR(VLOOKUP($F69,#REF!,3,0),\"\")","v":""},null,{"$f":"IFERROR(VLOOKUP($F69,#REF!,2,0)/100,\"0\")","v":"0"},{"$f":"IFERROR(VLOOKUP($F69,#REF!,3,0),\"\")","v":""},null,{"$f":"IFERROR(VLOOKUP($F69,#REF!,2,0)/100,\"0\")","v":"0"},{"$f":"IFERROR(VLOOKUP($F69,#REF!,3,0),\"\")","v":""},null,{"$f":"IFERROR(VLOOKUP($F69,#REF!,2,0)/100,\"0\")","v":"0"},{"$f":"IFERROR(VLOOKUP($F69,#REF!,3,0),\"\")","v":""},null,{"$f":"IFERROR(VLOOKUP($F69,#REF!,2,0)/100,\"0\")","v":"0"},{"$f":"IFERROR(VLOOKUP($F69,#REF!,3,0),\"\")","v":""},null,{"$f":"IFERROR(VLOOKUP($F69,#REF!,2,0)/100,\"0\")","v":"0"},0,0]
[null,"SUBDIRECCIÓN DE SERVICIOS FUNERARIOS Y ALUMBRADO PÚBLICO (SSFAP)","Revitalizar los Cementerios de propiedad del Distrito Capital","Cumplir las intervenciones programadas y viabilizadas frente a la revitalización de los cementerios de propiedad del Distrito","Intervenciones programadas sobre procesos de obras gestionadas","Procesos de obra gestionados",0.3,"2020-02-01","2020-12-31","Procesos precontractuales, contractuales y/o actas de liquidación de contratos de revitalización de los cementerios de propiedad del distrito","1048 -  Gestión para la ampliación y modernización de los servicios funerarios prestados en los cementerios de propiedad del Distrito Capital","Entregar 26 servicios funerarios integrales prestados en los cementerios de propiedad del Distrito.","Modelo Integral de Prestación del Servicio Garantizar los más altos estándares de calidad en la prestación sostenible y efectiva de los servicios","Plan Anual de Adquisiciones","Pilar 2 - Democracia Urbana ","13 - Infraestructura para el desarrollo del Hábitat.","26 servicios funerarios integrales prestados en los cementerios de propiedad del Distrito",{"$f":"IFERROR(VLOOKUP($F70,#REF!,3,0),\"\")","v":""},0.1,{"$f":"IFERROR(VLOOKUP($F70,#REF!,2,0)/100,\"0\")","v":"0"},{"$f":"IFERROR(VLOOKUP($F70,#REF!,3,0),\"\")","v":""},0.1,{"$f":"IFERROR(VLOOKUP($F70,#REF!,2,0)/100,\"0\")","v":"0"},{"$f":"IFERROR(VLOOKUP($F70,#REF!,3,0),\"\")","v":""},0.1,{"$f":"IFERROR(VLOOKUP($F70,#REF!,2,0)/100,\"0\")","v":"0"},{"$f":"IFERROR(VLOOKUP($F70,#REF!,3,0),\"\")","v":""},0.1,{"$f":"IFERROR(VLOOKUP($F70,#REF!,2,0)/100,\"0\")","v":"0"},{"$f":"IFERROR(VLOOKUP($F70,#REF!,3,0),\"\")","v":""},0.1,{"$f":"IFERROR(VLOOKUP($F70,#REF!,2,0)/100,\"0\")","v":"0"},{"$f":"IFERROR(VLOOKUP($F70,#REF!,3,0),\"\")","v":""},0.1,{"$f":"IFERROR(VLOOKUP($F70,#REF!,2,0)/100,\"0\")","v":"0"},{"$f":"IFERROR(VLOOKUP($F70,#REF!,3,0),\"\")","v":""},0.1,{"$f":"IFERROR(VLOOKUP($F70,#REF!,2,0)/100,\"0\")","v":"0"},{"$f":"IFERROR(VLOOKUP($F70,#REF!,3,0),\"\")","v":""},0.1,{"$f":"IFERROR(VLOOKUP($F70,#REF!,2,0)/100,\"0\")","v":"0"},{"$f":"IFERROR(VLOOKUP($F70,#REF!,3,0),\"\")","v":""},0.1,{"$f":"IFERROR(VLOOKUP($F70,#REF!,2,0)/100,\"0\")","v":"0"},{"$f":"IFERROR(VLOOKUP($F70,#REF!,3,0),\"\")","v":""},0.1,{"$f":"IFERROR(VLOOKUP($F70,#REF!,2,0)/100,\"0\")","v":"0"},{"$f":"IFERROR(VLOOKUP($F70,#REF!,3,0),\"\")","v":""},0.1,{"$f":"IFERROR(VLOOKUP($F70,#REF!,2,0)/100,\"0\")","v":"0"},{"$f":"IFERROR(VLOOKUP($F70,#REF!,3,0),\"\")","v":""},null,{"$f":"IFERROR(VLOOKUP($F70,#REF!,2,0)/100,\"0\")","v":"0"},0,0]
[null,"SUBDIRECCIÓN DE SERVICIOS FUNERARIOS Y ALUMBRADO PÚBLICO (SSFAP)",null,"Cumplir las intervenciones programadas y viabilizadas frente a la revitalización de los cementerios de propiedad del Distrito","Intervenciones programadas y/o ejecutadas de acuerdo a la necesidad","Procesos de obra ejecutados.",0.3,"2020-02-01","2020-12-31","Procesos precontractuales, contractuales y/o actas de liquidación de contratos de revitalización de los cementerios de propiedad del distrito","1048 -  Gestión para la ampliación y modernización de los servicios funerarios prestados en los cementerios de propiedad del Distrito Capital","Entregar 26 servicios funerarios integrales prestados en los cementerios de propiedad del Distrito.","Modelo Integral de Prestación del Servicio Garantizar los más altos estándares de calidad en la prestación sostenible y efectiva de los servicios","Plan Anual de Adquisiciones","Pilar 2 - Democracia Urbana ","13 - Infraestructura para el desarrollo del Hábitat.","26 servicios funerarios integrales prestados en los cementerios de propiedad del Distrito",{"$f":"IFERROR(VLOOKUP($F71,#REF!,3,0),\"\")","v":""},0.1,{"$f":"IFERROR(VLOOKUP($F71,#REF!,2,0)/100,\"0\")","v":"0"},{"$f":"IFERROR(VLOOKUP($F71,#REF!,3,0),\"\")","v":""},0.1,{"$f":"IFERROR(VLOOKUP($F71,#REF!,2,0)/100,\"0\")","v":"0"},{"$f":"IFERROR(VLOOKUP($F71,#REF!,3,0),\"\")","v":""},0.1,{"$f":"IFERROR(VLOOKUP($F71,#REF!,2,0)/100,\"0\")","v":"0"},{"$f":"IFERROR(VLOOKUP($F71,#REF!,3,0),\"\")","v":""},0.1,{"$f":"IFERROR(VLOOKUP($F71,#REF!,2,0)/100,\"0\")","v":"0"},{"$f":"IFERROR(VLOOKUP($F71,#REF!,3,0),\"\")","v":""},0.1,{"$f":"IFERROR(VLOOKUP($F71,#REF!,2,0)/100,\"0\")","v":"0"},{"$f":"IFERROR(VLOOKUP($F71,#REF!,3,0),\"\")","v":""},0.1,{"$f":"IFERROR(VLOOKUP($F71,#REF!,2,0)/100,\"0\")","v":"0"},{"$f":"IFERROR(VLOOKUP($F71,#REF!,3,0),\"\")","v":""},0.1,{"$f":"IFERROR(VLOOKUP($F71,#REF!,2,0)/100,\"0\")","v":"0"},{"$f":"IFERROR(VLOOKUP($F71,#REF!,3,0),\"\")","v":""},0.1,{"$f":"IFERROR(VLOOKUP($F71,#REF!,2,0)/100,\"0\")","v":"0"},{"$f":"IFERROR(VLOOKUP($F71,#REF!,3,0),\"\")","v":""},0.1,{"$f":"IFERROR(VLOOKUP($F71,#REF!,2,0)/100,\"0\")","v":"0"},{"$f":"IFERROR(VLOOKUP($F71,#REF!,3,0),\"\")","v":""},0.1,{"$f":"IFERROR(VLOOKUP($F71,#REF!,2,0)/100,\"0\")","v":"0"},{"$f":"IFERROR(VLOOKUP($F71,#REF!,3,0),\"\")","v":""},0.1,{"$f":"IFERROR(VLOOKUP($F71,#REF!,2,0)/100,\"0\")","v":"0"},{"$f":"IFERROR(VLOOKUP($F71,#REF!,3,0),\"\")","v":""},null,{"$f":"IFERROR(VLOOKUP($F71,#REF!,2,0)/100,\"0\")","v":"0"},{"$f":"T71+W71+Z71+AC71+AF71+AI71+AL71+AO71+AR71+AU71+AX71+BA71","v":0},{"$f":"((T71+W71+Z71+AC71+AF71+AI71+AL71+AO71+AR71+AU71+AX71+BA71)*G71)","v":0}]
[null,"SUBDIRECCIÓN DE SERVICIOS FUNERARIOS Y ALUMBRADO PÚBLICO (SSFAP)",null,"Realizar estudios relacionados con con la prestación de los Servicios Funerarios en los cementerios de propiedad del distrito","Estudios entregados adelantados y/o relacionados con la prestación de los Servicios Funerarios en los cementerios de propiedad del distrito","Proceso precontractual, contractual o la ejecución para el desarrollo de los estudios de olores generados al interior de los Cementerios propiedad del Distrito",0.2,"2020-02-01","2020-12-31","Proceso precontractual, contractual y/o Estudio de olores generados al interior de los Cementerios propiedad del Distrito ","1048 -  Gestión para la ampliación y modernización de los servicios funerarios prestados en los cementerios de propiedad del Distrito Capital","Entregar 26 servicios funerarios integrales prestados en los cementerios de propiedad del Distrito.","Modelo Integral de Prestación del Servicio Garantizar los más altos estándares de calidad en la prestación sostenible y efectiva de los servicios","Plan Anual de Adquisiciones","Pilar 2 - Democracia Urbana ","13 - Infraestructura para el desarrollo del Hábitat.","26 servicios funerarios integrales prestados en los cementerios de propiedad del Distrito",{"$f":"IFERROR(VLOOKUP($F72,#REF!,3,0),\"\")","v":""},null,{"$f":"IFERROR(VLOOKUP($F72,#REF!,2,0)/100,\"0\")","v":"0"},{"$f":"IFERROR(VLOOKUP($F72,#REF!,3,0),\"\")","v":""},0.1,{"$f":"IFERROR(VLOOKUP($F72,#REF!,2,0)/100,\"0\")","v":"0"},{"$f":"IFERROR(VLOOKUP($F72,#REF!,3,0),\"\")","v":""},0.1,{"$f":"IFERROR(VLOOKUP($F72,#REF!,2,0)/100,\"0\")","v":"0"},{"$f":"IFERROR(VLOOKUP($F72,#REF!,3,0),\"\")","v":""},0.1,{"$f":"IFERROR(VLOOKUP($F72,#REF!,2,0)/100,\"0\")","v":"0"},{"$f":"IFERROR(VLOOKUP($F72,#REF!,3,0),\"\")","v":""},0.1,{"$f":"IFERROR(VLOOKUP($F72,#REF!,2,0)/100,\"0\")","v":"0"},{"$f":"IFERROR(VLOOKUP($F72,#REF!,3,0),\"\")","v":""},0.1,{"$f":"IFERROR(VLOOKUP($F72,#REF!,2,0)/100,\"0\")","v":"0"},{"$f":"IFERROR(VLOOKUP($F72,#REF!,3,0),\"\")","v":""},0.1,{"$f":"IFERROR(VLOOKUP($F72,#REF!,2,0)/100,\"0\")","v":"0"},{"$f":"IFERROR(VLOOKUP($F72,#REF!,3,0),\"\")","v":""},0.1,{"$f":"IFERROR(VLOOKUP($F72,#REF!,2,0)/100,\"0\")","v":"0"},{"$f":"IFERROR(VLOOKUP($F72,#REF!,3,0),\"\")","v":""},0.1,{"$f":"IFERROR(VLOOKUP($F72,#REF!,2,0)/100,\"0\")","v":"0"},{"$f":"IFERROR(VLOOKUP($F72,#REF!,3,0),\"\")","v":""},0.1,{"$f":"IFERROR(VLOOKUP($F72,#REF!,2,0)/100,\"0\")","v":"0"},{"$f":"IFERROR(VLOOKUP($F72,#REF!,3,0),\"\")","v":""},0.1,{"$f":"IFERROR(VLOOKUP($F72,#REF!,2,0)/100,\"0\")","v":"0"},{"$f":"IFERROR(VLOOKUP($F72,#REF!,3,0),\"\")","v":""},null,{"$f":"IFERROR(VLOOKUP($F72,#REF!,2,0)/100,\"0\")","v":"0"},0,0]
[null,"SUBDIRECCIÓN DE SERVICIOS FUNERARIOS Y ALUMBRADO PÚBLICO (SSFAP)",null,null,null,"Proceso precontractual, contractual o la ejecución para el desarrollo del estudio para el diseño de la planta de aguas residual del cementerio parque serafín",0.2,"2020-02-01","2020-12-31","Proceso precontractual, contractual y/o estudios para el diseño de la planta de aguas residual del cementerio parque serafín","1048 -  Gestión para la ampliación y modernización de los servicios funerarios prestados en los cementerios de propiedad del Distrito Capital","Entregar 26 servicios funerarios integrales prestados en los cementerios de propiedad del Distrito.","Modelo Integral de Prestación del Servicio Garantizar los más altos estándares de calidad en la prestación sostenible y efectiva de los servicios","Plan Anual de Adquisiciones","Pilar 2 - Democracia Urbana ","13 - Infraestructura para el desarrollo del Hábitat.","26 servicios funerarios integrales prestados en los cementerios de propiedad del Distrito",{"$f":"IFERROR(VLOOKUP($F73,#REF!,3,0),\"\")","v":""},null,{"$f":"IFERROR(VLOOKUP($F73,#REF!,2,0)/100,\"0\")","v":"0"},{"$f":"IFERROR(VLOOKUP($F73,#REF!,3,0),\"\")","v":""},0.1,{"$f":"IFERROR(VLOOKUP($F73,#REF!,2,0)/100,\"0\")","v":"0"},{"$f":"IFERROR(VLOOKUP($F73,#REF!,3,0),\"\")","v":""},0.1,{"$f":"IFERROR(VLOOKUP($F73,#REF!,2,0)/100,\"0\")","v":"0"},{"$f":"IFERROR(VLOOKUP($F73,#REF!,3,0),\"\")","v":""},0.1,{"$f":"IFERROR(VLOOKUP($F73,#REF!,2,0)/100,\"0\")","v":"0"},{"$f":"IFERROR(VLOOKUP($F73,#REF!,3,0),\"\")","v":""},0.1,{"$f":"IFERROR(VLOOKUP($F73,#REF!,2,0)/100,\"0\")","v":"0"},{"$f":"IFERROR(VLOOKUP($F73,#REF!,3,0),\"\")","v":""},0.1,{"$f":"IFERROR(VLOOKUP($F73,#REF!,2,0)/100,\"0\")","v":"0"},{"$f":"IFERROR(VLOOKUP($F73,#REF!,3,0),\"\")","v":""},0.1,{"$f":"IFERROR(VLOOKUP($F73,#REF!,2,0)/100,\"0\")","v":"0"},{"$f":"IFERROR(VLOOKUP($F73,#REF!,3,0),\"\")","v":""},0.1,{"$f":"IFERROR(VLOOKUP($F73,#REF!,2,0)/100,\"0\")","v":"0"},{"$f":"IFERROR(VLOOKUP($F73,#REF!,3,0),\"\")","v":""},0.1,{"$f":"IFERROR(VLOOKUP($F73,#REF!,2,0)/100,\"0\")","v":"0"},{"$f":"IFERROR(VLOOKUP($F73,#REF!,3,0),\"\")","v":""},0.1,{"$f":"IFERROR(VLOOKUP($F73,#REF!,2,0)/100,\"0\")","v":"0"},{"$f":"IFERROR(VLOOKUP($F73,#REF!,3,0),\"\")","v":""},0.1,{"$f":"IFERROR(VLOOKUP($F73,#REF!,2,0)/100,\"0\")","v":"0"},{"$f":"IFERROR(VLOOKUP($F73,#REF!,3,0),\"\")","v":""},null,{"$f":"IFERROR(VLOOKUP($F73,#REF!,2,0)/100,\"0\")","v":"0"},0,0]
[null,"SUBDIRECCIÓN DE SERVICIOS FUNERARIOS Y ALUMBRADO PÚBLICO (SSFAP)","Consolidar la prestación de los Servicios Funerarios Integrales en los cementerios del distrito","Tener 26 servicios integrales bajo el Modelo de prestación de servicios funerarios de destino final y complementarios, en los cementerios de propiedad del Distrito Capital  ","Mantener los  23 servicios integrales en los cementerios de propiedad del Distrito ","Presentación de los informes de los servicios Funerarios de destino final y complementarios,  prestados en los Cementerios de propiedad del Distrito ",0.5,"2020-02-01","2020-12-31","Estudios previos, estudio de mercado, análisis de riesgos, modelo económico y/o financiero, estudios del sector","1048 -  Gestión para la ampliación y modernización de los servicios funerarios prestados en los cementerios de propiedad del Distrito Capital","Entregar 26 servicios funerarios integrales prestados en los cementerios de propiedad del Distrito.","Modelo Integral de Prestación del Servicio Garantizar los más altos estándares de calidad en la prestación sostenible y efectiva de los servicios","Plan Anual de Adquisiciones","Pilar 2 - Democracia Urbana ","13 - Infraestructura para el desarrollo del Hábitat.","Entregar 26 servicios funerarios integrales prestados en los cementerios de propiedad del Distrito.",{"$f":"IFERROR(VLOOKUP($F74,#REF!,3,0),\"\")","v":""},0.1,{"$f":"IFERROR(VLOOKUP($F74,#REF!,2,0)/100,\"0\")","v":"0"},{"$f":"IFERROR(VLOOKUP($F74,#REF!,3,0),\"\")","v":""},0.1,{"$f":"IFERROR(VLOOKUP($F74,#REF!,2,0)/100,\"0\")","v":"0"},{"$f":"IFERROR(VLOOKUP($F74,#REF!,3,0),\"\")","v":""},0.1,{"$f":"IFERROR(VLOOKUP($F74,#REF!,2,0)/100,\"0\")","v":"0"},{"$f":"IFERROR(VLOOKUP($F74,#REF!,3,0),\"\")","v":""},0.1,{"$f":"IFERROR(VLOOKUP($F74,#REF!,2,0)/100,\"0\")","v":"0"},{"$f":"IFERROR(VLOOKUP($F74,#REF!,3,0),\"\")","v":""},0.1,{"$f":"IFERROR(VLOOKUP($F74,#REF!,2,0)/100,\"0\")","v":"0"},{"$f":"IFERROR(VLOOKUP($F74,#REF!,3,0),\"\")","v":""},null,{"$f":"IFERROR(VLOOKUP($F74,#REF!,2,0)/100,\"0\")","v":"0"},{"$f":"IFERROR(VLOOKUP($F74,#REF!,3,0),\"\")","v":""},null,{"$f":"IFERROR(VLOOKUP($F74,#REF!,2,0)/100,\"0\")","v":"0"},{"$f":"IFERROR(VLOOKUP($F74,#REF!,3,0),\"\")","v":""},null,{"$f":"IFERROR(VLOOKUP($F74,#REF!,2,0)/100,\"0\")","v":"0"},{"$f":"IFERROR(VLOOKUP($F74,#REF!,3,0),\"\")","v":""},null,{"$f":"IFERROR(VLOOKUP($F74,#REF!,2,0)/100,\"0\")","v":"0"},{"$f":"IFERROR(VLOOKUP($F74,#REF!,3,0),\"\")","v":""},null,{"$f":"IFERROR(VLOOKUP($F74,#REF!,2,0)/100,\"0\")","v":"0"},{"$f":"IFERROR(VLOOKUP($F74,#REF!,3,0),\"\")","v":""},null,{"$f":"IFERROR(VLOOKUP($F74,#REF!,2,0)/100,\"0\")","v":"0"},{"$f":"IFERROR(VLOOKUP($F74,#REF!,3,0),\"\")","v":""},null,{"$f":"IFERROR(VLOOKUP($F74,#REF!,2,0)/100,\"0\")","v":"0"},0,0,{"$f":"BB74*G74","v":0}]
[null,"SUBDIRECCIÓN DE SERVICIOS FUNERARIOS Y ALUMBRADO PÚBLICO (SSFAP)",null,null,"Incrementar  3 servicios funerarios integrales (culto, laboratorio tanatopraxia, salas de velación)","Mantener e incrementar los servicios de Culto en el Cementerio Central y Salas de Velación en el Cementerios Parque Serafin.",0.5,"2020-02-01","2020-05-31","Incorporación de dos (2) servicios funerarios complementarios","1048 -  Gestión para la ampliación y modernización de los servicios funerarios prestados en los cementerios de propiedad del Distrito Capital","Entregar 26 servicios funerarios integrales prestados en los cementerios de propiedad del Distrito.","Modelo Integral de Prestación del Servicio Garantizar los más altos estándares de calidad en la prestación sostenible y efectiva de los servicios","Plan Anual de Adquisiciones","Pilar 2 - Democracia Urbana ","13 - Infraestructura para el desarrollo del Hábitat.","Entregar 26 servicios funerarios integrales prestados en los cementerios de propiedad del Distrito.",{"$f":"IFERROR(VLOOKUP($F75,#REF!,3,0),\"\")","v":""},null,{"$f":"IFERROR(VLOOKUP($F75,#REF!,2,0)/100,\"0\")","v":"0"},{"$f":"IFERROR(VLOOKUP($F75,#REF!,3,0),\"\")","v":""},null,{"$f":"IFERROR(VLOOKUP($F75,#REF!,2,0)/100,\"0\")","v":"0"},{"$f":"IFERROR(VLOOKUP($F75,#REF!,3,0),\"\")","v":""},null,{"$f":"IFERROR(VLOOKUP($F75,#REF!,2,0)/100,\"0\")","v":"0"},{"$f":"IFERROR(VLOOKUP($F75,#REF!,3,0),\"\")","v":""},null,{"$f":"IFERROR(VLOOKUP($F75,#REF!,2,0)/100,\"0\")","v":"0"},{"$f":"IFERROR(VLOOKUP($F75,#REF!,3,0),\"\")","v":""},0.5,{"$f":"IFERROR(VLOOKUP($F75,#REF!,2,0)/100,\"0\")","v":"0"},{"$f":"IFERROR(VLOOKUP($F75,#REF!,3,0),\"\")","v":""},null,{"$f":"IFERROR(VLOOKUP($F75,#REF!,2,0)/100,\"0\")","v":"0"},{"$f":"IFERROR(VLOOKUP($F75,#REF!,3,0),\"\")","v":""},null,{"$f":"IFERROR(VLOOKUP($F75,#REF!,2,0)/100,\"0\")","v":"0"},{"$f":"IFERROR(VLOOKUP($F75,#REF!,3,0),\"\")","v":""},null,{"$f":"IFERROR(VLOOKUP($F75,#REF!,2,0)/100,\"0\")","v":"0"},{"$f":"IFERROR(VLOOKUP($F75,#REF!,3,0),\"\")","v":""},null,{"$f":"IFERROR(VLOOKUP($F75,#REF!,2,0)/100,\"0\")","v":"0"},{"$f":"IFERROR(VLOOKUP($F75,#REF!,3,0),\"\")","v":""},null,{"$f":"IFERROR(VLOOKUP($F75,#REF!,2,0)/100,\"0\")","v":"0"},{"$f":"IFERROR(VLOOKUP($F75,#REF!,3,0),\"\")","v":""},null,{"$f":"IFERROR(VLOOKUP($F75,#REF!,2,0)/100,\"0\")","v":"0"},{"$f":"IFERROR(VLOOKUP($F75,#REF!,3,0),\"\")","v":""},null,{"$f":"IFERROR(VLOOKUP($F75,#REF!,2,0)/100,\"0\")","v":"0"},0,0,{"$f":"BB75*G75","v":0}]
[null,"SUBDIRECCIÓN DE SERVICIOS FUNERARIOS Y ALUMBRADO PÚBLICO (SSFAP)","Otorgar subsidios funerarios  a población en estado de vulnerabilidad ","Otorgar 1,500 subsidios funerarios entregados ","Disponer los recursos necesarios para otorgar los subsidios funerarios, de acuerdo con la normatividad vigente","Garantizar el pago oportuno de los subsidios funerarios autorizados y prestados",0.5,"2020-01-01","2020-05-31","Informes de ejecución de los recursos del programa de subsidios ","1048 -  Gestión para la ampliación y modernización de los servicios funerarios prestados en los cementerios de propiedad del Distrito Capital","4.000 subsidios del servicio funerario entregados a población vulnerable de Bogotá (Por ampliación de la meta se entregarán en el cuatrienio 9,250 subsidios)","Modelo Integral de Prestación del Servicio Garantizar los más altos estándares de calidad en la prestación sostenible y efectiva de los servicios","Plan Anual de Adquisiciones","Pilar 2 - Democracia Urbana ","13 - Infraestructura para el desarrollo del Hábitat.","4.000 subsidios del servicio funerario entregados a población vulnerable de Bogotá",{"$f":"IFERROR(VLOOKUP($F76,#REF!,3,0),\"\")","v":""},0.1,{"$f":"IFERROR(VLOOKUP($F76,#REF!,2,0)/100,\"0\")","v":"0"},{"$f":"IFERROR(VLOOKUP($F76,#REF!,3,0),\"\")","v":""},0.1,{"$f":"IFERROR(VLOOKUP($F76,#REF!,2,0)/100,\"0\")","v":"0"},{"$f":"IFERROR(VLOOKUP($F76,#REF!,3,0),\"\")","v":""},0.1,{"$f":"IFERROR(VLOOKUP($F76,#REF!,2,0)/100,\"0\")","v":"0"},{"$f":"IFERROR(VLOOKUP($F76,#REF!,3,0),\"\")","v":""},0.1,{"$f":"IFERROR(VLOOKUP($F76,#REF!,2,0)/100,\"0\")","v":"0"},{"$f":"IFERROR(VLOOKUP($F76,#REF!,3,0),\"\")","v":""},0.1,{"$f":"IFERROR(VLOOKUP($F76,#REF!,2,0)/100,\"0\")","v":"0"},{"$f":"IFERROR(VLOOKUP($F76,#REF!,3,0),\"\")","v":""},null,{"$f":"IFERROR(VLOOKUP($F76,#REF!,2,0)/100,\"0\")","v":"0"},{"$f":"IFERROR(VLOOKUP($F76,#REF!,3,0),\"\")","v":""},null,{"$f":"IFERROR(VLOOKUP($F76,#REF!,2,0)/100,\"0\")","v":"0"},{"$f":"IFERROR(VLOOKUP($F76,#REF!,3,0),\"\")","v":""},null,{"$f":"IFERROR(VLOOKUP($F76,#REF!,2,0)/100,\"0\")","v":"0"},{"$f":"IFERROR(VLOOKUP($F76,#REF!,3,0),\"\")","v":""},null,{"$f":"IFERROR(VLOOKUP($F76,#REF!,2,0)/100,\"0\")","v":"0"},{"$f":"IFERROR(VLOOKUP($F76,#REF!,3,0),\"\")","v":""},null,{"$f":"IFERROR(VLOOKUP($F76,#REF!,2,0)/100,\"0\")","v":"0"},{"$f":"IFERROR(VLOOKUP($F76,#REF!,3,0),\"\")","v":""},null,{"$f":"IFERROR(VLOOKUP($F76,#REF!,2,0)/100,\"0\")","v":"0"},{"$f":"IFERROR(VLOOKUP($F76,#REF!,3,0),\"\")","v":""},null,{"$f":"IFERROR(VLOOKUP($F76,#REF!,2,0)/100,\"0\")","v":"0"},0,0]
[null,"SUBDIRECCIÓN DE SERVICIOS FUNERARIOS Y ALUMBRADO PÚBLICO (SSFAP)",null,null,"Autorización de Subsidios Funerarios a población vulnerable  del Distrito Capital","Autorizaciones de subsidios funerarios aprobados",0.5,"2020-01-01","2020-12-31","Seguimiento mensual a la ejecución del Programa de Subsidios Funerarios","1048 -  Gestión para la ampliación y modernización de los servicios funerarios prestados en los cementerios de propiedad del Distrito Capital","1,500 subsidios del servicio funerario entregados a población vulnerable de Bogotá (Por ampliación de la meta se entregarán en el cuatrienio 9,250 subsidios)","Modelo Integral de Prestación del Servicio Garantizar los más altos estándares de calidad en la prestación sostenible y efectiva de los servicios","Plan Anual de Adquisiciones","Pilar 2 - Democracia Urbana ","13 - Infraestructura para el desarrollo del Hábitat.","4.000 subsidios del servicio funerario entregados a población vulnerable de Bogotá",{"$f":"IFERROR(VLOOKUP($F77,#REF!,3,0),\"\")","v":""},0.1,{"$f":"IFERROR(VLOOKUP($F77,#REF!,2,0)/100,\"0\")","v":"0"},{"$f":"IFERROR(VLOOKUP($F77,#REF!,3,0),\"\")","v":""},0.1,{"$f":"IFERROR(VLOOKUP($F77,#REF!,2,0)/100,\"0\")","v":"0"},{"$f":"IFERROR(VLOOKUP($F77,#REF!,3,0),\"\")","v":""},0.1,{"$f":"IFERROR(VLOOKUP($F77,#REF!,2,0)/100,\"0\")","v":"0"},{"$f":"IFERROR(VLOOKUP($F77,#REF!,3,0),\"\")","v":""},0.1,{"$f":"IFERROR(VLOOKUP($F77,#REF!,2,0)/100,\"0\")","v":"0"},{"$f":"IFERROR(VLOOKUP($F77,#REF!,3,0),\"\")","v":""},0.1,{"$f":"IFERROR(VLOOKUP($F77,#REF!,2,0)/100,\"0\")","v":"0"},{"$f":"IFERROR(VLOOKUP($F77,#REF!,3,0),\"\")","v":""},0.1,{"$f":"IFERROR(VLOOKUP($F77,#REF!,2,0)/100,\"0\")","v":"0"},{"$f":"IFERROR(VLOOKUP($F77,#REF!,3,0),\"\")","v":""},0.1,{"$f":"IFERROR(VLOOKUP($F77,#REF!,2,0)/100,\"0\")","v":"0"},{"$f":"IFERROR(VLOOKUP($F77,#REF!,3,0),\"\")","v":""},0.1,{"$f":"IFERROR(VLOOKUP($F77,#REF!,2,0)/100,\"0\")","v":"0"},{"$f":"IFERROR(VLOOKUP($F77,#REF!,3,0),\"\")","v":""},0.1,{"$f":"IFERROR(VLOOKUP($F77,#REF!,2,0)/100,\"0\")","v":"0"},{"$f":"IFERROR(VLOOKUP($F77,#REF!,3,0),\"\")","v":""},0.1,{"$f":"IFERROR(VLOOKUP($F77,#REF!,2,0)/100,\"0\")","v":"0"},{"$f":"IFERROR(VLOOKUP($F77,#REF!,3,0),\"\")","v":""},0.1,{"$f":"IFERROR(VLOOKUP($F77,#REF!,2,0)/100,\"0\")","v":"0"},{"$f":"IFERROR(VLOOKUP($F77,#REF!,3,0),\"\")","v":""},0.1,{"$f":"IFERROR(VLOOKUP($F77,#REF!,2,0)/100,\"0\")","v":"0"},0,0]

{"sheet":"Hito","index":4,"n_rows":443,"n_cols":5,"rows_kept":443,"cut":false,"hidden":true,"merged":[]}
["Cod M","Cod D","Cod I","Meta ","Hitos Claves"]
[1,1,1,"Publicar el 100% de las actuaciones derivadas de los contratos suscritos por la Unidad","Publicación de  los procesos de contratación en el sistema de compra pública."]
[1,2,1,"Optimizar la utilización de los módulos que conforman el aplicativo SI-CAPITAL","Seguimiento a la integración de los módulos que conforman el aplicativo SI-CAPITAL"]
[1,3,1,"Cumplir  con las obligaciones y reglamentación del esquema de aseo de Bogotá D.C.","Contar con el plan de supervisión   y control del servicio de  aseo aprobado  y ejecución  del plan de supervisión y control "]
[1,3,1,"Cumplir  con las obligaciones y reglamentación del esquema de aseo de Bogotá D.C.","Contar con el plan de supervisión   y control del servicio de  hospitalarios aprobado  y ejecución  del plan de supervisión y control  del servicio de hospitalarios."]
[1,4,1,"Realizar el 100% del seguimiento a la operación del R.S.D.J","Seguimiento al  trámite de licencia ambiental para optimización del RSDJ"]
[1,4,1,"Realizar el 100% del seguimiento a la operación del R.S.D.J","Seguimiento al cumplimiento del laudo arbitral por parte del operador del RSDJ"]
[1,4,1,"Realizar el 100% del seguimiento a la operación del R.S.D.J","Presentación informe supervisión y control SDF."]
[1,4,2,"Garantizar  que el 90% de la población seleccionada acceda a los programas del Plan de Gestión social ","Cumplir  con las actividades asociadas al  plan de gestión social"]
[1,4,2,"Garantizar  que el 90% de la población seleccionada acceda a los programas del Plan de Gestión social ","Cumplir con las actividades establecidas en el Plan de acción y seguimiento de gestión social"]
[1,5,1,"Instalación de 30.000 bombillas de tecnología LED y/o CMH instaladas y la actualización de 200 parques.","Modernización de 15,000 Luminarias entre los meses de enero a mayo de 2020 en algunas Zonas del Distrito Capital"]
[1,5,2,"Garantizar que la prestación del servicio de alumbrado público se adecue al cumplimiento de la normatividad y regulación vigente","Presentación de informes de supervisión y control al Contrato de Interventoría en la prestación del Servicio de Alumbrado en el Distrito Capital con el cumplimiento estricto de los contratos asociado"]
[1,5,2,"Garantizar que la prestación del servicio de alumbrado público se adecue al cumplimiento de la normatividad y regulación vigente","Revisión para la actualización y/o adecuación del modelo  de conformidad a la normatividad pertinente del modelo de prestación del servicio de alumbrado público"]
[1,5,3,"Fortalecer la prestación del Servicios  funerarios  en el Distrito Capital","Presentación de informes de supervisión y control  al Contrato de Interventoría a la prestación   de los Servicios Funerarios en el Distrito Capital con el cumplimiento estricto de los contratos asociados"]
[1,5,4,"Cumplir las intervenciones programadas y viabilizadas frente a la revitalización de los cementerios de propiedad del Distrito","Procesos de obra gestionados "]
[1,5,4,"Cumplir las intervenciones programadas y viabilizadas frente a la revitalización de los cementerios de propiedad del Distrito","Procesos de obra ejecutados."]
[1,5,5,"'Consolidar la prestación de los Servicios Funerarios Integrales en los cementerios del distrito","Presentación de los informes de los servicios Funerarios de destino final y complementarios,  prestados en los Cementerios de propiedad del Distrito"]
[1,5,6,"'Otorgar 1,500 subsidios funerarios entregados ","Garantizar el pago oportuno de los subsidios funerarios autorizados y prestados"]
[1,5,6,"'Otorgar 1,500 subsidios funerarios entregados ","Autorizaciones de subsidios funerarios aprobados"]
[2,1,1,"Fortalecer la implementación del PAAC","Formular y monitorear el Plan Anticorrupción y Atención al Ciudadano"]
[2,1,2,"Sostenibilidad del  MTO","Seguimiento a la ejecución de las actividades establecidad en el  Plan de Sostenibilidad del MTO"]
[2,2,1,"Incrementar en 5 puntos porcentuales los resultado de medición en FURAG","100% Informes de auditoría interna realizados y divulgados"]
[2,2,1,"Incrementar en 5 puntos porcentuales los resultado de medición en FURAG","Plan de mejoramiento institucional operando de forma sistematizada"]
[2,2,2,"80% de actividades de prevención desarrolladas","80% de No Conformidades tratadas por los procesos de la Entidad."]
[2,2,2,"80% de actividades de prevención desarrolladas","“80% de las Acciones Correctivas evaluadas como cerradas, respecto a programación de cierre, producto de auditorias internas y externas”."]
[2,2,2,"80% de actividades de prevención desarrolladas","80% Acompañamientos efectuados, según solicitud y demanda."]
[2,2,2,"80% de actividades de prevención desarrolladas","100% Actividades de prevención y fomento de la cultura del control realizados."]
[2,2,2,"80% de actividades de prevención desarrolladas","100% de requerimientos de entes externos de control gestionados."]
[2,3,1,"Atender las necesidades  tecnológicas de la entidad","Cumplimiento de la Resolución 2710 de 2017 (Viene de 2019)"]
[2,3,1,"Atender las necesidades  tecnológicas de la entidad","Garantizar el servicio de  conectividad  de la Entidad "]
[2,3,1,"Atender las necesidades  tecnológicas de la entidad","Garantizar el suministro tecnológica de la entidad"]
[2,3,1,"Fortalecer el  servicio de la mesa de ayuda de la entidad","Sensibilizar el 100% en el uso de la herramienta HELP PEOPLE al personal de la entidad."]
[2,3,2,"Aumentar en un 10% con respecto a la vigencia anterior al cumplimiento del  Modelo de Privacidad y Seguridad de la Información-MSPI","Implementación del MSPI dentro de la Entidad"]
[2,4,1,"Publicar el 100% de las actuaciones derivadas de los contratos suscritos por la Unidad","Publicación de  los procesos de contratación en el sistema de compra pública."]
[2,4,1,"Plan de trabajo para la implementación de las políticas de prevención del daño antijurídico ejecutado al 100% ","Formulación de un plan de trabajo de implementación de las políticas."]
[2,4,1,"Atender el 100% de los procesos judiciales y arbitrales en los que la Entidad sea demandada o convocada, fortaleciendo la defensa jurídica de la UAESP","Actualización permanente del SIPROJ"]
[2,5,1,"Optimizar la utilización de los módulos que conforman el aplicativo SI-CAPITAL","Seguimiento a la integración de los módulos que conforman el aplicativo SI-CAPITAL"]
[2,6,1,"Cumplir  con las obligaciones y reglamentación del esquema de aseo de Bogotá D.C.","Contar con el plan de supervisión   y control del servicio de  aseo aprobado  y ejecución  del plan de supervisión y control"]
[2,6,1,"Cumplir  con las obligaciones y reglamentación del servicio de residuos hospitalarios","Contar con el plan de supervisión   y control del servicio de  hospitalarios aprobado  y ejecución  del plan de supervisión y control  del servicio de hospitalarios."]
[2,7,1,"Realizar el 100% del seguimiento a la operación del R.S.D.J","Seguimiento al  trámite de licencia ambiental para optimización del RSDJ"]
[2,7,1,"Realizar el 100% del seguimiento a la operación del R.S.D.J","Seguimiento al cumplimiento del laudo arbitral por parte del operador del RSDJ"]
[2,7,1,"Realizar el 100% del seguimiento a la operación del R.S.D.J","Presentación informe supervisión y control SDF."]
[2,7,2,"Garantizar  que el 90% de la población seleccionada acceda a los programas del Plan de Gestión social ","Cumplir  con las actividades asociadas al  plan de gestión social"]
[2,7,2,"Garantizar  que el 90% de la población seleccionada acceda a los programas del Plan de Gestión social ","Cumplir con las actividades establecidas en el Plan de acción y seguimiento de gestión social"]
[2,8,1,"Desarrollar capacitaciones para la sensibilización de los usuarios en separación en la fuente.","Fortalecer la cultura ciudadana en el manejo de residuos sólidos aprovechables."]
[2,8,2,"Mejorar las condiciones de trabajo y prestación del servicio de la población recicladora de oficio","Actualizar el censo de la población recicladora de oficio  inscrita en el RURO"]
[2,9,1,"Instalación de 30.000 bombillas de tecnología LED y/o CMH instaladas y la actualización de 200 parques.","Modernización de 15,000 Luminarias entre los meses de enero a mayo de 2020 en algunas Zonas del Distrito Capital"]
[2,9,2,"Garantizar que la prestación del servicio de alumbrado público se adecue al cumplimiento de la normatividad y regulación vigente","Presentación de informes de supervisión y control al Contrato de Interventoría en la prestación del Servicio de Alumbrado en el Distrito Capital con el cumplimiento estricto de los contratos asociado"]
[2,9,2,"Garantizar que la prestación del servicio de alumbrado público se adecue al cumplimiento de la normatividad y regulación vigente","Revisión para la actualización y/o adecuación del modelo  de conformidad a la normatividad pertinente del modelo de prestación del servicio de alumbrado público"]
[2,9,3,"Fortalecer la prestación del Servicios  funerarios  en el Distrito Capital","Presentación de informes de supervisión y control  al Contrato de Interventoría a la prestación   de los Servicios Funerarios en el Distrito Capital con el cumplimiento estricto de los contratos asociados"]
[2,9,4,"Cumplir las intervenciones programadas y viabilizadas frente a la revitalización de los cementerios de propiedad del Distrito","Procesos de obra gestionados "]
[2,9,4,"Cumplir las intervenciones programadas y viabilizadas frente a la revitalización de los cementerios de propiedad del Distrito","Procesos de obra ejecutados."]
[2,9,4,"Realizar estudios relacionados con con la prestación de los Servicios Funerarios en los cementerios de propiedad del distrito","'Proceso precontractual, contractual o la ejecución para el desarrollo de los estudios de olores generados al interior de los Cementerios propiedad del Distrito"]
[2,9,4,"Realizar estudios relacionados con con la prestación de los Servicios Funerarios en los cementerios de propiedad del distrito","'Proceso precontractual, contractual o la ejecución para el desarrollo del estudio para el diseño de la planta de aguas residual del cementerio parque serafín"]
[2,9,5,"Tener 26 servicios integrales bajo el Modelo de prestación de servicios funerarios de destino final y complementarios, en los cementerios de propiedad del Distrito Capital  ","Presentación de los informes de los servicios Funerarios de destino final y complementarios,  prestados en los Cementerios de propiedad del Distrito "]
[2,9,6,"'Otorgar 1,500 subsidios funerarios entregados ","Garantizar el pago oportuno de los subsidios funerarios autorizados y prestados"]
[2,9,6,"'Otorgar 1,500 subsidios funerarios entregados ","Autorizaciones de subsidios funerarios aprobados"]
[3,1,1,"Mantener y/o disminuir el nivel del riesgo del índice de transparencia a de Bogotá D.C.","Cumplir con los estándares del índice de transparencia de Bogotá "]
[3,1,1,"Cumplimiento del 100% de la estrategia de rendición de cuentas","Formular, implementar y realizar seguimiento a la estrategia de rendición de cuentas"]
[3,1,2,"Implementación de MIPG en la UAESP de acuerdo con el Plan de Desarrollo de la Vigencia","Seguimiento a la implementación de las 17 políticas de gestión y desempeño institucional"]
[3,1,2,"Implementación de MIPG en la UAESP de acuerdo con el Plan de Desarrollo de la Vigencia","Divulgar los avances de la implementación del MIPG "]
[3,1,2,"Sostenibilidad del  MTO","Seguimiento a la ejecución de las actividades establecidad en el  Plan de Sostenibilidad del MTO"]
[3,2,1,"Atender las necesidades  tecnológicas de la entidad","Garantizar el servicio de  conectividad  de la Entidad "]
[3,2,1,"Atender las necesidades  tecnológicas de la entidad","Garantizar el suministro tecnológica de la entidad"]
[3,2,1,"Fortalecer el  servicio de la mesa de ayuda de la entidad","Sensibilizar el 100% en el uso de la herramienta HELP PEOPLE al personal de la entidad."]
[3,2,2,"Aumentar en un 10% con respecto a la vigencia anterior al cumplimiento del  Modelo de Privacidad y Seguridad de la Información-MSPI","Implementación del MSPI dentro de la Entidad"]
[3,3,1,"Fortalecer la imagen  de la entidad","Implementar el Plan de Comunicaciones"]
[3,3,1,"Fortalecer la imagen  de la entidad","Generar contenidos de los planes programas y proyectos de la entidad de acuerdo con la programación establecida."]
[3,4,1,"Publicar el 100% de las actuaciones derivadas de los contratos suscritos por la Unidad","Publicación de  los procesos de contratación en el sistema de compra pública."]
[3,4,1,"Plan de trabajo para la implementación de las políticas de prevención del daño antijurídico ejecutado al 100% ","Formulación de un plan de trabajo de implementación de las políticas."]
[3,4,1,"Atender el 100% de los procesos judiciales y arbitrales en los que la Entidad sea demandada o convocada, fortaleciendo la defensa jurídica de la UAESP","Actualización permanente del SIPROJ"]
[3,5,1,"Revisar y actualizar los instrumentos archivísticos en cumplimiento del Decreto 1080 del 2015.","Revisión y actualización de los instrumentos archivísticos de acuerdo con los lineamientos del plan de gestión documental aprobado y publicado"]
[3,5,1,"Contar con la digitalización del 100% de los documentos de Archivo de las vigencias 2016 en adelante","Plan de trabajo que garantice el  cumplimiento de la meta"]
[3,5,2,"Optimizar la utilización de los módulos que conforman el aplicativo SI-CAPITAL","Seguimiento a la integración de los módulos que conforman el aplicativo SI-CAPITAL"]
[3,5,3,"Fortalecer el ambiente  laboral  de la entidad ","Ejecutar el plan de intervención para el mejoramiento del clima laboral.\n\n"]
[3,5,3,"Fortalecer el ambiente  laboral  de la entidad ","Fortalecer  la modalidad de teletrabajo"]
[3,5,3,"Fortalecer el ambiente  laboral  de la entidad ","Formular y ejecutar el Plan Institucional de Capacitación de la entidad en un 90%"]
[3,5,3,"Fortalecer el ambiente  laboral  de la entidad ","Ejecutar el Plan de Bienestar e incentivos de la entidad al 90%"]
[3,6,1,"Ejecutar las obligaciones de hacer financiadas y programadas para la vigencia ","Contar con los contratos para ejecutar las obligaciones de hacer. "]
[3,6,2,"Cumplir  con las obligaciones y reglamentación del esquema de aseo de Bogotá D.C.","Contar con el plan de supervisión  y control del servicio de  aseo aprobado  y ejecución  del plan de supervisión y control"]
[3,6,2,"Cumplir  con las obligaciones y reglamentación del servicio de residuos hospitalarios","Contar con el plan de supervisión   y control del servicio de  hospitalarios aprobado  y ejecución  del plan de supervisión y control  del servicio de hospitalarios."]
[3,7,1,"Realizar el 100% del seguimiento a la operación del R.S.D.J","Seguimiento al  trámite de licencia ambiental para optimización del RSDJ"]
[3,7,1,"Realizar el 100% del seguimiento a la operación del R.S.D.J","Seguimiento al cumplimiento del laudo arbitral por parte del operador del RSDJ"]
[3,7,1,"Realizar el 100% del seguimiento a la operación del R.S.D.J","Presentación informe supervisión y control SDF."]
[3,7,2,"Garantizar  que el 90% de la población seleccionada acceda a los programas del Plan de Gestión social ","Cumplir  con las actividades asociadas al  plan de gestión social"]
[3,7,2,"Garantizar  que el 90% de la población seleccionada acceda a los programas del Plan de Gestión social ","Cumplir con las actividades establecidas en el Plan de acción y seguimiento de gestión social"]
[3,8,1,"Desarrollar capacitaciones para la sensibilización de los usuarios en separación en la fuente.","Fortalecer la cultura ciudadana en el manejo de residuos sólidos aprovechables."]
[3,8,2,"Mejorar las condiciones de trabajo y prestación del servicio de la población recicladora de oficio","Dotar a la población recicladora de oficio con vehículos que faciliten  la recolección y transporte de material aprovechable\n"]
[3,8,2,"Mejorar las condiciones de trabajo y prestación del servicio de la población recicladora de oficio","Dotar de herramientas tecnológicas a las organizaciones recicladoras"]
[3,8,3,"Apoyar el cumplimiento de las fases de formalización de las organizaciones de recicladores de oficio conforme al Decreto 596 de 2016.","Desarrollar capacitaciones dirigidas a organizaciones de recicladores de oficio."]
[3,9,1," Instalación de 30.000 bombillas de tecnología LED y/o CMH instaladas y la actualización de 200 parques.\n","Modernización de 15,000 Luminarias entre los meses de enero a mayo de 2020 en algunas Zonas del Distrito Capital"]
[3,9,2,"Garantizar que la prestación del servicio de alumbrado público se adecue al cumplimiento de la normatividad y regulación vigente","Presentación de informes de supervisión y control al Contrato de Interventoría en la prestación del Servicio de Alumbrado en el Distrito Capital con el cumplimiento estricto de los contratos asociado"]
[3,9,2,"Garantizar que la prestación del servicio de alumbrado público se adecue al cumplimiento de la normatividad y regulación vigente","Revisión para la actualización y/o adecuación del modelo  de conformidad a la normatividad pertinente del modelo de prestación del servicio de alumbrado público"]
[3,9,3,"Fortalecer la prestación del Servicios  funerarios  en el Distrito Capital\n","Presentación de informes de supervisión y control  al Contrato de Interventoría a la prestación   de los Servicios Funerarios en el Distrito Capital con el cumplimiento estricto de los contratos asociados"]
[3,9,4,"Cumplir las intervenciones programadas y viabilizadas frente a la revitalización de los cementerios de propiedad del Distrito","Procesos de obra gestionados "]
[3,9,4,"Cumplir las intervenciones programadas y viabilizadas frente a la revitalización de los cementerios de propiedad del Distrito","Procesos de obra ejecutados."]
[3,9,4,"Realizar estudios relacionados con con la prestación de los Servicios Funerarios en los cementerios de propiedad del distrito ","'Proceso precontractual, contractual o la ejecución para el desarrollo de los estudios de olores generados al interior de los Cementerios propiedad del Distrito"]
[3,9,4,"Realizar estudios relacionados con con la prestación de los Servicios Funerarios en los cementerios de propiedad del distrito ","'Proceso precontractual, contractual o la ejecución para el desarrollo del estudio para el diseño de la planta de aguas residual del cementerio parque serafín"]
[3,9,5,"Tener 26 servicios integrales bajo el Modelo de prestación de servicios funerarios de destino final y complementarios, en los cementerios de propiedad del Distrito Capital  ","Presentación de los informes de los servicios Funerarios de destino final y complementarios,  prestados en los Cementerios de propiedad del Distrito "]
[3,9,6,"'Otorgar 1,500 subsidios funerarios entregados ","Garantizar el pago oportuno de los subsidios funerarios autorizados y prestados"]
[3,9,6,"'Otorgar 1,500 subsidios funerarios entregados ","Autorizaciones de subsidios funerarios aprobados"]
[4,1,1,"Mantener y/o disminuir el nivel del riesgo del índice de transparencia a de Bogotá D.C.","Cumplir con los estándares del índice de transparencia de Bogotá "]
[4,1,1,"Fortalecer la implementación del PAAC","Formular y monitorear el Plan Anticorrupción y Atención al Ciudadano"]
[4,1,1,"Fortalecer la participación ciudadana de la entidad .","Formular, implementar y realizar seguimiento al Plan de Acción de Participación Ciudadana."]
[4,1,2,"Sostenibilidad del  MTO","Seguimiento a la ejecución de las actividades establecidad en el  Plan de Sostenibilidad del MTO"]
[4,2,1,"Incrementar en 5 puntos porcentuales los resultado de medición en FURAG","100% Informes de auditoría interna realizados y divulgados"]
[4,2,1,"Incrementar en 5 puntos porcentuales los resultado de medición en FURAG","Documentos relacionados con el procedimiento de Auditoría Interna, analizados y actualizados"]
[4,2,1,"Incrementar en 5 puntos porcentuales los resultado de medición en FURAG","\"Mapa de Aseguramiento\" basado en las tres líneas de defensa, propuesto. "]
[4,2,1,"Incrementar en 5 puntos porcentuales los resultado de medición en FURAG","Plan de mejoramiento institucional operando de forma sistematizada"]
[4,2,2,"80% de actividades de prevención desarrolladas","80% de No Conformidades tratadas por los procesos de la Entidad."]
[4,2,2,"80% de actividades de prevención desarrolladas","“80% de las Acciones Correctivas evaluadas como cerradas, respecto a programación de cierre, producto de auditorias internas y externas”."]
[4,2,2,"80% de actividades de prevención desarrolladas","80% Acompañamientos efectuados, según solicitud y demanda."]
[4,2,2,"80% de actividades de prevención desarrolladas","100% Actividades de prevención y fomento de la cultura del control realizados."]
[4,2,2,"80% de actividades de prevención desarrolladas","100% de requerimientos de entes externos de control gestionados."]
[4,3,1,"Atender las necesidades  tecnológicas de la entidad","Garantizar el servicio de  conectividad  de la Entidad "]
[4,3,1,"Atender las necesidades  tecnológicas de la entidad","Garantizar el suministro tecnológica de la entidad"]
[4,3,1,"Fortalecer el  servicio de la mesa de ayuda de la entidad","Sensibilizar el 100% en el uso de la herramienta HELP PEOPLE al personal de la entidad."]
[4,3,2,"Aumentar en un 10% con respecto a la vigencia anterior al cumplimiento del  Modelo de Privacidad y Seguridad de la Información-MSPI","Implementación del MSPI dentro de la Entidad"]
[4,4,1,"Publicar el 100% de las actuaciones derivadas de los contratos suscritos por la Unidad","Publicación de  los procesos de contratación en el sistema de compra pública."]
[4,4,1,"Atender el 100% de los procesos judiciales y arbitrales en los que la Entidad sea demandada o convocada, fortaleciendo la defensa jurídica de la UAESP","Actualización permanente del SIPROJ"]
[4,5,1,"Contar con la digitalización del 100% de los documentos de Archivo de las vigencias 2016 en adelante","Plan de trabajo que garantice el  cumplimiento de la meta"]
[4,5,2,"Establecer una línea base de percepción ciudadana  frente a  la atención  de PQRS ","Implementación de la encuesta de percepción en el canal telefónico. (viene 2019)"]
[4,5,3,"Optimizar la utilización de los módulos que conforman el aplicativo SI-CAPITAL","Seguimiento a la integración de los módulos que conforman el aplicativo SI-CAPITAL"]
[4,6,1,"Cumplir  con las obligaciones y reglamentación del esquema de aseo de Bogotá D.C.","Contar con el plan de supervisión   y control del servicio de  aseo aprobado  y ejecución  del plan de supervisión y control "]
[4,6,1,"Cumplir  con las obligaciones y reglamentación del servicio de residuos hospitalarios","Contar con el plan de supervisión   y control del servicio de  hospitalarios aprobado  y ejecución  del plan de supervisión y control  del servicio de hospitalarios."]
[4,7,1,"Realizar el 100% del seguimiento a la operación del R.S.D.J","Seguimiento al  trámite de licencia ambiental para optimización del RSDJ"]
[4,7,1,"Realizar el 100% del seguimiento a la operación del R.S.D.J","Seguimiento al cumplimiento del laudo arbitral por parte del operador del RSDJ"]
[4,7,1,"Realizar el 100% del seguimiento a la operación del R.S.D.J","Presentación informe supervisión y control SDF."]
[4,7,2,"Garantizar  que el 90% de la población seleccionada acceda a los programas del Plan de Gestión social ","Cumplir  con las actividades asociadas al  plan de gestión social"]
[4,7,2,"Garantizar  que el 90% de la población seleccionada acceda a los programas del Plan de Gestión social ","Cumplir con las actividades establecidas en el Plan de acción y seguimiento de gestión social"]
[4,8,1,"Desarrollar capacitaciones para la sensibilización de los usuarios en separación en la fuente.","Fortalecer la cultura ciudadana en el manejo de residuos sólidos aprovechables."]
[4,8,2,"Mejorar las condiciones de trabajo y prestación del servicio de la población recicladora de oficio","Actualizar el censo de la población recicladora de oficio  inscrita en el RURO"]
[4,9,1," Instalación de 30.000 bombillas de tecnología LED y/o CMH instaladas y la actualización de 200 parques.\n","Modernización de 15,000 Luminarias entre los meses de enero a mayo de 2020 en algunas Zonas del Distrito Capital"]
[4,9,2,"Garantizar que la prestación del servicio de alumbrado público se adecue al cumplimiento de la normatividad y regulación vigente","Realización del Comité de seguimiento Instancia de Coordinación - Resolución 233 de 2018"]
[4,9,2,"Garantizar que la prestación del servicio de alumbrado público se adecue al cumplimiento de la normatividad y regulación vigente","Presentación de informes de supervisión y control al Contrato de Interventoría en la prestación del Servicio de Alumbrado en el Distrito Capital con el cumplimiento estricto de los contratos asociado"]
[4,9,2,"Garantizar que la prestación del servicio de alumbrado público se adecue al cumplimiento de la normatividad y regulación vigente","Revisión para la actualización y/o adecuación del modelo  de conformidad a la normatividad pertinente del modelo de prestación del servicio de alumbrado público"]
[4,9,3,"Fortalecer la prestación del Servicios  funerarios  en el Distrito Capital\n","Presentación de informes de supervisión y control  al Contrato de Interventoría a la prestación   de los Servicios Funerarios en el Distrito Capital con el cumplimiento estricto de los contratos asociados"]
[4,9,3,"Fortalecer la prestación del Servicios  funerarios  en el Distrito Capital\n","Realización del Comité de seguimiento Instancia de Coordinación - Resolución 233 de 2018"]
[4,9,4,"Cumplir las intervenciones programadas y viabilizadas frente a la revitalización de los cementerios de propiedad del Distrito","Procesos de obra gestionados "]
[4,9,4,"Cumplir las intervenciones programadas y viabilizadas frente a la revitalización de los cementerios de propiedad del Distrito","Procesos de obra ejecutados."]
[4,9,4,"Realizar estudios relacionados con con la prestación de los Servicios Funerarios en los cementerios de propiedad del distrito ","'Proceso precontractual, contractual o la ejecución para el desarrollo de los estudios de olores generados al interior de los Cementerios propiedad del Distrito"]
[4,9,4,"Realizar estudios relacionados con con la prestación de los Servicios Funerarios en los cementerios de propiedad del distrito ","'Proceso precontractual, contractual o la ejecución para el desarrollo del estudio para el diseño de la planta de aguas residual del cementerio parque serafín"]
[4,9,5,"Tener 26 servicios integrales bajo el Modelo de prestación de servicios funerarios de destino final y complementarios, en los cementerios de propiedad del Distrito Capital  ","Presentación de los informes de los servicios Funerarios de destino final y complementarios,  prestados en los Cementerios de propiedad del Distrito "]
[4,9,6,"'Otorgar 1,500 subsidios funerarios entregados ","Garantizar el pago oportuno de los subsidios funerarios autorizados y prestados"]
[4,9,6,"'Otorgar 1,500 subsidios funerarios entregados ","Autorizaciones de subsidios funerarios aprobados"]
[5,1,1,"Sostenibilidad del  MTO","Seguimiento a la ejecución de las actividades establecidad en el  Plan de Sostenibilidad del MTO"]
[5,2,1,"Atender las necesidades  tecnológicas de la entidad","Garantizar el servicio de  conectividad  de la Entidad "]
[5,2,1,"Atender las necesidades  tecnológicas de la entidad","Garantizar el suministro tecnológica de la entidad"]
[5,2,1,"Atender las necesidades  tecnológicas de la entidad","Implementación de esquema de replicación de servidores críticos"]
[5,2,1,"Atender las necesidades  tecnológicas de la entidad","Mantenimiento de infraestructura"]
[5,2,2,"Fortalecer el  servicio de la mesa de ayuda de la entidad","Sensibilizar el 100% en el uso de la herramienta HELP PEOPLE al personal de la entidad."]
[5,2,2,"Aumentar en un 10% con respecto a la vigencia anterior al cumplimiento del  Modelo de Privacidad y Seguridad de la Información-MSPI","Implementación del MSPI dentro de la Entidad"]
[5,3,1,"Publicar el 100% de las actuaciones derivadas de los contratos suscritos por la Unidad","Publicación de  los procesos de contratación en el sistema de compra pública."]
[5,3,1,"Atender el 100% de los procesos judiciales y arbitrales en los que la Entidad sea demandada o convocada, fortaleciendo la defensa jurídica de la UAESP","Actualización permanente del SIPROJ"]
[5,4,1,"Contar con la digitalización del 100% de los documentos de Archivo de las vigencias 2016 en adelante","Plan de trabajo que garantice el  cumplimiento de la meta"]
[5,4,2,"Optimizar la utilización de los módulos que conforman el aplicativo SI-CAPITAL","Seguimiento a la integración de los módulos que conforman el aplicativo SI-CAPITAL"]
[5,5,1,"Cumplir  con las obligaciones y reglamentación del esquema de aseo de Bogotá D.C.","Contar con el plan de supervisión   y control del servicio de  aseo aprobado  y ejecución  del plan de supervisión y control "]
[5,5,1,"Cumplir  con las obligaciones y reglamentación del servicio de residuos hospitalarios","Contar con el plan de supervisión   y control del servicio de  hospitalarios aprobado  y ejecución  del plan de supervisión y control  del servicio de hospitalarios."]
[5,6,1,"Realizar el 100% del seguimiento a la operación del R.S.D.J","Seguimiento al  trámite de licencia ambiental para optimización del RSDJ"]
[5,6,1,"Realizar el 100% del seguimiento a la operación del R.S.D.J","Seguimiento al cumplimiento del laudo arbitral por parte del operador del RSDJ"]
[5,6,1,"Realizar el 100% del seguimiento a la operación del R.S.D.J","Presentación informe supervisión y control SDF."]
[5,6,2,"Garantizar  que el 90% de la población seleccionada acceda a los programas del Plan de Gestión social ","Cumplir  con las actividades asociadas al  plan de gestión social"]
[5,6,2,"Garantizar  que el 90% de la población seleccionada acceda a los programas del Plan de Gestión social ","Cumplir con las actividades establecidas en el Plan de acción y seguimiento de gestión social"]
[5,7,1,"Desarrollar capacitaciones para la sensibilización de los usuarios en separación en la fuente.","Fortalecer la cultura ciudadana en el manejo de residuos sólidos aprovechables."]
[5,8,1," Instalación de 30.000 bombillas de tecnología LED y/o CMH instaladas y la actualización de 200 parques.\n","Modernización de 15,000 Luminarias entre los meses de enero a mayo de 2020 en algunas Zonas del Distrito Capital"]
[5,8,2," Instalación de 30.000 bombillas de tecnología LED y/o CMH instaladas y la actualización de 200 parques.\n","Presentación de informes de supervisión y control  al Contrato de Interventoría en la prestación   del Servicio de Alumbrado en el Distrito Capital con el cumplimiento estricto de los contratos asociados\n\n"]
[5,8,2," Instalación de 30.000 bombillas de tecnología LED y/o CMH instaladas y la actualización de 200 parques.\n","Revisión para la actualización y/o adecuación del modelo  de conformidad a la normatividad pertinente del modelo de prestación del servicio de alumbrado público"]
[5,8,3,"Fortalecer la prestación del Servicios  funerarios  en el Distrito Capital\n","Presentación de informes de supervisión y control  al Contrato de Interventoría a la prestación   de los Servicios Funerarios en el Distrito Capital con el cumplimiento estricto de los contratos asociados"]
[5,8,4,"Cumplir las intervenciones programadas y viabilizadas frente a la revitalización de los cementerios de propiedad del Distrito","Procesos de obra gestionados "]
[5,8,4,"Cumplir las intervenciones programadas y viabilizadas frente a la revitalización de los cementerios de propiedad del Distrito","Procesos de obra ejecutados."]
[5,8,4,"Realizar estudios relacionados con con la prestación de los Servicios Funerarios en los cementerios de propiedad del distrito ","'Proceso precontractual, contractual o la ejecución para el desarrollo de los estudios de olores generados al interior de los Cementerios propiedad del Distrito"]
[5,8,4,"Realizar estudios relacionados con con la prestación de los Servicios Funerarios en los cementerios de propiedad del distrito ","'Proceso precontractual, contractual o la ejecución para el desarrollo del estudio para el diseño de la planta de aguas residual del cementerio parque serafín"]
[5,8,5,"Tener 26 servicios integrales bajo el Modelo de prestación de servicios funerarios de destino final y complementarios, en los cementerios de propiedad del Distrito Capital  ","Presentación de los informes de los servicios Funerarios de destino final y complementarios,  prestados en los Cementerios de propiedad del Distrito "]
[5,8,5,"Tener 26 servicios integrales bajo el Modelo de prestación de servicios funerarios de destino final y complementarios, en los cementerios de propiedad del Distrito Capital  ","Mantener e incrementar los servicios de Culto en el Cementerio Central y Salas de Velación en el Cementerios Parque Serafin."]
[5,8,6,"'Otorgar 1,500 subsidios funerarios entregados ","Garantizar el pago oportuno de los subsidios funerarios autorizados y prestados"]
[5,8,6,"'Otorgar 1,500 subsidios funerarios entregados ","Autorizaciones de subsidios funerarios aprobados"]
[6,1,1,"Mantener y/o disminuir el nivel del riesgo del índice de transparencia a de Bogotá D.C.","Cumplir con los estándares del índice de transparencia de Bogotá "]
[6,1,1,"Cumplimiento del 100% de la estrategia de rendición de cuentas","Formular, implementar y realizar seguimiento a la estrategia de rendición de cuentas"]
[6,1,1,"Fortalecer la implementación del PAAC","Formular y monitorear el Plan Anticorrupción y Atención al Ciudadano"]
[6,1,2,"Implementación de MIPG en la UAESP de acuerdo con el Plan de Desarrollo de la Vigencia","Seguimiento a la implementación de las 17 políticas de gestión y desempeño institucional"]
[6,1,2,"Implementación de MIPG en la UAESP de acuerdo con el Plan de Desarrollo de la Vigencia","Divulgar los avances de la implementación del MIPG "]
[6,1,2,"Sostenibilidad del  MTO","Seguimiento a la ejecución de las actividades establecidad en el  Plan de Sostenibilidad del MTO"]
[6,2,1,"Incrementar en 5 puntos porcentuales los resultado de medición en FURAG","100% Informes de auditoría interna realizados y divulgados"]
[6,2,1,"Incrementar en 5 puntos porcentuales los resultado de medición en FURAG","Documentos relacionados con el procedimiento de Auditoría Interna, analizados y actualizados"]
[6,2,1,"Incrementar en 5 puntos porcentuales los resultado de medición en FURAG","\"Mapa de Aseguramiento\" basado en las tres líneas de defensa, propuesto. "]
[6,2,1,"Incrementar en 5 puntos porcentuales los resultado de medición en FURAG","Plan de mejoramiento institucional operando de forma sistematizada"]
[6,2,2,"80% de actividades de prevención desarrolladas","80% de No Conformidades tratadas por los procesos de la Entidad."]
[6,2,2,"80% de actividades de prevención desarrolladas","“80% de las Acciones Correctivas evaluadas como cerradas, respecto a programación de cierre, producto de auditorias internas y externas”."]
[6,2,2,"80% de actividades de prevención desarrolladas","80% Acompañamientos efectuados, según solicitud y demanda."]
[6,2,2,"80% de actividades de prevención desarrolladas","100% Actividades de prevención y fomento de la cultura del control realizados."]
[6,2,2,"80% de actividades de prevención desarrolladas","100% de requerimientos de entes externos de control gestionados."]
[6,3,1,"Atender las necesidades  tecnológicas de la entidad","Cumplimiento de la Resolución 2710 de 2017 (Viene de 2019)"]
[6,3,1,"Atender las necesidades  tecnológicas de la entidad","Garantizar el servicio de  conectividad  de la Entidad "]
[6,3,1,"Atender las necesidades  tecnológicas de la entidad","Garantizar el suministro tecnológica de la entidad"]
[6,3,1,"Atender las necesidades  tecnológicas de la entidad","Implementación de esquema de replicación de servidores críticos"]
[6,3,1,"Atender las necesidades  tecnológicas de la entidad","Mantenimiento de infraestructura"]
[6,3,1,"Fortalecer el  servicio de la mesa de ayuda de la entidad","Sensibilizar el 100% en el uso de la herramienta HELP PEOPLE al personal de la entidad."]
[6,3,2,"Aumentar en un 10% con respecto a la vigencia anterior al cumplimiento del  Modelo de Privacidad y Seguridad de la Información-MSPI","Implementación del MSPI dentro de la Entidad"]
[6,4,1,"Fortalecer la imagen  de la entidad","Implementar el Plan de Comunicaciones"]
[6,4,1,"Fortalecer la imagen  de la entidad","Generar contenidos de los planes programas y proyectos de la entidad de acuerdo con la programación establecida."]
[6,5,1,"Publicar el 100% de las actuaciones derivadas de los contratos suscritos por la Unidad","Publicación de  los procesos de contratación en el sistema de compra pública."]
[6,5,1,"Plan de trabajo para la implementación de las políticas de prevención del daño antijurídico ejecutado al 100% ","Formulación de un plan de trabajo de implementación de las políticas."]
[6,5,1,"Atender el 100% de los procesos judiciales y arbitrales en los que la Entidad sea demandada o convocada, fortaleciendo la defensa jurídica de la UAESP","Actualización permanente del SIPROJ"]
[6,5,1,"Políticas de la Dirección Distrital de Asuntos Disciplinarios, socializadas al interior de la UAESP","Socializar a través de diferentes estrategias las políticas emanadas por la Dirección Distrital de Asuntos Disciplinarios de la Alcaldía Mayor de Bogotá D.C, frente al ejercicio de la función disciplinaria, conforme a la normatividad vigente."]
[6,6,1,"Revisar y actualizar los instrumentos archivísticos en cumplimiento del Decreto 1080 del 2015.","Revisión y actualización de los instrumentos archivísticos de acuerdo con los lineamientos del plan de gestión documental aprobado y publicado"]
[6,6,1,"Contar con la digitalización del 100% de los documentos de Archivo de las vigencias 2016 en adelante","Plan de trabajo que garantice el  cumplimiento de la meta"]
[6,6,2,"Optimizar la utilización de los módulos que conforman el aplicativo SI-CAPITAL","Seguimiento a la integración de los módulos que conforman el aplicativo SI-CAPITAL"]
[6,6,3,"Fortalecer el ambiente  laboral  de la entidad ","Ejecutar el plan de intervención para el mejoramiento del clima laboral.\n\n"]
[6,6,3,"Fortalecer el ambiente  laboral  de la entidad ","Fortalecer  la modalidad de teletrabajo"]
[6,6,3,"Fortalecer el ambiente  laboral  de la entidad ","Formular y ejecutar el Plan Institucional de Capacitación de la entidad en un 90%"]
[6,6,3,"Fortalecer el ambiente  laboral  de la entidad ","Ejecutar el Plan de Bienestar e incentivos de la entidad al 90%"]
[6,6,3,"Implementar en un 90% el Sistema de Gestión de Seguridad y Salud en el Trabajo (SGSST).","Actividades ejecutadas hasta cumplir con el % programado."]
[6,6,4,"Plan de austeridad del gasto\n","Elaborar el plan de austeridad del gasto y realizar el seguimiento al mismo Separalo "]
[6,7,1,"Ejecutar las obligaciones de hacer financiadas y programadas para la vigencia ","Contar con los contratos para ejecutar las obligaciones de hacer. "]
[6,7,2,"Cumplir  con las obligaciones y reglamentación del esquema de aseo de Bogotá D.C.","Contar con el plan de supervisión   y control del servicio de  aseo aprobado  y ejecución  del plan de supervisión y control "]
[6,7,2,"Cumplir  con las obligaciones y reglamentación del servicio de residuos hospitalarios","Contar con el plan de supervisión   y control del servicio de  hospitalarios aprobado  y ejecución  del plan de supervisión y control  del servicio de hospitalarios."]
[6,7,3,"Cumplimiento de la Resolución 233 de 2018 de la Secretaría General","Cumplimiento al seguimiento del Plan Maestro  Integral de Residuos Sólidos"]
[6,8,1,"Realizar el 100% del seguimiento a la operación del R.S.D.J","Seguimiento al  trámite de licencia ambiental para optimización del RSDJ"]
[6,8,1,"Realizar el 100% del seguimiento a la operación del R.S.D.J","Seguimiento al cumplimiento del laudo arbitral por parte del operador del RSDJ"]
[6,8,1,"Realizar el 100% del seguimiento a la operación del R.S.D.J","Presentación informe supervisión y control SDF."]
[6,8,2,"Garantizar  que el 90% de la población seleccionada acceda a los programas del Plan de Gestión social ","Cumplir  con las actividades asociadas al  plan de gestión social"]
[6,8,2,"Garantizar  que el 90% de la población seleccionada acceda a los programas del Plan de Gestión social ","Cumplir con las actividades establecidas en el Plan de acción y seguimiento de gestión social"]
[6,9,1,"Facilitar el espacio que permita el funcionamiento de 1 ECA en la ciudad, para la operación de 2 organizaciones de recicladores.","Adquirir y/o rentar 1 predio  para la implementación de ECAS"]
[6,9,2,"Desarrollar capacitaciones para la sensibilización de los usuarios en separación en la fuente.","Fortalecer la cultura ciudadana en el manejo de residuos sólidos aprovechables."]
[6,9,3,"Mejorar las condiciones de trabajo y prestación del servicio de la población recicladora de oficio","Dotar a la población recicladora de oficio con vehículos que faciliten  la recolección y transporte de material aprovechable\n"]
[6,9,3,"Mejorar las condiciones de trabajo y prestación del servicio de la población recicladora de oficio","Dotar de herramientas tecnológicas a las organizaciones recicladoras"]
[6,9,3,"Mejorar las condiciones de trabajo y prestación del servicio de la población recicladora de oficio","Actualizar el censo de la población recicladora de oficio  inscrita en el RURO"]
[6,9,4,"Apoyar el cumplimiento de las fases de formalización de las organizaciones de recicladores de oficio conforme al Decreto 596 de 2016.","Desarrollar capacitaciones dirigidas a organizaciones de recicladores de oficio."]
[6,10,1,"Cumplir las intervenciones programadas y viabilizadas frente a la revitalización de los cementerios de propiedad del Distrito","Procesos de obra gestionados "]
[6,10,1,"Cumplir las intervenciones programadas y viabilizadas frente a la revitalización de los cementerios de propiedad del Distrito","Procesos de obra ejecutados."]
[6,10,1,"Realizar estudios relacionados con con la prestación de los Servicios Funerarios en los cementerios de propiedad del distrito ","'Proceso precontractual, contractual o la ejecución para el desarrollo de los estudios de olores generados al interior de los Cementerios propiedad del Distrito"]
[6,10,1,"Realizar estudios relacionados con con la prestación de los Servicios Funerarios en los cementerios de propiedad del distrito ","'Proceso precontractual, contractual o la ejecución para el desarrollo del estudio para el diseño de la planta de aguas residual del cementerio parque serafín"]
[6,10,2,"'Otorgar 1,500 subsidios funerarios entregados ","Autorizaciones de subsidios funerarios aprobados"]
[7,1,1,"Fortalecer la participación ciudadana de la entidad .","Formular, implementar y realizar seguimiento al Plan de Acción de Participación Ciudadana."]
[7,1,2,"Sostenibilidad del  MTO","Seguimiento a la ejecución de las actividades establecidad en el  Plan de Sostenibilidad del MTO"]
[7,2,1,"Atender las necesidades  tecnológicas de la entidad","Garantizar el servicio de  conectividad  de la Entidad "]
[7,2,1,"Atender las necesidades  tecnológicas de la entidad","Garantizar el suministro tecnológica de la entidad"]
[7,2,1,"Atender las necesidades  tecnológicas de la entidad","Implementación de esquema de replicación de servidores críticos"]
[7,2,1,"Atender las necesidades  tecnológicas de la entidad","Mantenimiento de infraestructura"]
[7,2,1,"Fortalecer el  servicio de la mesa de ayuda de la entidad","Sensibilizar el 100% en el uso de la herramienta HELP PEOPLE al personal de la entidad."]
[7,2,2,"Aumentar en un 10% con respecto a la vigencia anterior al cumplimiento del  Modelo de Privacidad y Seguridad de la Información-MSPI","Implementación del MSPI dentro de la Entidad"]
[7,3,1,"Publicar el 100% de las actuaciones derivadas de los contratos suscritos por la Unidad","Publicación de  los procesos de contratación en el sistema de compra pública."]
[7,3,1,"Atender el 100% de los procesos judiciales y arbitrales en los que la Entidad sea demandada o convocada, fortaleciendo la defensa jurídica de la UAESP","Actualización permanente del SIPROJ"]
[7,4,1,"Contar con la digitalización del 100% de los documentos de Archivo de las vigencias 2016 en adelante","Plan de trabajo que garantice el  cumplimiento de la meta"]
[7,4,2,"Establecer una línea base de percepción ciudadana  frente a  la atención  de PQRS ","Implementación de la encuesta de percepción en el canal telefónico. (viene 2019)"]
[7,4,3,"Optimizar la utilización de los módulos que conforman el aplicativo SI-CAPITAL","Seguimiento a la integración de los módulos que conforman el aplicativo SI-CAPITAL"]
[7,4,4,"Atender el 100% de las necesidades definidas y autorizadas.\n","Formulación y ejecución del plan de mantenimiento."]
[7,5,1,"Cumplir  con las obligaciones y reglamentación del esquema de aseo de Bogotá D.C.","Contar con el plan de supervisión   y control del servicio de  aseo aprobado  y ejecución  del plan de supervisión y control "]
[7,5,1,"Cumplir  con las obligaciones y reglamentación del servicio de residuos hospitalarios","Contar con el plan de supervisión   y control del servicio de  hospitalarios aprobado  y ejecución  del plan de supervisión y control  del servicio de hospitalarios."]
[7,6,1,"Realizar el 100% del seguimiento a la operación del R.S.D.J","Seguimiento al  trámite de licencia ambiental para optimización del RSDJ"]
[7,6,1,"Realizar el 100% del seguimiento a la operación del R.S.D.J","Seguimiento al cumplimiento del laudo arbitral por parte del operador del RSDJ"]
[7,6,1,"Realizar el 100% del seguimiento a la operación del R.S.D.J","Presentación informe supervisión y control SDF."]
[7,6,2,"Garantizar  que el 90% de la población seleccionada acceda a los programas del Plan de Gestión social ","Cumplir  con las actividades asociadas al  plan de gestión social"]
[7,6,2,"Garantizar  que el 90% de la población seleccionada acceda a los programas del Plan de Gestión social ","Cumplir con las actividades establecidas en el Plan de acción y seguimiento de gestión social"]
[7,7,1,"Desarrollar capacitaciones para la sensibilización de los usuarios en separación en la fuente.","Fortalecer la cultura ciudadana en el manejo de residuos sólidos aprovechables."]
[7,8,1,"Cumplir las intervenciones programadas y viabilizadas frente a la revitalización de los cementerios de propiedad del Distrito","Procesos de obra gestionados "]
[7,8,1,"Cumplir las intervenciones programadas y viabilizadas frente a la revitalización de los cementerios de propiedad del Distrito","Procesos de obra ejecutados."]
[7,8,1,"Realizar estudios relacionados con con la prestación de los Servicios Funerarios en los cementerios de propiedad del distrito ","'Proceso precontractual, contractual o la ejecución para el desarrollo de los estudios de olores generados al interior de los Cementerios propiedad del Distrito"]
[7,8,1,"Realizar estudios relacionados con con la prestación de los Servicios Funerarios en los cementerios de propiedad del distrito ","'Proceso precontractual, contractual o la ejecución para el desarrollo del estudio para el diseño de la planta de aguas residual del cementerio parque serafín"]
[7,8,2,"'Otorgar 1,500 subsidios funerarios entregados ","Autorizaciones de subsidios funerarios aprobados"]
[8,1,1,"Mantener y/o disminuir el nivel del riesgo del índice de transparencia a de Bogotá D.C.","Cumplir con los estándares del índice de transparencia de Bogotá "]
[8,1,1,"Fortalecer la implementación del PAAC","Formular y monitorear el Plan Anticorrupción y Atención al Ciudadano"]
[8,1,2,"Sostenibilidad del  MTO","Seguimiento a la ejecución de las actividades establecidad en el  Plan de Sostenibilidad del MTO"]
[8,2,1,"Incrementar en 5 puntos porcentuales los resultado de medición en FURAG","100% Informes de auditoría interna realizados y divulgados"]
[8,2,1,"Incrementar en 5 puntos porcentuales los resultado de medición en FURAG","\"Mapa de Aseguramiento\" basado en las tres líneas de defensa, propuesto. "]
[8,2,1,"Incrementar en 5 puntos porcentuales los resultado de medición en FURAG","Plan de mejoramiento institucional operando de forma sistematizada"]
[8,2,2,"80% de actividades de prevención desarrolladas","80% de No Conformidades tratadas por los procesos de la Entidad."]
[8,2,2,"80% de actividades de prevención desarrolladas","“80% de las Acciones Correctivas evaluadas como cerradas, respecto a programación de cierre, producto de auditorias internas y externas”."]
[8,2,2,"80% de actividades de prevención desarrolladas","80% Acompañamientos efectuados, según solicitud y demanda."]
[8,2,2,"80% de actividades de prevención desarrolladas","100% Actividades de prevención y fomento de la cultura del control realizados."]
[8,2,2,"80% de actividades de prevención desarrolladas","100% de requerimientos de entes externos de control gestionados."]
[8,3,1,"Atender las necesidades  tecnológicas de la entidad","Garantizar el servicio de  conectividad  de la Entidad "]
[8,3,1,"Atender las necesidades  tecnológicas de la entidad","Garantizar el suministro tecnológica de la entidad"]
[8,3,1,"Atender las necesidades  tecnológicas de la entidad","Mantenimiento de infraestructura"]
[8,3,1,"Fortalecer el  servicio de la mesa de ayuda de la entidad","Sensibilizar el 100% en el uso de la herramienta HELP PEOPLE al personal de la entidad."]
[8,3,2,"Aumentar en un 10% con respecto a la vigencia anterior al cumplimiento del  Modelo de Privacidad y Seguridad de la Información-MSPI","Implementación del MSPI dentro de la Entidad"]
[8,4,1,"Publicar el 100% de las actuaciones derivadas de los contratos suscritos por la Unidad","Publicación de  los procesos de contratación en el sistema de compra pública."]
[8,4,1,"Atender el 100% de los procesos judiciales y arbitrales en los que la Entidad sea demandada o convocada, fortaleciendo la defensa jurídica de la UAESP","Actualización permanente del SIPROJ"]
[8,5,1,"Contar con la digitalización del 100% de los documentos de Archivo de las vigencias 2016 en adelante","Plan de trabajo que garantice el  cumplimiento de la meta"]
[8,5,2,"Optimizar la utilización de los módulos que conforman el aplicativo SI-CAPITAL","Seguimiento a la integración de los módulos que conforman el aplicativo SI-CAPITAL"]
[8,6,1,"Cumplir  con las obligaciones y reglamentación del esquema de aseo de Bogotá D.C.","Contar con el plan de supervisión   y control del servicio de  aseo aprobado  y ejecución  del plan de supervisión y control "]
[8,6,1,"Cumplir  con las obligaciones y reglamentación del servicio de residuos hospitalarios","Contar con el plan de supervisión   y control del servicio de  hospitalarios aprobado  y ejecución  del plan de supervisión y control  del servicio de hospitalarios."]
[8,7,1,"Realizar el 100% del seguimiento a la operación del R.S.D.J","Seguimiento al  trámite de licencia ambiental para optimización del RSDJ"]
[8,7,1,"Realizar el 100% del seguimiento a la operación del R.S.D.J","Seguimiento al cumplimiento del laudo arbitral por parte del operador del RSDJ"]
[8,7,1,"Realizar el 100% del seguimiento a la operación del R.S.D.J","Presentación informe supervisión y control SDF."]
[8,7,2,"Garantizar  que el 90% de la población seleccionada acceda a los programas del Plan de Gestión social ","Cumplir  con las actividades asociadas al  plan de gestión social"]
[8,7,2,"Garantizar  que el 90% de la población seleccionada acceda a los programas del Plan de Gestión social ","Cumplir con las actividades establecidas en el Plan de acción y seguimiento de gestión social"]
[8,8,1,"Desarrollar capacitaciones para la sensibilización de los usuarios en separación en la fuente.","Fortalecer la cultura ciudadana en el manejo de residuos sólidos aprovechables."]
[8,8,2,"Mejorar las condiciones de trabajo y prestación del servicio de la población recicladora de oficio","Actualizar el censo de la población recicladora de oficio  inscrita en el RURO"]
[8,9,1,"Cumplir las intervenciones programadas y viabilizadas frente a la revitalización de los cementerios de propiedad del Distrito","Procesos de obra gestionados "]
[8,9,1,"Cumplir las intervenciones programadas y viabilizadas frente a la revitalización de los cementerios de propiedad del Distrito","Procesos de obra ejecutados."]
[8,9,1,"Realizar estudios relacionados con con la prestación de los Servicios Funerarios en los cementerios de propiedad del distrito ","'Proceso precontractual, contractual o la ejecución para el desarrollo de los estudios de olores generados al interior de los Cementerios propiedad del Distrito"]
[8,9,1,"Realizar estudios relacionados con con la prestación de los Servicios Funerarios en los cementerios de propiedad del distrito ","'Proceso precontractual, contractual o la ejecución para el desarrollo del estudio para el diseño de la planta de aguas residual del cementerio parque serafín"]
[8,9,2,"'Otorgar 1,500 subsidios funerarios entregados ","Autorizaciones de subsidios funerarios aprobados"]
[9,1,1,"Cumplimiento del 100% de la estrategia de rendición de cuentas","Formular, implementar y realizar seguimiento a la estrategia de rendición de cuentas"]
[9,1,2,"Implementación de MIPG en la UAESP de acuerdo con el Plan de Desarrollo de la Vigencia","Seguimiento a la implementación de las 17 políticas de gestión y desempeño institucional"]
[9,1,2,"Implementación de MIPG en la UAESP de acuerdo con el Plan de Desarrollo de la Vigencia","Divulgar los avances de la implementación del MIPG "]
[9,1,2,"Sostenibilidad del  MTO","Seguimiento a la ejecución de las actividades establecidad en el  Plan de Sostenibilidad del MTO"]
[9,2,1,"Atender las necesidades  tecnológicas de la entidad","Cumplimiento de la Resolución 2710 de 2017 (Viene de 2019)"]
[9,2,1,"Atender las necesidades  tecnológicas de la entidad","Garantizar el servicio de  conectividad  de la Entidad "]
[9,2,1,"Atender las necesidades  tecnológicas de la entidad","Garantizar el suministro tecnológica de la entidad"]
[9,2,1,"Atender las necesidades  tecnológicas de la entidad","Implementación de esquema de replicación de servidores críticos"]
[9,2,1,"Fortalecer el  servicio de la mesa de ayuda de la entidad","Sensibilizar el 100% en el uso de la herramienta HELP PEOPLE al personal de la entidad."]
[9,2,2,"Aumentar en un 10% con respecto a la vigencia anterior al cumplimiento del  Modelo de Privacidad y Seguridad de la Información-MSPI","Implementación del MSPI dentro de la Entidad"]
[9,3,1,"Fortalecer la imagen  de la entidad","Implementar el Plan de Comunicaciones"]
[9,3,1,"Fortalecer la imagen  de la entidad","Generar contenidos de los planes programas y proyectos de la entidad de acuerdo con la programación establecida."]
[9,4,1,"Publicar el 100% de las actuaciones derivadas de los contratos suscritos por la Unidad","Publicación de  los procesos de contratación en el sistema de compra pública."]
[9,4,1,"Atender el 100% de los procesos judiciales y arbitrales en los que la Entidad sea demandada o convocada, fortaleciendo la defensa jurídica de la UAESP","Actualización permanente del SIPROJ"]
[9,5,1,"Revisar y actualizar los instrumentos archivísticos en cumplimiento del Decreto 1080 del 2015.","Revisión y actualización de los instrumentos archivísticos de acuerdo con los lineamientos del plan de gestión documental aprobado y publicado"]
[9,5,1,"Revisar y actualizar los instrumentos archivísticos en cumplimiento del Decreto 1080 del 2015.","Formulación de las Tablas de valoración  documental (TVD)"]
[9,5,1,"Contar con la digitalización del 100% de los documentos de Archivo de las vigencias 2016 en adelante","Plan de trabajo que garantice el  cumplimiento de la meta"]
[9,5,2,"Optimizar la utilización de los módulos que conforman el aplicativo SI-CAPITAL","Seguimiento a la integración de los módulos que conforman el aplicativo SI-CAPITAL"]
[9,5,3,"Fortalecer el ambiente  laboral  de la entidad ","Ejecutar el plan de intervención para el mejoramiento del clima laboral.\n\n"]
[9,5,3,"Fortalecer el ambiente  laboral  de la entidad ","Fortalecer  la modalidad de teletrabajo"]
[9,5,3,"Fortalecer el ambiente  laboral  de la entidad ","Formular y ejecutar el Plan Institucional de Capacitación de la entidad en un 90%"]
[9,5,3,"Fortalecer el ambiente  laboral  de la entidad ","Ejecutar el Plan de Bienestar e incentivos de la entidad al 90%"]
[9,6,1,"Ejecutar las obligaciones de hacer financiadas y programadas para la vigencia ","Contar con los contratos para ejecutar las obligaciones de hacer. "]
[9,6,2,"Cumplir  con las obligaciones y reglamentación del esquema de aseo de Bogotá D.C.","Contar con el plan de supervisión   y control del servicio de  aseo aprobado  y ejecución  del plan de supervisión y control "]
[9,6,2,"Cumplir  con las obligaciones y reglamentación del servicio de residuos hospitalarios","Contar con el plan de supervisión   y control del servicio de  hospitalarios aprobado  y ejecución  del plan de supervisión y control  del servicio de hospitalarios."]
[9,6,3,"Cumplimiento de la Resolución 233 de 2018 de la Secretaría General","Cumplimiento al seguimiento del Plan Maestro  Integral de Residuos Sólidos"]
[9,7,1,"Realizar el 100% del seguimiento a la operación del R.S.D.J","Seguimiento al  trámite de licencia ambiental para optimización del RSDJ"]
[9,7,1,"Realizar el 100% del seguimiento a la operación del R.S.D.J","Seguimiento al cumplimiento del laudo arbitral por parte del operador del RSDJ"]
[9,7,1,"Realizar el 100% del seguimiento a la operación del R.S.D.J","Presentación informe supervisión y control SDF."]
[9,7,2,"Garantizar  que el 90% de la población seleccionada acceda a los programas del Plan de Gestión social ","Cumplir  con las actividades asociadas al  plan de gestión social"]
[9,7,2,"Garantizar  que el 90% de la población seleccionada acceda a los programas del Plan de Gestión social ","Cumplir con las actividades establecidas en el Plan de acción y seguimiento de gestión social"]
[9,8,1,"Desarrollar capacitaciones para la sensibilización de los usuarios en separación en la fuente.","Fortalecer la cultura ciudadana en el manejo de residuos sólidos aprovechables."]
[9,8,2,"Mejorar las condiciones de trabajo y prestación del servicio de la población recicladora de oficio","Dotar de herramientas tecnológicas a las organizaciones recicladoras"]
[9,8,3,"Apoyar el cumplimiento de las fases de formalización de las organizaciones de recicladores de oficio conforme al Decreto 596 de 2016.","Desarrollar capacitaciones dirigidas a organizaciones de recicladores de oficio."]
[9,9,1,"Cumplir las intervenciones programadas y viabilizadas frente a la revitalización de los cementerios de propiedad del Distrito","Procesos de obra gestionados "]
[9,9,1,"Cumplir las intervenciones programadas y viabilizadas frente a la revitalización de los cementerios de propiedad del Distrito","Procesos de obra ejecutados."]
[9,9,1,"Realizar estudios relacionados con con la prestación de los Servicios Funerarios en los cementerios de propiedad del distrito ","'Proceso precontractual, contractual o la ejecución para el desarrollo de los estudios de olores generados al interior de los Cementerios propiedad del Distrito"]
[9,9,1,"Realizar estudios relacionados con con la prestación de los Servicios Funerarios en los cementerios de propiedad del distrito ","'Proceso precontractual, contractual o la ejecución para el desarrollo del estudio para el diseño de la planta de aguas residual del cementerio parque serafín"]
[9,9,2,"'Otorgar 1,500 subsidios funerarios entregados ","Autorizaciones de subsidios funerarios aprobados"]
[10,1,1,"Mantener y/o disminuir el nivel del riesgo del índice de transparencia a de Bogotá D.C.","Cumplir con los estándares del índice de transparencia de Bogotá "]
[10,1,1,"Fortalecer la implementación del PAAC","Formular y monitorear el Plan Anticorrupción y Atención al Ciudadano"]
[10,1,1,"Fortalecer la participación ciudadana de la entidad .","Formular, implementar y realizar seguimiento al Plan de Acción de Participación Ciudadana."]
[10,1,2,"Sostenibilidad del  MTO","Seguimiento a la ejecución de las actividades establecidad en el  Plan de Sostenibilidad del MTO"]
[10,2,1,"Incrementar en 5 puntos porcentuales los resultado de medición en FURAG","100% Informes de auditoría interna realizados y divulgados"]
[10,2,1,"Incrementar en 5 puntos porcentuales los resultado de medición en FURAG","Documentos relacionados con el procedimiento de Auditoría Interna, analizados y actualizados"]
[10,2,1,"Incrementar en 5 puntos porcentuales los resultado de medición en FURAG","\"Mapa de Aseguramiento\" basado en las tres líneas de defensa, propuesto. "]
[10,2,1,"Incrementar en 5 puntos porcentuales los resultado de medición en FURAG","Plan de mejoramiento institucional operando de forma sistematizada"]
[10,2,2,"80% de actividades de prevención desarrolladas","80% de No Conformidades tratadas por los procesos de la Entidad."]
[10,2,2,"80% de actividades de prevención desarrolladas","“80% de las Acciones Correctivas evaluadas como cerradas, respecto a programación de cierre, producto de auditorias internas y externas”."]
[10,2,2,"80% de actividades de prevención desarrolladas","80% Acompañamientos efectuados, según solicitud y demanda."]
[10,2,2,"80% de actividades de prevención desarrolladas","100% Actividades de prevención y fomento de la cultura del control realizados."]
[10,2,2,"80% de actividades de prevención desarrolladas","100% de requerimientos de entes externos de control gestionados."]
[10,3,1,"Atender las necesidades  tecnológicas de la entidad","Garantizar el servicio de  conectividad  de la Entidad "]
[10,3,1,"Atender las necesidades  tecnológicas de la entidad","Garantizar el suministro tecnológica de la entidad"]
[10,3,1,"Atender las necesidades  tecnológicas de la entidad","Mantenimiento de infraestructura"]
[10,3,1,"Fortalecer el  servicio de la mesa de ayuda de la entidad","Sensibilizar el 100% en el uso de la herramienta HELP PEOPLE al personal de la entidad."]
[10,3,2,"Aumentar en un 10% con respecto a la vigencia anterior al cumplimiento del  Modelo de Privacidad y Seguridad de la Información-MSPI","Implementación del MSPI dentro de la Entidad"]
[10,4,1,"Publicar el 100% de las actuaciones derivadas de los contratos suscritos por la Unidad","Publicación de  los procesos de contratación en el sistema de compra pública."]
[10,4,1,"Atender el 100% de los procesos judiciales y arbitrales en los que la Entidad sea demandada o convocada, fortaleciendo la defensa jurídica de la UAESP","Actualización permanente del SIPROJ"]
[10,5,1,"Contar con la digitalización del 100% de los documentos de Archivo de las vigencias 2016 en adelante","Plan de trabajo que garantice el  cumplimiento de la meta"]
[10,5,2,"Optimizar la utilización de los módulos que conforman el aplicativo SI-CAPITAL","Seguimiento a la integración de los módulos que conforman el aplicativo SI-CAPITAL"]
[10,6,1,"Cumplir  con las obligaciones y reglamentación del esquema de aseo de Bogotá D.C.","Contar con el plan de supervisión   y control del servicio de  aseo aprobado  y ejecución  del plan de supervisión y control "]
[10,6,1,"Cumplir  con las obligaciones y reglamentación del servicio de residuos hospitalarios","Contar con el plan de supervisión   y control del servicio de  hospitalarios aprobado  y ejecución  del plan de supervisión y control  del servicio de hospitalarios."]
[10,7,1,"Realizar el 100% del seguimiento a la operación del R.S.D.J","Seguimiento al  trámite de licencia ambiental para optimización del RSDJ"]
[10,7,1,"Realizar el 100% del seguimiento a la operación del R.S.D.J","Seguimiento al cumplimiento del laudo arbitral por parte del operador del RSDJ"]
[10,7,1,"Realizar el 100% del seguimiento a la operación del R.S.D.J","Presentación informe supervisión y control SDF."]
[10,7,2,"Garantizar  que el 90% de la población seleccionada acceda a los programas del Plan de Gestión social ","Cumplir  con las actividades asociadas al  plan de gestión social"]
[10,7,2,"Garantizar  que el 90% de la población seleccionada acceda a los programas del Plan de Gestión social ","Cumplir con las actividades establecidas en el Plan de acción y seguimiento de gestión social"]
[10,8,1,"Desarrollar capacitaciones para la sensibilización de los usuarios en separación en la fuente.","Fortalecer la cultura ciudadana en el manejo de residuos sólidos aprovechables."]
[10,8,2,"Mejorar las condiciones de trabajo y prestación del servicio de la población recicladora de oficio","Actualizar el censo de la población recicladora de oficio  inscrita en el RURO"]
[10,9,1,"Cumplir las intervenciones programadas y viabilizadas frente a la revitalización de los cementerios de propiedad del Distrito","Procesos de obra gestionados "]
[10,9,1,"Cumplir las intervenciones programadas y viabilizadas frente a la revitalización de los cementerios de propiedad del Distrito","Procesos de obra ejecutados."]
[10,9,1,"Realizar estudios relacionados con con la prestación de los Servicios Funerarios en los cementerios de propiedad del distrito ","'Proceso precontractual, contractual o la ejecución para el desarrollo de los estudios de olores generados al interior de los Cementerios propiedad del Distrito"]
[10,9,1,"Realizar estudios relacionados con con la prestación de los Servicios Funerarios en los cementerios de propiedad del distrito ","'Proceso precontractual, contractual o la ejecución para el desarrollo del estudio para el diseño de la planta de aguas residual del cementerio parque serafín"]
[10,9,2,"'Otorgar 1,500 subsidios funerarios entregados ","Autorizaciones de subsidios funerarios aprobados"]
[11,1,1,"Sostenibilidad del  MTO","Seguimiento a la ejecución de las actividades establecidad en el  Plan de Sostenibilidad del MTO"]
[11,2,1,"Atender las necesidades  tecnológicas de la entidad","Garantizar el servicio de  conectividad  de la Entidad "]
[11,2,1,"Atender las necesidades  tecnológicas de la entidad","Garantizar el suministro tecnológica de la entidad"]
[11,2,1,"Fortalecer el  servicio de la mesa de ayuda de la entidad","Sensibilizar el 100% en el uso de la herramienta HELP PEOPLE al personal de la entidad."]
[11,2,2,"Aumentar en un 10% con respecto a la vigencia anterior al cumplimiento del  Modelo de Privacidad y Seguridad de la Información-MSPI","Implementación del MSPI dentro de la Entidad"]
[11,3,1,"Publicar el 100% de las actuaciones derivadas de los contratos suscritos por la Unidad","Publicación de  los procesos de contratación en el sistema de compra pública."]
[11,3,1,"Atender el 100% de los procesos judiciales y arbitrales en los que la Entidad sea demandada o convocada, fortaleciendo la defensa jurídica de la UAESP","Actualización permanente del SIPROJ"]
[11,4,1,"Contar con la digitalización del 100% de los documentos de Archivo de las vigencias 2016 en adelante","Plan de trabajo que garantice el  cumplimiento de la meta"]
[11,4,2,"Optimizar la utilización de los módulos que conforman el aplicativo SI-CAPITAL","Seguimiento a la integración de los módulos que conforman el aplicativo SI-CAPITAL"]
[11,5,1,"Cumplir  con las obligaciones y reglamentación del esquema de aseo de Bogotá D.C.","Contar con el plan de supervisión   y control del servicio de  aseo aprobado  y ejecución  del plan de supervisión y control "]
[11,5,1,"Cumplir  con las obligaciones y reglamentación del servicio de residuos hospitalarios","Contar con el plan de supervisión   y control del servicio de  hospitalarios aprobado  y ejecución  del plan de supervisión y control  del servicio de hospitalarios."]
[11,6,1,"Realizar el 100% del seguimiento a la operación del R.S.D.J","Seguimiento al  trámite de licencia ambiental para optimización del RSDJ"]
[11,6,1,"Realizar el 100% del seguimiento a la operación del R.S.D.J","Seguimiento al cumplimiento del laudo arbitral por parte del operador del RSDJ"]
[11,6,1,"Realizar el 100% del seguimiento a la operación del R.S.D.J","Presentación informe supervisión y control SDF."]
[11,6,2,"Garantizar  que el 90% de la población seleccionada acceda a los programas del Plan de Gestión social ","Cumplir  con las actividades asociadas al  plan de gestión social"]
[11,6,2,"Garantizar  que el 90% de la población seleccionada acceda a los programas del Plan de Gestión social ","Cumplir con las actividades establecidas en el Plan de acción y seguimiento de gestión social"]
[11,7,1,"Desarrollar capacitaciones para la sensibilización de los usuarios en separación en la fuente.","Fortalecer la cultura ciudadana en el manejo de residuos sólidos aprovechables."]
[11,8,1,"Cumplir las intervenciones programadas y viabilizadas frente a la revitalización de los cementerios de propiedad del Distrito","Procesos de obra gestionados "]
[11,8,1,"Cumplir las intervenciones programadas y viabilizadas frente a la revitalización de los cementerios de propiedad del Distrito","Procesos de obra ejecutados."]
[11,8,1,"Realizar estudios relacionados con con la prestación de los Servicios Funerarios en los cementerios de propiedad del distrito ","'Proceso precontractual, contractual o la ejecución para el desarrollo de los estudios de olores generados al interior de los Cementerios propiedad del Distrito"]
[11,8,1,"Realizar estudios relacionados con con la prestación de los Servicios Funerarios en los cementerios de propiedad del distrito ","'Proceso precontractual, contractual o la ejecución para el desarrollo del estudio para el diseño de la planta de aguas residual del cementerio parque serafín"]
[11,8,2,"'Otorgar 1,500 subsidios funerarios entregados ","Autorizaciones de subsidios funerarios aprobados"]
[12,1,1,"Mantener y/o disminuir el nivel del riesgo del índice de transparencia a de Bogotá D.C.","Cumplir con los estándares del índice de transparencia de Bogotá "]
[12,1,1,"Cumplimiento del 100% de la estrategia de rendición de cuentas","Formular, implementar y realizar seguimiento a la estrategia de rendición de cuentas"]
[12,1,1,"Fortalecer la implementación del PAAC","Formular y monitorear el Plan Anticorrupción y Atención al Ciudadano"]
[12,1,1,"Fortalecer la participación ciudadana de la entidad .","Formular, implementar y realizar seguimiento al Plan de Acción de Participación Ciudadana."]
[12,1,2,"Implementación de MIPG en la UAESP de acuerdo con el Plan de Desarrollo de la Vigencia","Seguimiento a la implementación de las 17 políticas de gestión y desempeño institucional"]
[12,1,2,"Implementación de MIPG en la UAESP de acuerdo con el Plan de Desarrollo de la Vigencia","Divulgar los avances de la implementación del MIPG "]
[12,1,2,"Sostenibilidad del  MTO","Seguimiento a la ejecución de las actividades establecidad en el  Plan de Sostenibilidad del MTO"]
[12,2,1,"Incrementar en 5 puntos porcentuales los resultado de medición en FURAG","100% Informes de auditoría interna realizados y divulgados"]
[12,2,1,"Incrementar en 5 puntos porcentuales los resultado de medición en FURAG","\"Mapa de Aseguramiento\" basado en las tres líneas de defensa, propuesto. "]
[12,2,1,"Incrementar en 5 puntos porcentuales los resultado de medición en FURAG","Plan de mejoramiento institucional operando de forma sistematizada"]
[12,2,2,"80% de actividades de prevención desarrolladas","80% de No Conformidades tratadas por los procesos de la Entidad."]
[12,2,2,"80% de actividades de prevención desarrolladas","“80% de las Acciones Correctivas evaluadas como cerradas, respecto a programación de cierre, producto de auditorias internas y externas”."]
[12,2,2,"80% de actividades de prevención desarrolladas","80% Acompañamientos efectuados, según solicitud y demanda."]
[12,2,2,"80% de actividades de prevención desarrolladas","100% Actividades de prevención y fomento de la cultura del control realizados."]
[12,2,2,"80% de actividades de prevención desarrolladas","100% de requerimientos de entes externos de control gestionados."]
[12,3,1,"Atender las necesidades  tecnológicas de la entidad","Cumplimiento de la Resolución 2710 de 2017 (Viene de 2019)"]
[12,3,1,"Atender las necesidades  tecnológicas de la entidad","Garantizar el servicio de  conectividad  de la Entidad "]
[12,3,1,"Atender las necesidades  tecnológicas de la entidad","Garantizar el suministro tecnológica de la entidad"]
[12,3,1,"Atender las necesidades  tecnológicas de la entidad","Implementación de esquema de replicación de servidores críticos"]
[12,3,1,"Atender las necesidades  tecnológicas de la entidad","Mantenimiento de infraestructura"]
[12,3,1,"Fortalecer el  servicio de la mesa de ayuda de la entidad","Sensibilizar el 100% en el uso de la herramienta HELP PEOPLE al personal de la entidad."]
[12,3,2,"Aumentar en un 10% con respecto a la vigencia anterior al cumplimiento del  Modelo de Privacidad y Seguridad de la Información-MSPI","Implementación del MSPI dentro de la Entidad"]
[12,4,1,"Fortalecer la imagen  de la entidad","Implementar el Plan de Comunicaciones"]
[12,4,1,"Fortalecer la imagen  de la entidad","Generar contenidos de los planes programas y proyectos de la entidad de acuerdo con la programación establecida."]
[12,5,1,"Publicar el 100% de las actuaciones derivadas de los contratos suscritos por la Unidad","Publicación de  los procesos de contratación en el sistema de compra pública."]
[12,5,1,"Atender el 100% de los procesos judiciales y arbitrales en los que la Entidad sea demandada o convocada, fortaleciendo la defensa jurídica de la UAESP","Actualización permanente del SIPROJ"]
[12,5,1,"Políticas de la Dirección Distrital de Asuntos Disciplinarios, socializadas al interior de la UAESP","Socializar a través de diferentes estrategias las políticas emanadas por la Dirección Distrital de Asuntos Disciplinarios de la Alcaldía Mayor de Bogotá D.C, frente al ejercicio de la función disciplinaria, conforme a la normatividad vigente."]
[12,6,1,"Revisar y actualizar los instrumentos archivísticos en cumplimiento del Decreto 1080 del 2015.","Revisión y actualización de los instrumentos archivísticos de acuerdo con los lineamientos del plan de gestión documental aprobado y publicado"]
[12,6,1,"Revisar y actualizar los instrumentos archivísticos en cumplimiento del Decreto 1080 del 2015.","Formulación de las Tablas de valoración  documental (TVD)"]
[12,6,1,"Contar con la digitalización del 100% de los documentos de Archivo de las vigencias 2016 en adelante","Plan de trabajo que garantice el  cumplimiento de la meta"]
[12,6,1,"Integración del Sistema de Gestión Documental Orfeo con Bogotá te Escucha Sistema distrital de quejas y soluciones circular 007 de 2019","Implementación de la primera Fase que consiste en la radicación web "]
[12,6,1,"Establecer una línea base de percepción ciudadana  frente a  la atención  de PQRS ","Implementación de la encuesta de percepción en el canal telefónico. (viene 2019)"]
[12,6,2,"Optimizar la utilización de los módulos que conforman el aplicativo SI-CAPITAL","Seguimiento a la integración de los módulos que conforman el aplicativo SI-CAPITAL"]
[12,6,2,"Optimizar la utilización de los módulos que conforman el aplicativo SI-CAPITAL","Dos desarrollos de funcionalidades del aplicativo SI-CAPITAL que optimice la gestión financiera de la entidad"]
[12,6,3,"Fortalecer el ambiente  laboral  de la entidad ","Ejecutar el plan de intervención para el mejoramiento del clima laboral.\n\n"]
[12,6,3,"Fortalecer el ambiente  laboral  de la entidad ","Fortalecer  la modalidad de teletrabajo"]
[12,6,3,"Fortalecer el ambiente  laboral  de la entidad ","Formular y ejecutar el Plan Institucional de Capacitación de la entidad en un 90%"]
[12,6,3,"Fortalecer el ambiente  laboral  de la entidad ","Ejecutar el Plan de Bienestar e incentivos de la entidad al 90%"]
[12,6,3,"Implementar en un 90% el Sistema de Gestión de Seguridad y Salud en el Trabajo (SGSST).","Actividades ejecutadas hasta cumplir con el % programado."]
[12,6,4,"Atender el 100% de las necesidades definidas y autorizadas.\n","Formulación y ejecución del plan de mantenimiento."]
[12,6,5,"Plan de austeridad del gasto\n","Elaborar el plan de austeridad del gasto y realizar el seguimiento al mismo Separalo "]
[12,7,1,"Ejecutar las obligaciones de hacer financiadas y programadas para la vigencia ","Contar con los contratos para ejecutar las obligaciones de hacer. "]
[12,7,2,"Cumplir  con las obligaciones y reglamentación del esquema de aseo de Bogotá D.C.","Contar con el plan de supervisión   y control del servicio de  aseo aprobado  y ejecución  del plan de supervisión y control "]
[12,7,2,"Cumplir  con las obligaciones y reglamentación del servicio de residuos hospitalarios","Contar con el plan de supervisión   y control del servicio de  hospitalarios aprobado  y ejecución  del plan de supervisión y control  del servicio de hospitalarios."]
[12,8,1,"Realizar el 100% del seguimiento a la operación del R.S.D.J","Seguimiento al  trámite de licencia ambiental para optimización del RSDJ"]
[12,8,1,"Realizar el 100% del seguimiento a la operación del R.S.D.J","Seguimiento al cumplimiento del laudo arbitral por parte del operador del RSDJ"]
[12,8,1,"Realizar el 100% del seguimiento a la operación del R.S.D.J","Presentación informe supervisión y control SDF."]
[12,8,2,"Garantizar  que el 90% de la población seleccionada acceda a los programas del Plan de Gestión social ","Cumplir  con las actividades asociadas al  plan de gestión social"]
[12,8,2,"Garantizar  que el 90% de la población seleccionada acceda a los programas del Plan de Gestión social ","Cumplir con las actividades establecidas en el Plan de acción y seguimiento de gestión social"]
[12,9,1,"Mejorar las condiciones de trabajo y prestación del servicio de la población recicladora de oficio","Dotar de herramientas tecnológicas a las organizaciones recicladoras"]
[12,9,2,"Apoyar el cumplimiento de las fases de formalización de las organizaciones de recicladores de oficio conforme al Decreto 596 de 2016.","Desarrollar capacitaciones dirigidas a organizaciones de recicladores de oficio."]
[12,10,1,"'Otorgar 1,500 subsidios funerarios entregados ","Autorizaciones de subsidios funerarios aprobados"]